Workbook

Sheet OAV Derivation
A2: SGN OAV Derivation Calcs (Av. £2014 unless stated) | H2: RPI
H3: Av 2014 | I3: =[13]Inflation!$B$32 -> 256.0333333
C4: 2015 | D4: =C4+1 -> 2016 | H4: Dec £2014 | I4: =[13]Inflation!$N$32 -> 257.5
A5: LIBOR Rates | B5: Feb | C5: 0.0097775 | D5: 0.0098963 | H5: Av £2015 | I5: =[13]Inflation!$B$33 -> 258.5416667
B6: May | C6: 0.0099681 | D6: 0.009865 | H6: Av £2016 | I6: =I5*($I$5/$I$3) -> 261.0745739 | J6: Proxy
B7: Aug | C7: 0.0105438 | D7: 0.0071663 | H7: Av £2017 | I7: =I6*($I$6/$I$5) -> 263.6322958 | J7: Proxy
B8: Nov | C8: 0.0104275 | D8: =D7 -> 0.0071663 | E8: Proxy until actual available
B9: Average | C9: =AVERAGE(C5:C8) -> 0.010179225 | D9: =AVERAGE(D5:D8) -> 0.008523475
B10: + 0.5% | C10: 0.005 | D10: 0.005
C11: =SUM(C9:C10) -> 0.015179225 | D11: =SUM(D9:D10) -> 0.013523475
D14: 2016 | E14: =D14+1 -> 2017
A15: OAV Return Adjustment Factors | D15: =E15*(1+C11) -> 1.028907976 | E15: =1+D11 -> 1.013523475
A17: CAPEX: | D17: **2014 Av PRICES**
A18: Allowed Spend | D18: ='[14]LongTerm Post RPE Iss 31-08-16'!B62/Inputs!$D$2*Inputs!$D$1 -> 25750.37751 | E18: ='[14]LongTerm Post RPE Iss 31-08-16'!C62/Inputs!$D$2*Inputs!$D$1 -> 2648903.05
A19: OAV | D19: =D18*D15 -> 26494.76881 | E19: =E18*E15 -> 2684725.424
E20: =SUM(D19:E19) -> 2711220.193
A21: Dec £2014 | E21: =E20/I3*I4 -> 2726751.203
A23: OPEX: | D23: **2014 Av PRICES**
A24: Allowed Spend | D24: =([15]Summary!BG35/2)/Inputs!$D$2*Inputs!$D$1 -> 498757.811 | E24: =SUM([15]Summary!BG35/2,[15]Summary!BH36)/Inputs!$D$2*Inputs!$D$1 -> 1051989.896
A25: OAV | D25: =D24*D15 -> 513175.8897 | E25: =E24*E15 -> 1066216.455
E26: =SUM(D25:E25) -> 1579392.345
A27: Dec £2014 | E27: =E26/I3*I4 -> 1588439.769
A29: REVENUE:
A30: Volume Determination (therms)
A31: P1 | D31: ='[16]SGN|Volumes'!F56+'[16]SGN|Volumes'!F58 -> 0 | E31: ='[16]SGN|Volumes'!G56+'[16]SGN|Volumes'!G58 -> 96462
A32: P2 | D32: ='[16]SGN|Volumes'!F59 -> 0 | E32: ='[16]SGN|Volumes'!G59 -> 36840
A33: P3 | D33: ='[16]SGN|Volumes'!F60 -> 0 | E33: ='[16]SGN|Volumes'!G60 -> 18750
A34: P4 | D34: =0 -> 0 | E34: =0 -> 0
A35: P5 | D35: ='[16]SGN|Volumes'!F61 -> 433334 | E35: ='[16]SGN|Volumes'!G61 -> 2622749.333
A36: P6 | D36: =0 -> 0 | E36: =0 -> 0
A37: P7 | D37: ='[16]SGN|Volumes'!F62 -> 0 | E37: ='[16]SGN|Volumes'!G62 -> 0
A39: Price (£/th) | D39: **2014 Av PRICES**
A40: P1 | D40: =(E63/100)/$I$6*$I$3 -> 0 | E40: =(E74/100)/$I$7*$I$3 -> 0.3297728625
A41: P2 | D41: =(E64/100)/$I$6*$I$3 -> 0 | E41: =(E75/100)/$I$7*$I$3 -> 0.3277102059
A42: P3 | D42: 0 | E42: 0.3127186413
A43: P4 | D43: 0 | E43: 0.1584372671
A44: P5 | D44: =(E67/100)/$I$6*$I$3 -> 0.1654767767 | E44: 0.1621232286
A45: P6 | D45: 0 | E45: 0
A46: P7 | D46: 0 | E46: 0.1240677218
A48: Calculated Revenue | D48: =-SUMPRODUCT(D31:D37,D40:D46) -> -71706.71354 | E48: =-SUMPRODUCT(E31:E37,E40:E46) -> -474955.4581
A49: OAV | D49: =D48*D15 -> -73779.60948 | E49: =E48*E15 -> -481378.5064
E50: =SUM(D49:E49) -> -555158.1159
A51: Dec £2014 | E51: =E50/I3*I4 -> -558338.2952
A52: TOTAL SGN OAV - Av £2014 | E52: =SUM(E50,E26,E20) -> 3735454.421
A53: Dec £2014 | E53: =E52/I3*I4 -> 3756852.676
E54: =ROUND(E53,0)=ROUND(SUM(E51,E27,E21),0) -> TRUE
A59: Weighted Average 'D' Tariff Calculations
A61: 2016 CHARGES (Assumed Av £2016)
A62: 'P' Category | B62: Commodity (ppt) | C62: Capacity (pp SMP Cap therm per Day) | D62: Assumed Load Factor | E62: Effective Weighted Average (ppt)
A63: P1 | B63: 0 | C63: 0 | D63: =D74 -> 0.313 | E63: =B63+C63/D63 -> 0
A64: P2 | B64: 0 | C64: 0 | D64: =D75 -> 0.315 | E64: =B64+C64/D64 -> 0
A65: P3 | B65: 0 | C65: 0 | D65: 0.33 | E65: 0
A66: P4 | B66: 0 | C66: 0 | D66: 0.64883 | E66: 0
A67: P5 | B67: 8.52 | C67: 5.42 | D67: 0.64883 | E67: 16.87349783
A68: P6 | B68: 0 | C68: 0 | D68: 0.64883 | E68: 0
A69: P7 | B69: 0 | C69: 0 | D69: 0.8 | E69: 0
A72: 2017 CHARGES (Assumed Av £2017)
A73: 'P' Category | B73: Commodity (ppt) | C73: Capacity (pp SMP Cap therm per Day) | D73: Assumed Load Factor | E73: Effective Weighted Average (ppt)
A74: P1 | B74: 26.48 | C74: 2.34 | D74: 0.313 | E74: =B74+C74/D74 -> 33.95603834
A75: P2 | B75: 24.95 | C75: 2.77 | D75: 0.315 | E75: =B75+C75/D75 -> 33.74365079
A76: P3 | B76: 16.2 | C76: 5.28 | D76: 0.33 | E76: 32.2
A77: P4 | B77: 8.13 | C77: 5.31 | D77: 0.64883 | E77: 16.3139619
A78: P5 | B78: 8.34 | C78: 5.42 | D78: 0.64883 | E78: 16.69349783
A79: P6 | B79: 0 | C79: 0 | D79: 0.64883 | E79: 0
A80: P7 | B80: 6 | C80: 5.42 | D80: 0.8 | E80: 12.775

Sheet Inputs
A1: Inputs | B1: RPI Av 2014 | D1: 256
B2: RPI Dec | D2: 257.5
B3: £2014 | C3: Source | D3: 2017 | E3: =D3+1 -> 2018 | F3: =E3+1 -> 2019 | G3: 2020 | H3: 2021 | I3: 2022 | J3: 2023 | K3: 2024 | L3: 2025 | M3: 2026 | N3: 2027 | O3: 2028 | P3: 2029 | Q3: 2030 | R3: 2031 | S3: 2032 | T3: 2033 | U3: 2034 | V3: 2035 | W3: 2036 | X3: =W3+1 -> 2037 | Y3: =X3+1 -> 2038 | Z3: =Y3+1 -> 2039 | AA3: =Z3+1 -> 2040 | AB3: =AA3+1 -> 2041 | AC3: =AB3+1 -> 2042 | AD3: =AC3+1 -> 2043 | AE3: =AD3+1 -> 2044 | AF3: =AE3+1 -> 2045 | AG3: =AF3+1 -> 2046 | AH3: =AG3+1 -> 2047 | AI3: =AH3+1 -> 2048 | AJ3: =AI3+1 -> 2049 | AK3: =AJ3+1 -> 2050 | AL3: =AK3+1 -> 2051 | AM3: =AL3+1 -> 2052 | AN3: =AM3+1 -> 2053 | AO3: =AN3+1 -> 2054 | AP3: =AO3+1 -> 2055 | AQ3: =AP3+1 -> 2056 | AR3: =AQ3+1 -> 2057
E4: GD17 onward | F4: GD17 onward | G4: GD17 onward | H4: GD17 onward | I4: GD17 onward | J4: GD17 onward | K4: GD17 onward | L4: GD17 onward | M4: GD17 onward | N4: GD17 onward | O4: GD17 onward | P4: GD17 onward | Q4: GD17 onward | R4: GD17 onward | S4: GD17 onward | T4: GD17 onward | U4: GD17 onward | V4: GD17 onward | W4: GD17 onward | X4: GD17 onward | Y4: GD17 onward | Z4: GD17 onward | AA4: GD17 onward | AB4: GD17 onward | AC4: GD17 onward | AD4: GD17 onward | AE4: GD17 onward | AF4: GD17 onward | AG4: GD17 onward | AH4: GD17 onward | AI4: GD17 onward | AJ4: GD17 onward | AK4: GD17 onward | AL4: GD17 onward | AM4: GD17 onward | AN4: GD17 onward | AO4: GD17 onward | AP4: GD17 onward | AQ4: GD17 onward | AR4: GD17 onward
A6: Capex - Subtotals in Av £2014 - UR Final Det
A8: 7 Bar Mains | D8: Mains | E8: ='[14]LongTerm Post RPE Iss 31-08-16'!D52/$D$2*$D$1 -> 0 | F8: ='[14]LongTerm Post RPE Iss 31-08-16'!E52/$D$2*$D$1 -> 0 | G8: ='[14]LongTerm Post RPE Iss 31-08-16'!F52/$D$2*$D$1 -> 0 | H8: ='[14]LongTerm Post RPE Iss 31-08-16'!G52/$D$2*$D$1 -> 0 | I8: ='[14]LongTerm Post RPE Iss 31-08-16'!H52/$D$2*$D$1 -> 0 | J8: ='[14]LongTerm Post RPE Iss 31-08-16'!I52/$D$2*$D$1 -> 0 | K8: ='[14]LongTerm Post RPE Iss 31-08-16'!J52/$D$2*$D$1 -> 0 | L8: ='[14]LongTerm Post RPE Iss 31-08-16'!K52/$D$2*$D$1 -> 0 | M8: ='[14]LongTerm Post RPE Iss 31-08-16'!L52/$D$2*$D$1 -> 0 | N8: ='[14]LongTerm Post RPE Iss 31-08-16'!M52/$D$2*$D$1 -> 0 | O8: ='[14]LongTerm Post RPE Iss 31-08-16'!N52/$D$2*$D$1 -> 0 | P8: ='[14]LongTerm Post RPE Iss 31-08-16'!O52/$D$2*$D$1 -> 0 | Q8: ='[14]LongTerm Post RPE Iss 31-08-16'!P52/$D$2*$D$1 -> 0 | R8: ='[14]LongTerm Post RPE Iss 31-08-16'!Q52/$D$2*$D$1 -> 0 | S8: ='[14]LongTerm Post RPE Iss 31-08-16'!R52/$D$2*$D$1 -> 0 | T8: ='[14]LongTerm Post RPE Iss 31-08-16'!S52/$D$2*$D$1 -> 0 | U8: ='[14]LongTerm Post RPE Iss 31-08-16'!T52/$D$2*$D$1 -> 0 | V8: ='[14]LongTerm Post RPE Iss 31-08-16'!U52/$D$2*$D$1 -> 0 | W8: ='[14]LongTerm Post RPE Iss 31-08-16'!V52/$D$2*$D$1 -> 0 | X8: ='[14]LongTerm Post RPE Iss 31-08-16'!W52/$D$2*$D$1 -> 0 | Y8: ='[14]LongTerm Post RPE Iss 31-08-16'!X52/$D$2*$D$1 -> 0 | Z8: ='[14]LongTerm Post RPE Iss 31-08-16'!Y52/$D$2*$D$1 -> 0 | AA8: ='[14]LongTerm Post RPE Iss 31-08-16'!Z52/$D$2*$D$1 -> 0 | AB8: ='[14]LongTerm Post RPE Iss 31-08-16'!AA52/$D$2*$D$1 -> 0 | AC8: ='[14]LongTerm Post RPE Iss 31-08-16'!AB52/$D$2*$D$1 -> 0 | AD8: ='[14]LongTerm Post RPE Iss 31-08-16'!AC52/$D$2*$D$1 -> 0 | AE8: ='[14]LongTerm Post RPE Iss 31-08-16'!AD52/$D$2*$D$1 -> 0 | AF8: ='[14]LongTerm Post RPE Iss 31-08-16'!AE52/$D$2*$D$1 -> 0 | AG8: ='[14]LongTerm Post RPE Iss 31-08-16'!AF52/$D$2*$D$1 -> 0 | AH8: ='[14]LongTerm Post RPE Iss 31-08-16'!AG52/$D$2*$D$1 -> 0 | AI8: ='[14]LongTerm Post RPE Iss 31-08-16'!AH52/$D$2*$D$1 -> 0 | AJ8: ='[14]LongTerm Post RPE Iss 31-08-16'!AI52/$D$2*$D$1 -> 0 | AK8: ='[14]LongTerm Post RPE Iss 31-08-16'!AJ52/$D$2*$D$1 -> 0 | AL8: ='[14]LongTerm Post RPE Iss 31-08-16'!AK52/$D$2*$D$1 -> 0 | AM8: ='[14]LongTerm Post RPE Iss 31-08-16'!AL52/$D$2*$D$1 -> 0 | AN8: ='[14]LongTerm Post RPE Iss 31-08-16'!AM52/$D$2*$D$1 -> 0 | AO8: ='[14]LongTerm Post RPE Iss 31-08-16'!AN52/$D$2*$D$1 -> 0 | AP8: ='[14]LongTerm Post RPE Iss 31-08-16'!AO52/$D$2*$D$1 -> 0 | AQ8: ='[14]LongTerm Post RPE Iss 31-08-16'!AP52/$D$2*$D$1 -> 0 | AR8: ='[14]LongTerm Post RPE Iss 31-08-16'!AQ52/$D$2*$D$1 -> 0
A9: LP, 2Bar or 4Bar Mains | D9: Mains | E9: ='[14]LongTerm Post RPE Iss 31-08-16'!D53/$D$2*$D$1 -> 3200407.403 | F9: ='[14]LongTerm Post RPE Iss 31-08-16'!E53/$D$2*$D$1 -> 6134824.165 | G9: ='[14]LongTerm Post RPE Iss 31-08-16'!F53/$D$2*$D$1 -> 5252173.744 | H9: ='[14]LongTerm Post RPE Iss 31-08-16'!G53/$D$2*$D$1 -> 3909592.326 | I9: ='[14]LongTerm Post RPE Iss 31-08-16'!H53/$D$2*$D$1 -> 4112441.225 | J9: ='[14]LongTerm Post RPE Iss 31-08-16'!I53/$D$2*$D$1 -> 2642336.211 | K9: ='[14]LongTerm Post RPE Iss 31-08-16'!J53/$D$2*$D$1 -> 2652791.165 | L9: ='[14]LongTerm Post RPE Iss 31-08-16'!K53/$D$2*$D$1 -> 2658844.034 | M9: ='[14]LongTerm Post RPE Iss 31-08-16'!L53/$D$2*$D$1 -> 2658844.034 | N9: ='[14]LongTerm Post RPE Iss 31-08-16'!M53/$D$2*$D$1 -> 2658844.034 | O9: ='[14]LongTerm Post RPE Iss 31-08-16'!N53/$D$2*$D$1 -> 2658844.034 | P9: ='[14]LongTerm Post RPE Iss 31-08-16'!O53/$D$2*$D$1 -> 147745.0137 | Q9: ='[14]LongTerm Post RPE Iss 31-08-16'!P53/$D$2*$D$1 -> 147745.0137 | R9: ='[14]LongTerm Post RPE Iss 31-08-16'!Q53/$D$2*$D$1 -> 147745.0137 | S9: ='[14]LongTerm Post RPE Iss 31-08-16'!R53/$D$2*$D$1 -> 147745.0137 | T9: ='[14]LongTerm Post RPE Iss 31-08-16'!S53/$D$2*$D$1 -> 147469.8833 | U9: ='[14]LongTerm Post RPE Iss 31-08-16'!T53/$D$2*$D$1 -> 147745.0137 | V9: ='[14]LongTerm Post RPE Iss 31-08-16'!U53/$D$2*$D$1 -> 147745.0137 | W9: ='[14]LongTerm Post RPE Iss 31-08-16'!V53/$D$2*$D$1 -> 147745.0137 | X9: ='[14]LongTerm Post RPE Iss 31-08-16'!W53/$D$2*$D$1 -> 147745.0137 | Y9: ='[14]LongTerm Post RPE Iss 31-08-16'!X53/$D$2*$D$1 -> 147745.0137 | Z9: ='[14]LongTerm Post RPE Iss 31-08-16'!Y53/$D$2*$D$1 -> 147745.0137 | AA9: ='[14]LongTerm Post RPE Iss 31-08-16'!Z53/$D$2*$D$1 -> 147745.0137 | AB9: ='[14]LongTerm Post RPE Iss 31-08-16'!AA53/$D$2*$D$1 -> 147745.0137 | AC9: ='[14]LongTerm Post RPE Iss 31-08-16'!AB53/$D$2*$D$1 -> 147469.8833 | AD9: ='[14]LongTerm Post RPE Iss 31-08-16'!AC53/$D$2*$D$1 -> 147745.0137 | AE9: ='[14]LongTerm Post RPE Iss 31-08-16'!AD53/$D$2*$D$1 -> 147745.0137 | AF9: ='[14]LongTerm Post RPE Iss 31-08-16'!AE53/$D$2*$D$1 -> 147745.0137 | AG9: ='[14]LongTerm Post RPE Iss 31-08-16'!AF53/$D$2*$D$1 -> 147745.0137 | AH9: ='[14]LongTerm Post RPE Iss 31-08-16'!AG53/$D$2*$D$1 -> 147745.0137 | AI9: ='[14]LongTerm Post RPE Iss 31-08-16'!AH53/$D$2*$D$1 -> 147745.0137 | AJ9: ='[14]LongTerm Post RPE Iss 31-08-16'!AI53/$D$2*$D$1 -> 147745.0137 | AK9: ='[14]LongTerm Post RPE Iss 31-08-16'!AJ53/$D$2*$D$1 -> 147745.0137 | AL9: ='[14]LongTerm Post RPE Iss 31-08-16'!AK53/$D$2*$D$1 -> 147745.0137 | AM9: ='[14]LongTerm Post RPE Iss 31-08-16'!AL53/$D$2*$D$1 -> 147745.0137 | AN9: ='[14]LongTerm Post RPE Iss 31-08-16'!AM53/$D$2*$D$1 -> 147745.0137 | AO9: ='[14]LongTerm Post RPE Iss 31-08-16'!AN53/$D$2*$D$1 -> 147745.0137 | AP9: ='[14]LongTerm Post RPE Iss 31-08-16'!AO53/$D$2*$D$1 -> 147745.0137 | AQ9: ='[14]LongTerm Post RPE Iss 31-08-16'!AP53/$D$2*$D$1 -> 147745.0137 | AR9: ='[14]LongTerm Post RPE Iss 31-08-16'!AQ53/$D$2*$D$1 -> 147745.0137
A10: Pressure Reduction | D10: Meters/PRS/Tele | E10: ='[14]LongTerm Post RPE Iss 31-08-16'!D54/$D$2*$D$1 -> 59560.07982 | F10: ='[14]LongTerm Post RPE Iss 31-08-16'!E54/$D$2*$D$1 -> 150172.7527 | G10: ='[14]LongTerm Post RPE Iss 31-08-16'!F54/$D$2*$D$1 -> 139591.9451 | H10: ='[14]LongTerm Post RPE Iss 31-08-16'!G54/$D$2*$D$1 -> 114951.2272 | I10: ='[14]LongTerm Post RPE Iss 31-08-16'!H54/$D$2*$D$1 -> 112147.3031 | J10: ='[14]LongTerm Post RPE Iss 31-08-16'!I54/$D$2*$D$1 -> 52294.18835 | K10: ='[14]LongTerm Post RPE Iss 31-08-16'!J54/$D$2*$D$1 -> 52294.18835 | L10: ='[14]LongTerm Post RPE Iss 31-08-16'!K54/$D$2*$D$1 -> 52294.18835 | M10: ='[14]LongTerm Post RPE Iss 31-08-16'!L54/$D$2*$D$1 -> 52294.18835 | N10: ='[14]LongTerm Post RPE Iss 31-08-16'!M54/$D$2*$D$1 -> 52294.18835 | O10: ='[14]LongTerm Post RPE Iss 31-08-16'!N54/$D$2*$D$1 -> 52294.18835 | P10: ='[14]LongTerm Post RPE Iss 31-08-16'!O54/$D$2*$D$1 -> 5857.12826 | Q10: ='[14]LongTerm Post RPE Iss 31-08-16'!P54/$D$2*$D$1 -> 5857.12826 | R10: ='[14]LongTerm Post RPE Iss 31-08-16'!Q54/$D$2*$D$1 -> 5857.12826 | S10: ='[14]LongTerm Post RPE Iss 31-08-16'!R54/$D$2*$D$1 -> 5857.12826 | T10: ='[14]LongTerm Post RPE Iss 31-08-16'!S54/$D$2*$D$1 -> 5857.12826 | U10: ='[14]LongTerm Post RPE Iss 31-08-16'!T54/$D$2*$D$1 -> 5857.12826 | V10: ='[14]LongTerm Post RPE Iss 31-08-16'!U54/$D$2*$D$1 -> 5857.12826 | W10: ='[14]LongTerm Post RPE Iss 31-08-16'!V54/$D$2*$D$1 -> 5857.12826 | X10: ='[14]LongTerm Post RPE Iss 31-08-16'!W54/$D$2*$D$1 -> 33689.77105 | Y10: ='[14]LongTerm Post RPE Iss 31-08-16'!X54/$D$2*$D$1 -> 66336.32735 | Z10: ='[14]LongTerm Post RPE Iss 31-08-16'!Y54/$D$2*$D$1 -> 159639.2169 | AA10: ='[14]LongTerm Post RPE Iss 31-08-16'!Z54/$D$2*$D$1 -> 149744.5058 | AB10: ='[14]LongTerm Post RPE Iss 31-08-16'!AA54/$D$2*$D$1 -> 125125.0566 | AC10: ='[14]LongTerm Post RPE Iss 31-08-16'!AB54/$D$2*$D$1 -> 122981.3242 | AD10: ='[14]LongTerm Post RPE Iss 31-08-16'!AC54/$D$2*$D$1 -> 58151.31661 | AE10: ='[14]LongTerm Post RPE Iss 31-08-16'!AD54/$D$2*$D$1 -> 58151.31661 | AF10: ='[14]LongTerm Post RPE Iss 31-08-16'!AE54/$D$2*$D$1 -> 58151.31661 | AG10: ='[14]LongTerm Post RPE Iss 31-08-16'!AF54/$D$2*$D$1 -> 58151.31661 | AH10: ='[14]LongTerm Post RPE Iss 31-08-16'!AG54/$D$2*$D$1 -> 58151.31661 | AI10: ='[14]LongTerm Post RPE Iss 31-08-16'!AH54/$D$2*$D$1 -> 58151.31661 | AJ10: ='[14]LongTerm Post RPE Iss 31-08-16'!AI54/$D$2*$D$1 -> 11714.25652 | AK10: ='[14]LongTerm Post RPE Iss 31-08-16'!AJ54/$D$2*$D$1 -> 11714.25652 | AL10: ='[14]LongTerm Post RPE Iss 31-08-16'!AK54/$D$2*$D$1 -> 11714.25652 | AM10: ='[14]LongTerm Post RPE Iss 31-08-16'!AL54/$D$2*$D$1 -> 11714.25652 | AN10: ='[14]LongTerm Post RPE Iss 31-08-16'!AM54/$D$2*$D$1 -> 11714.25652 | AO10: ='[14]LongTerm Post RPE Iss 31-08-16'!AN54/$D$2*$D$1 -> 11714.25652 | AP10: ='[14]LongTerm Post RPE Iss 31-08-16'!AO54/$D$2*$D$1 -> 11714.25652 | AQ10: ='[14]LongTerm Post RPE Iss 31-08-16'!AP54/$D$2*$D$1 -> 11714.25652 | AR10: ='[14]LongTerm Post RPE Iss 31-08-16'!AQ54/$D$2*$D$1 -> 11714.25652
A11: Domestic Services | D11: Services | E11: ='[14]LongTerm Post RPE Iss 31-08-16'!D55/$D$2*$D$1 -> 154180.8086 | F11: ='[14]LongTerm Post RPE Iss 31-08-16'!E55/$D$2*$D$1 -> 1901595.028 | G11: ='[14]LongTerm Post RPE Iss 31-08-16'!F55/$D$2*$D$1 -> 1117015.969 | H11: ='[14]LongTerm Post RPE Iss 31-08-16'!G55/$D$2*$D$1 -> 858134.7658 | I11: ='[14]LongTerm Post RPE Iss 31-08-16'!H55/$D$2*$D$1 -> 1053223.229 | J11: ='[14]LongTerm Post RPE Iss 31-08-16'!I55/$D$2*$D$1 -> 860559.8834 | K11: ='[14]LongTerm Post RPE Iss 31-08-16'!J55/$D$2*$D$1 -> 789951.9784 | L11: ='[14]LongTerm Post RPE Iss 31-08-16'!K55/$D$2*$D$1 -> 753508.524 | M11: ='[14]LongTerm Post RPE Iss 31-08-16'!L55/$D$2*$D$1 -> 989948.2551 | N11: ='[14]LongTerm Post RPE Iss 31-08-16'!M55/$D$2*$D$1 -> 774022.0878 | O11: ='[14]LongTerm Post RPE Iss 31-08-16'!N55/$D$2*$D$1 -> 814812.3622 | P11: ='[14]LongTerm Post RPE Iss 31-08-16'!O55/$D$2*$D$1 -> 892928.4106 | Q11: ='[14]LongTerm Post RPE Iss 31-08-16'!P55/$D$2*$D$1 -> 1129368.142 | R11: ='[14]LongTerm Post RPE Iss 31-08-16'!Q55/$D$2*$D$1 -> 892928.4106 | S11: ='[14]LongTerm Post RPE Iss 31-08-16'!R55/$D$2*$D$1 -> 933718.6849 | T11: ='[14]LongTerm Post RPE Iss 31-08-16'!S55/$D$2*$D$1 -> 892730.8279 | U11: ='[14]LongTerm Post RPE Iss 31-08-16'!T55/$D$2*$D$1 -> 1129368.142 | V11: ='[14]LongTerm Post RPE Iss 31-08-16'!U55/$D$2*$D$1 -> 892928.4106 | W11: ='[14]LongTerm Post RPE Iss 31-08-16'!V55/$D$2*$D$1 -> 933718.6849 | X11: ='[14]LongTerm Post RPE Iss 31-08-16'!W55/$D$2*$D$1 -> 858739.1375 | Y11: ='[14]LongTerm Post RPE Iss 31-08-16'!X55/$D$2*$D$1 -> 1095178.869 | Z11: ='[14]LongTerm Post RPE Iss 31-08-16'!Y55/$D$2*$D$1 -> 660561.9329 | AA11: ='[14]LongTerm Post RPE Iss 31-08-16'!Z55/$D$2*$D$1 -> 701352.2072 | AB11: ='[14]LongTerm Post RPE Iss 31-08-16'!AA55/$D$2*$D$1 -> 660561.9329 | AC11: ='[14]LongTerm Post RPE Iss 31-08-16'!AB55/$D$2*$D$1 -> 896804.0813 | AD11: ='[14]LongTerm Post RPE Iss 31-08-16'!AC55/$D$2*$D$1 -> 660561.9329 | AE11: ='[14]LongTerm Post RPE Iss 31-08-16'!AD55/$D$2*$D$1 -> 701352.2072 | AF11: ='[14]LongTerm Post RPE Iss 31-08-16'!AE55/$D$2*$D$1 -> 660561.9329 | AG11: ='[14]LongTerm Post RPE Iss 31-08-16'!AF55/$D$2*$D$1 -> 660561.9329 | AH11: ='[14]LongTerm Post RPE Iss 31-08-16'!AG55/$D$2*$D$1 -> 660561.9329 | AI11: ='[14]LongTerm Post RPE Iss 31-08-16'!AH55/$D$2*$D$1 -> 660561.9329 | AJ11: ='[14]LongTerm Post RPE Iss 31-08-16'!AI55/$D$2*$D$1 -> 660561.9329 | AK11: ='[14]LongTerm Post RPE Iss 31-08-16'!AJ55/$D$2*$D$1 -> 660561.9329 | AL11: ='[14]LongTerm Post RPE Iss 31-08-16'!AK55/$D$2*$D$1 -> 660561.9329 | AM11: ='[14]LongTerm Post RPE Iss 31-08-16'!AL55/$D$2*$D$1 -> 660561.9329 | AN11: ='[14]LongTerm Post RPE Iss 31-08-16'!AM55/$D$2*$D$1 -> 660561.9329 | AO11: ='[14]LongTerm Post RPE Iss 31-08-16'!AN55/$D$2*$D$1 -> 660561.9329 | AP11: ='[14]LongTerm Post RPE Iss 31-08-16'!AO55/$D$2*$D$1 -> 660561.9329 | AQ11: ='[14]LongTerm Post RPE Iss 31-08-16'!AP55/$D$2*$D$1 -> 660561.9329 | AR11: ='[14]LongTerm Post RPE Iss 31-08-16'!AQ55/$D$2*$D$1 -> 660561.9329
A12: Domestic Meters | D12: Meters/PRS/Tele | E12: ='[14]LongTerm Post RPE Iss 31-08-16'!D56/$D$2*$D$1 -> 33590.00541 | F12: ='[14]LongTerm Post RPE Iss 31-08-16'!E56/$D$2*$D$1 -> 446925.703 | G12: ='[14]LongTerm Post RPE Iss 31-08-16'!F56/$D$2*$D$1 -> 273786.4107 | H12: ='[14]LongTerm Post RPE Iss 31-08-16'!G56/$D$2*$D$1 -> 222796.2303 | I12: ='[14]LongTerm Post RPE Iss 31-08-16'!H56/$D$2*$D$1 -> 262889.6516 | J12: ='[14]LongTerm Post RPE Iss 31-08-16'!I56/$D$2*$D$1 -> 224710.4259 | K12: ='[14]LongTerm Post RPE Iss 31-08-16'!J56/$D$2*$D$1 -> 211831.08 | L12: ='[14]LongTerm Post RPE Iss 31-08-16'!K56/$D$2*$D$1 -> 205355.5231 | M12: ='[14]LongTerm Post RPE Iss 31-08-16'!L56/$D$2*$D$1 -> 257652.1181 | N12: ='[14]LongTerm Post RPE Iss 31-08-16'!M56/$D$2*$D$1 -> 209892.7874 | O12: ='[14]LongTerm Post RPE Iss 31-08-16'!N56/$D$2*$D$1 -> 218914.9278 | P12: ='[14]LongTerm Post RPE Iss 31-08-16'!O56/$D$2*$D$1 -> 236192.918 | Q12: ='[14]LongTerm Post RPE Iss 31-08-16'!P56/$D$2*$D$1 -> 288489.513 | R12: ='[14]LongTerm Post RPE Iss 31-08-16'!Q56/$D$2*$D$1 -> 236192.918 | S12: ='[14]LongTerm Post RPE Iss 31-08-16'!R56/$D$2*$D$1 -> 245215.0584 | T12: ='[14]LongTerm Post RPE Iss 31-08-16'!S56/$D$2*$D$1 -> 236077.1642 | U12: ='[14]LongTerm Post RPE Iss 31-08-16'!T56/$D$2*$D$1 -> 288489.513 | V12: ='[14]LongTerm Post RPE Iss 31-08-16'!U56/$D$2*$D$1 -> 236192.918 | W12: ='[14]LongTerm Post RPE Iss 31-08-16'!V56/$D$2*$D$1 -> 245215.0584 | X12: ='[14]LongTerm Post RPE Iss 31-08-16'!W56/$D$2*$D$1 -> 293971.327 | Y12: ='[14]LongTerm Post RPE Iss 31-08-16'!X56/$D$2*$D$1 -> 315035.7656 | Z12: ='[14]LongTerm Post RPE Iss 31-08-16'!Y56/$D$2*$D$1 -> 642464.6253 | AA12: ='[14]LongTerm Post RPE Iss 31-08-16'!Z56/$D$2*$D$1 -> 476030.5882 | AB12: ='[14]LongTerm Post RPE Iss 31-08-16'!AA56/$D$2*$D$1 -> 415960.0362 | AC12: ='[14]LongTerm Post RPE Iss 31-08-16'!AB56/$D$2*$D$1 -> 511534.3161 | AD12: ='[14]LongTerm Post RPE Iss 31-08-16'!AC56/$D$2*$D$1 -> 406132.2223 | AE12: ='[14]LongTerm Post RPE Iss 31-08-16'!AD56/$D$2*$D$1 -> 402468.4826 | AF12: ='[14]LongTerm Post RPE Iss 31-08-16'!AE56/$D$2*$D$1 -> 387068.0572 | AG12: ='[14]LongTerm Post RPE Iss 31-08-16'!AF56/$D$2*$D$1 -> 438579.0845 | AH12: ='[14]LongTerm Post RPE Iss 31-08-16'!AG56/$D$2*$D$1 -> 391537.1654 | AI12: ='[14]LongTerm Post RPE Iss 31-08-16'!AH56/$D$2*$D$1 -> 400423.7807 | AJ12: ='[14]LongTerm Post RPE Iss 31-08-16'!AI56/$D$2*$D$1 -> 417442.2314 | AK12: ='[14]LongTerm Post RPE Iss 31-08-16'!AJ56/$D$2*$D$1 -> 468953.2588 | AL12: ='[14]LongTerm Post RPE Iss 31-08-16'!AK56/$D$2*$D$1 -> 417442.2314 | AM12: ='[14]LongTerm Post RPE Iss 31-08-16'!AL56/$D$2*$D$1 -> 426328.8467 | AN12: ='[14]LongTerm Post RPE Iss 31-08-16'!AM56/$D$2*$D$1 -> 417328.2164 | AO12: ='[14]LongTerm Post RPE Iss 31-08-16'!AN56/$D$2*$D$1 -> 468953.2588 | AP12: ='[14]LongTerm Post RPE Iss 31-08-16'!AO56/$D$2*$D$1 -> 417442.2314 | AQ12: ='[14]LongTerm Post RPE Iss 31-08-16'!AP56/$D$2*$D$1 -> 426328.8467 | AR12: ='[14]LongTerm Post RPE Iss 31-08-16'!AQ56/$D$2*$D$1 -> 475334.2338
A13: I&C Services | D13: Services | E13: ='[14]LongTerm Post RPE Iss 31-08-16'!D57/$D$2*$D$1 -> 103497.7807 | F13: ='[14]LongTerm Post RPE Iss 31-08-16'!E57/$D$2*$D$1 -> 1276261.565 | G13: ='[14]LongTerm Post RPE Iss 31-08-16'!F57/$D$2*$D$1 -> 772365.611 | H13: ='[14]LongTerm Post RPE Iss 31-08-16'!G57/$D$2*$D$1 -> 732375.1783 | I13: ='[14]LongTerm Post RPE Iss 31-08-16'!H57/$D$2*$D$1 -> 727588.61 | J13: ='[14]LongTerm Post RPE Iss 31-08-16'!I57/$D$2*$D$1 -> 763867.4382 | K13: ='[14]LongTerm Post RPE Iss 31-08-16'!J57/$D$2*$D$1 -> 761453.1146 | L13: ='[14]LongTerm Post RPE Iss 31-08-16'!K57/$D$2*$D$1 -> 763867.4382 | M13: ='[14]LongTerm Post RPE Iss 31-08-16'!L57/$D$2*$D$1 -> 683008.0576 | N13: ='[14]LongTerm Post RPE Iss 31-08-16'!M57/$D$2*$D$1 -> 686997.8296 | O13: ='[14]LongTerm Post RPE Iss 31-08-16'!N57/$D$2*$D$1 -> 0 | P13: ='[14]LongTerm Post RPE Iss 31-08-16'!O57/$D$2*$D$1 -> 0 | Q13: ='[14]LongTerm Post RPE Iss 31-08-16'!P57/$D$2*$D$1 -> 0 | R13: ='[14]LongTerm Post RPE Iss 31-08-16'!Q57/$D$2*$D$1 -> 0 | S13: ='[14]LongTerm Post RPE Iss 31-08-16'!R57/$D$2*$D$1 -> 0 | T13: ='[14]LongTerm Post RPE Iss 31-08-16'!S57/$D$2*$D$1 -> 0 | U13: ='[14]LongTerm Post RPE Iss 31-08-16'!T57/$D$2*$D$1 -> 0 | V13: ='[14]LongTerm Post RPE Iss 31-08-16'!U57/$D$2*$D$1 -> 0 | W13: ='[14]LongTerm Post RPE Iss 31-08-16'!V57/$D$2*$D$1 -> 0 | X13: ='[14]LongTerm Post RPE Iss 31-08-16'!W57/$D$2*$D$1 -> 0 | Y13: ='[14]LongTerm Post RPE Iss 31-08-16'!X57/$D$2*$D$1 -> 0 | Z13: ='[14]LongTerm Post RPE Iss 31-08-16'!Y57/$D$2*$D$1 -> 0 | AA13: ='[14]LongTerm Post RPE Iss 31-08-16'!Z57/$D$2*$D$1 -> 0 | AB13: ='[14]LongTerm Post RPE Iss 31-08-16'!AA57/$D$2*$D$1 -> 0 | AC13: ='[14]LongTerm Post RPE Iss 31-08-16'!AB57/$D$2*$D$1 -> 0 | AD13: ='[14]LongTerm Post RPE Iss 31-08-16'!AC57/$D$2*$D$1 -> 0 | AE13: ='[14]LongTerm Post RPE Iss 31-08-16'!AD57/$D$2*$D$1 -> 0 | AF13: ='[14]LongTerm Post RPE Iss 31-08-16'!AE57/$D$2*$D$1 -> 0 | AG13: ='[14]LongTerm Post RPE Iss 31-08-16'!AF57/$D$2*$D$1 -> 0 | AH13: ='[14]LongTerm Post RPE Iss 31-08-16'!AG57/$D$2*$D$1 -> 0 | AI13: ='[14]LongTerm Post RPE Iss 31-08-16'!AH57/$D$2*$D$1 -> 0 | AJ13: ='[14]LongTerm Post RPE Iss 31-08-16'!AI57/$D$2*$D$1 -> 0 | AK13: ='[14]LongTerm Post RPE Iss 31-08-16'!AJ57/$D$2*$D$1 -> 0 | AL13: ='[14]LongTerm Post RPE Iss 31-08-16'!AK57/$D$2*$D$1 -> 0 | AM13: ='[14]LongTerm Post RPE Iss 31-08-16'!AL57/$D$2*$D$1 -> 0 | AN13: ='[14]LongTerm Post RPE Iss 31-08-16'!AM57/$D$2*$D$1 -> 0 | AO13: ='[14]LongTerm Post RPE Iss 31-08-16'!AN57/$D$2*$D$1 -> 0 | AP13: ='[14]LongTerm Post RPE Iss 31-08-16'!AO57/$D$2*$D$1 -> 0 | AQ13: ='[14]LongTerm Post RPE Iss 31-08-16'!AP57/$D$2*$D$1 -> 0 | AR13: ='[14]LongTerm Post RPE Iss 31-08-16'!AQ57/$D$2*$D$1 -> 0
A14: I&C Meters | D14: Meters/PRS/Tele | E14: ='[14]LongTerm Post RPE Iss 31-08-16'!D58/$D$2*$D$1 -> 143758.366 | F14: ='[14]LongTerm Post RPE Iss 31-08-16'!E58/$D$2*$D$1 -> 1328259.016 | G14: ='[14]LongTerm Post RPE Iss 31-08-16'!F58/$D$2*$D$1 -> 903727.6075 | H14: ='[14]LongTerm Post RPE Iss 31-08-16'!G58/$D$2*$D$1 -> 654893.8379 | I14: ='[14]LongTerm Post RPE Iss 31-08-16'!H58/$D$2*$D$1 -> 650613.6628 | J14: ='[14]LongTerm Post RPE Iss 31-08-16'!I58/$D$2*$D$1 -> 684483.5878 | K14: ='[14]LongTerm Post RPE Iss 31-08-16'!J58/$D$2*$D$1 -> 680420.9035 | L14: ='[14]LongTerm Post RPE Iss 31-08-16'!K58/$D$2*$D$1 -> 684483.5878 | M14: ='[14]LongTerm Post RPE Iss 31-08-16'!L58/$D$2*$D$1 -> 610225.8153 | N14: ='[14]LongTerm Post RPE Iss 31-08-16'!M58/$D$2*$D$1 -> 615222.6922 | O14: ='[14]LongTerm Post RPE Iss 31-08-16'!N58/$D$2*$D$1 -> 0 | P14: ='[14]LongTerm Post RPE Iss 31-08-16'!O58/$D$2*$D$1 -> 0 | Q14: ='[14]LongTerm Post RPE Iss 31-08-16'!P58/$D$2*$D$1 -> 0 | R14: ='[14]LongTerm Post RPE Iss 31-08-16'!Q58/$D$2*$D$1 -> 0 | S14: ='[14]LongTerm Post RPE Iss 31-08-16'!R58/$D$2*$D$1 -> 0 | T14: ='[14]LongTerm Post RPE Iss 31-08-16'!S58/$D$2*$D$1 -> 0 | U14: ='[14]LongTerm Post RPE Iss 31-08-16'!T58/$D$2*$D$1 -> 0 | V14: ='[14]LongTerm Post RPE Iss 31-08-16'!U58/$D$2*$D$1 -> 0 | W14: ='[14]LongTerm Post RPE Iss 31-08-16'!V58/$D$2*$D$1 -> 16837.89209 | X14: ='[14]LongTerm Post RPE Iss 31-08-16'!W58/$D$2*$D$1 -> 134742.7748 | Y14: ='[14]LongTerm Post RPE Iss 31-08-16'!X58/$D$2*$D$1 -> 145976.8164 | Z14: ='[14]LongTerm Post RPE Iss 31-08-16'!Y58/$D$2*$D$1 -> 1360183.136 | AA14: ='[14]LongTerm Post RPE Iss 31-08-16'!Z58/$D$2*$D$1 -> 931536.5251 | AB14: ='[14]LongTerm Post RPE Iss 31-08-16'!AA58/$D$2*$D$1 -> 679486.711 | AC14: ='[14]LongTerm Post RPE Iss 31-08-16'!AB58/$D$2*$D$1 -> 679486.711 | AD14: ='[14]LongTerm Post RPE Iss 31-08-16'!AC58/$D$2*$D$1 -> 684483.5878 | AE14: ='[14]LongTerm Post RPE Iss 31-08-16'!AD58/$D$2*$D$1 -> 680420.9035 | AF14: ='[14]LongTerm Post RPE Iss 31-08-16'!AE58/$D$2*$D$1 -> 684483.5878 | AG14: ='[14]LongTerm Post RPE Iss 31-08-16'!AF58/$D$2*$D$1 -> 610225.8153 | AH14: ='[14]LongTerm Post RPE Iss 31-08-16'!AG58/$D$2*$D$1 -> 615222.6922 | AI14: ='[14]LongTerm Post RPE Iss 31-08-16'!AH58/$D$2*$D$1 -> 0 | AJ14: ='[14]LongTerm Post RPE Iss 31-08-16'!AI58/$D$2*$D$1 -> 0 | AK14: ='[14]LongTerm Post RPE Iss 31-08-16'!AJ58/$D$2*$D$1 -> 0 | AL14: ='[14]LongTerm Post RPE Iss 31-08-16'!AK58/$D$2*$D$1 -> 0 | AM14: ='[14]LongTerm Post RPE Iss 31-08-16'!AL58/$D$2*$D$1 -> 0 | AN14: ='[14]LongTerm Post RPE Iss 31-08-16'!AM58/$D$2*$D$1 -> 0 | AO14: ='[14]LongTerm Post RPE Iss 31-08-16'!AN58/$D$2*$D$1 -> 0 | AP14: ='[14]LongTerm Post RPE Iss 31-08-16'!AO58/$D$2*$D$1 -> 0 | AQ14: ='[14]LongTerm Post RPE Iss 31-08-16'!AP58/$D$2*$D$1 -> 16837.89209 | AR14: ='[14]LongTerm Post RPE Iss 31-08-16'!AQ58/$D$2*$D$1 -> 134742.7748
A15: Other Capex | D15: Other | E15: ='[14]LongTerm Post RPE Iss 31-08-16'!D59/$D$2*$D$1 -> 386860.2494 | F15: ='[14]LongTerm Post RPE Iss 31-08-16'!E59/$D$2*$D$1 -> 383610.2951 | G15: ='[14]LongTerm Post RPE Iss 31-08-16'!F59/$D$2*$D$1 -> 381103.1418 | H15: ='[14]LongTerm Post RPE Iss 31-08-16'!G59/$D$2*$D$1 -> 378612.3745 | I15: ='[14]LongTerm Post RPE Iss 31-08-16'!H59/$D$2*$D$1 -> 376137.886 | J15: ='[14]LongTerm Post RPE Iss 31-08-16'!I59/$D$2*$D$1 -> 74722.23535 | K15: ='[14]LongTerm Post RPE Iss 31-08-16'!J59/$D$2*$D$1 -> 74722.23535 | L15: ='[14]LongTerm Post RPE Iss 31-08-16'!K59/$D$2*$D$1 -> 74722.23535 | M15: ='[14]LongTerm Post RPE Iss 31-08-16'!L59/$D$2*$D$1 -> 74722.23535 | N15: ='[14]LongTerm Post RPE Iss 31-08-16'!M59/$D$2*$D$1 -> 74722.23535 | O15: ='[14]LongTerm Post RPE Iss 31-08-16'!N59/$D$2*$D$1 -> 74722.23535 | P15: ='[14]LongTerm Post RPE Iss 31-08-16'!O59/$D$2*$D$1 -> 74722.23535 | Q15: ='[14]LongTerm Post RPE Iss 31-08-16'!P59/$D$2*$D$1 -> 74722.23535 | R15: ='[14]LongTerm Post RPE Iss 31-08-16'!Q59/$D$2*$D$1 -> 74722.23535 | S15: ='[14]LongTerm Post RPE Iss 31-08-16'!R59/$D$2*$D$1 -> 74722.23535 | T15: ='[14]LongTerm Post RPE Iss 31-08-16'!S59/$D$2*$D$1 -> 74722.23535 | U15: ='[14]LongTerm Post RPE Iss 31-08-16'!T59/$D$2*$D$1 -> 74722.23535 | V15: ='[14]LongTerm Post RPE Iss 31-08-16'!U59/$D$2*$D$1 -> 74722.23535 | W15: ='[14]LongTerm Post RPE Iss 31-08-16'!V59/$D$2*$D$1 -> 74722.23535 | X15: ='[14]LongTerm Post RPE Iss 31-08-16'!W59/$D$2*$D$1 -> 74722.23535 | Y15: ='[14]LongTerm Post RPE Iss 31-08-16'!X59/$D$2*$D$1 -> 74722.23535 | Z15: ='[14]LongTerm Post RPE Iss 31-08-16'!Y59/$D$2*$D$1 -> 74722.23535 | AA15: ='[14]LongTerm Post RPE Iss 31-08-16'!Z59/$D$2*$D$1 -> 74722.23535 | AB15: ='[14]LongTerm Post RPE Iss 31-08-16'!AA59/$D$2*$D$1 -> 74722.23535 | AC15: ='[14]LongTerm Post RPE Iss 31-08-16'!AB59/$D$2*$D$1 -> 74722.23535 | AD15: ='[14]LongTerm Post RPE Iss 31-08-16'!AC59/$D$2*$D$1 -> 74722.23535 | AE15: ='[14]LongTerm Post RPE Iss 31-08-16'!AD59/$D$2*$D$1 -> 74722.23535 | AF15: ='[14]LongTerm Post RPE Iss 31-08-16'!AE59/$D$2*$D$1 -> 74722.23535 | AG15: ='[14]LongTerm Post RPE Iss 31-08-16'!AF59/$D$2*$D$1 -> 74722.23535 | AH15: ='[14]LongTerm Post RPE Iss 31-08-16'!AG59/$D$2*$D$1 -> 74722.23535 | AI15: ='[14]LongTerm Post RPE Iss 31-08-16'!AH59/$D$2*$D$1 -> 74722.23535 | AJ15: ='[14]LongTerm Post RPE Iss 31-08-16'!AI59/$D$2*$D$1 -> 74722.23535 | AK15: ='[14]LongTerm Post RPE Iss 31-08-16'!AJ59/$D$2*$D$1 -> 74722.23535 | AL15: ='[14]LongTerm Post RPE Iss 31-08-16'!AK59/$D$2*$D$1 -> 74722.23535 | AM15: ='[14]LongTerm Post RPE Iss 31-08-16'!AL59/$D$2*$D$1 -> 74722.23535 | AN15: ='[14]LongTerm Post RPE Iss 31-08-16'!AM59/$D$2*$D$1 -> 74722.23535 | AO15: ='[14]LongTerm Post RPE Iss 31-08-16'!AN59/$D$2*$D$1 -> 74722.23535 | AP15: ='[14]LongTerm Post RPE Iss 31-08-16'!AO59/$D$2*$D$1 -> 74722.23535 | AQ15: ='[14]LongTerm Post RPE Iss 31-08-16'!AP59/$D$2*$D$1 -> 74722.23535 | AR15: ='[14]LongTerm Post RPE Iss 31-08-16'!AQ59/$D$2*$D$1 -> 74722.23535
A16: TMA | D16: Mains | E16: ='[14]LongTerm Post RPE Iss 31-08-16'!D60/$D$2*$D$1 -> 345808.5992 | F16: ='[14]LongTerm Post RPE Iss 31-08-16'!E60/$D$2*$D$1 -> 931268.0758 | G16: ='[14]LongTerm Post RPE Iss 31-08-16'!F60/$D$2*$D$1 -> 714155.5324 | H16: ='[14]LongTerm Post RPE Iss 31-08-16'!G60/$D$2*$D$1 -> 550010.227 | I16: ='[14]LongTerm Post RPE Iss 31-08-16'!H60/$D$2*$D$1 -> 589325.3064 | J16: ='[14]LongTerm Post RPE Iss 31-08-16'!I60/$D$2*$D$1 -> 426676.3533 | K16: ='[14]LongTerm Post RPE Iss 31-08-16'!J60/$D$2*$D$1 -> 420419.6258 | L16: ='[14]LongTerm Post RPE Iss 31-08-16'!K60/$D$2*$D$1 -> 417621.9996 | M16: ='[14]LongTerm Post RPE Iss 31-08-16'!L60/$D$2*$D$1 -> 433180.0346 | N16: ='[14]LongTerm Post RPE Iss 31-08-16'!M60/$D$2*$D$1 -> 411986.3951 | O16: ='[14]LongTerm Post RPE Iss 31-08-16'!N60/$D$2*$D$1 -> 347365.6396 | P16: ='[14]LongTerm Post RPE Iss 31-08-16'!O60/$D$2*$D$1 -> 104067.3424 | Q16: ='[14]LongTerm Post RPE Iss 31-08-16'!P60/$D$2*$D$1 -> 127711.3155 | R16: ='[14]LongTerm Post RPE Iss 31-08-16'!Q60/$D$2*$D$1 -> 104067.3424 | S16: ='[14]LongTerm Post RPE Iss 31-08-16'!R60/$D$2*$D$1 -> 108146.3699 | T16: ='[14]LongTerm Post RPE Iss 31-08-16'!S60/$D$2*$D$1 -> 104020.0711 | U16: ='[14]LongTerm Post RPE Iss 31-08-16'!T60/$D$2*$D$1 -> 127711.3155 | V16: ='[14]LongTerm Post RPE Iss 31-08-16'!U60/$D$2*$D$1 -> 104067.3424 | W16: ='[14]LongTerm Post RPE Iss 31-08-16'!V60/$D$2*$D$1 -> 108146.3699 | X16: ='[14]LongTerm Post RPE Iss 31-08-16'!W60/$D$2*$D$1 -> 100648.4151 | Y16: ='[14]LongTerm Post RPE Iss 31-08-16'!X60/$D$2*$D$1 -> 124292.3882 | Z16: ='[14]LongTerm Post RPE Iss 31-08-16'!Y60/$D$2*$D$1 -> 80830.69466 | AA16: ='[14]LongTerm Post RPE Iss 31-08-16'!Z60/$D$2*$D$1 -> 84909.72209 | AB16: ='[14]LongTerm Post RPE Iss 31-08-16'!AA60/$D$2*$D$1 -> 80830.69466 | AC16: ='[14]LongTerm Post RPE Iss 31-08-16'!AB60/$D$2*$D$1 -> 104427.3965 | AD16: ='[14]LongTerm Post RPE Iss 31-08-16'!AC60/$D$2*$D$1 -> 80830.69466 | AE16: ='[14]LongTerm Post RPE Iss 31-08-16'!AD60/$D$2*$D$1 -> 84909.72209 | AF16: ='[14]LongTerm Post RPE Iss 31-08-16'!AE60/$D$2*$D$1 -> 80830.69466 | AG16: ='[14]LongTerm Post RPE Iss 31-08-16'!AF60/$D$2*$D$1 -> 80830.69466 | AH16: ='[14]LongTerm Post RPE Iss 31-08-16'!AG60/$D$2*$D$1 -> 80830.69466 | AI16: ='[14]LongTerm Post RPE Iss 31-08-16'!AH60/$D$2*$D$1 -> 80830.69466 | AJ16: ='[14]LongTerm Post RPE Iss 31-08-16'!AI60/$D$2*$D$1 -> 80830.69466 | AK16: ='[14]LongTerm Post RPE Iss 31-08-16'!AJ60/$D$2*$D$1 -> 80830.69466 | AL16: ='[14]LongTerm Post RPE Iss 31-08-16'!AK60/$D$2*$D$1 -> 80830.69466 | AM16: ='[14]LongTerm Post RPE Iss 31-08-16'!AL60/$D$2*$D$1 -> 80830.69466 | AN16: ='[14]LongTerm Post RPE Iss 31-08-16'!AM60/$D$2*$D$1 -> 80830.69466 | AO16: ='[14]LongTerm Post RPE Iss 31-08-16'!AN60/$D$2*$D$1 -> 80830.69466 | AP16: ='[14]LongTerm Post RPE Iss 31-08-16'!AO60/$D$2*$D$1 -> 80830.69466 | AQ16: ='[14]LongTerm Post RPE Iss 31-08-16'!AP60/$D$2*$D$1 -> 80830.69466 | AR16: ='[14]LongTerm Post RPE Iss 31-08-16'!AQ60/$D$2*$D$1 -> 80830.69466
E17: =ROUND(SUM(E8:E16),0)=ROUND('[14]LongTerm Post RPE Iss 31-08-16'!D62/$D$2*$D$1,0) -> TRUE | F17: =ROUND(SUM(F8:F16),0)=ROUND('[14]LongTerm Post RPE Iss 31-08-16'!E62/$D$2*$D$1,0) -> TRUE | G17: =ROUND(SUM(G8:G16),0)=ROUND('[14]LongTerm Post RPE Iss 31-08-16'!F62/$D$2*$D$1,0) -> TRUE | H17: =ROUND(SUM(H8:H16),0)=ROUND('[14]LongTerm Post RPE Iss 31-08-16'!G62/$D$2*$D$1,0) -> TRUE | I17: =ROUND(SUM(I8:I16),0)=ROUND('[14]LongTerm Post RPE Iss 31-08-16'!H62/$D$2*$D$1,0) -> TRUE | J17: =ROUND(SUM(J8:J16),0)=ROUND('[14]LongTerm Post RPE Iss 31-08-16'!I62/$D$2*$D$1,0) -> TRUE | K17: =ROUND(SUM(K8:K16),0)=ROUND('[14]LongTerm Post RPE Iss 31-08-16'!J62/$D$2*$D$1,0) -> TRUE | L17: =ROUND(SUM(L8:L16),0)=ROUND('[14]LongTerm Post RPE Iss 31-08-16'!K62/$D$2*$D$1,0) -> TRUE | M17: =ROUND(SUM(M8:M16),0)=ROUND('[14]LongTerm Post RPE Iss 31-08-16'!L62/$D$2*$D$1,0) -> TRUE | N17: =ROUND(SUM(N8:N16),0)=ROUND('[14]LongTerm Post RPE Iss 31-08-16'!M62/$D$2*$D$1,0) -> TRUE | O17: =ROUND(SUM(O8:O16),0)=ROUND('[14]LongTerm Post RPE Iss 31-08-16'!N62/$D$2*$D$1,0) -> TRUE | P17: =ROUND(SUM(P8:P16),0)=ROUND('[14]LongTerm Post RPE Iss 31-08-16'!O62/$D$2*$D$1,0) -> TRUE | Q17: =ROUND(SUM(Q8:Q16),0)=ROUND('[14]LongTerm Post RPE Iss 31-08-16'!P62/$D$2*$D$1,0) -> TRUE | R17: =ROUND(SUM(R8:R16),0)=ROUND('[14]LongTerm Post RPE Iss 31-08-16'!Q62/$D$2*$D$1,0) -> TRUE | S17: =ROUND(SUM(S8:S16),0)=ROUND('[14]LongTerm Post RPE Iss 31-08-16'!R62/$D$2*$D$1,0) -> TRUE | T17: =ROUND(SUM(T8:T16),0)=ROUND('[14]LongTerm Post RPE Iss 31-08-16'!S62/$D$2*$D$1,0) -> TRUE | U17: =ROUND(SUM(U8:U16),0)=ROUND('[14]LongTerm Post RPE Iss 31-08-16'!T62/$D$2*$D$1,0) -> TRUE | V17: =ROUND(SUM(V8:V16),0)=ROUND('[14]LongTerm Post RPE Iss 31-08-16'!U62/$D$2*$D$1,0) -> TRUE | W17: =ROUND(SUM(W8:W16),0)=ROUND('[14]LongTerm Post RPE Iss 31-08-16'!V62/$D$2*$D$1,0) -> TRUE | X17: =ROUND(SUM(X8:X16),0)=ROUND('[14]LongTerm Post RPE Iss 31-08-16'!W62/$D$2*$D$1,0) -> TRUE | Y17: =ROUND(SUM(Y8:Y16),0)=ROUND('[14]LongTerm Post RPE Iss 31-08-16'!X62/$D$2*$D$1,0) -> TRUE | Z17: =ROUND(SUM(Z8:Z16),0)=ROUND('[14]LongTerm Post RPE Iss 31-08-16'!Y62/$D$2*$D$1,0) -> TRUE | AA17: =ROUND(SUM(AA8:AA16),0)=ROUND('[14]LongTerm Post RPE Iss 31-08-16'!Z62/$D$2*$D$1,0) -> TRUE | AB17: =ROUND(SUM(AB8:AB16),0)=ROUND('[14]LongTerm Post RPE Iss 31-08-16'!AA62/$D$2*$D$1,0) -> TRUE | AC17: =ROUND(SUM(AC8:AC16),0)=ROUND('[14]LongTerm Post RPE Iss 31-08-16'!AB62/$D$2*$D$1,0) -> TRUE | AD17: =ROUND(SUM(AD8:AD16),0)=ROUND('[14]LongTerm Post RPE Iss 31-08-16'!AC62/$D$2*$D$1,0) -> TRUE | AE17: =ROUND(SUM(AE8:AE16),0)=ROUND('[14]LongTerm Post RPE Iss 31-08-16'!AD62/$D$2*$D$1,0) -> TRUE | AF17: =ROUND(SUM(AF8:AF16),0)=ROUND('[14]LongTerm Post RPE Iss 31-08-16'!AE62/$D$2*$D$1,0) -> TRUE | AG17: =ROUND(SUM(AG8:AG16),0)=ROUND('[14]LongTerm Post RPE Iss 31-08-16'!AF62/$D$2*$D$1,0) -> TRUE | AH17: =ROUND(SUM(AH8:AH16),0)=ROUND('[14]LongTerm Post RPE Iss 31-08-16'!AG62/$D$2*$D$1,0) -> TRUE | AI17: =ROUND(SUM(AI8:AI16),0)=ROUND('[14]LongTerm Post RPE Iss 31-08-16'!AH62/$D$2*$D$1,0) -> TRUE | AJ17: =ROUND(SUM(AJ8:AJ16),0)=ROUND('[14]LongTerm Post RPE Iss 31-08-16'!AI62/$D$2*$D$1,0) -> TRUE | AK17: =ROUND(SUM(AK8:AK16),0)=ROUND('[14]LongTerm Post RPE Iss 31-08-16'!AJ62/$D$2*$D$1,0) -> TRUE | AL17: =ROUND(SUM(AL8:AL16),0)=ROUND('[14]LongTerm Post RPE Iss 31-08-16'!AK62/$D$2*$D$1,0) -> TRUE | AM17: =ROUND(SUM(AM8:AM16),0)=ROUND('[14]LongTerm Post RPE Iss 31-08-16'!AL62/$D$2*$D$1,0) -> TRUE | AN17: =ROUND(SUM(AN8:AN16),0)=ROUND('[14]LongTerm Post RPE Iss 31-08-16'!AM62/$D$2*$D$1,0) -> TRUE | AO17: =ROUND(SUM(AO8:AO16),0)=ROUND('[14]LongTerm Post RPE Iss 31-08-16'!AN62/$D$2*$D$1,0) -> TRUE | AP17: =ROUND(SUM(AP8:AP16),0)=ROUND('[14]LongTerm Post RPE Iss 31-08-16'!AO62/$D$2*$D$1,0) -> TRUE | AQ17: =ROUND(SUM(AQ8:AQ16),0)=ROUND('[14]LongTerm Post RPE Iss 31-08-16'!AP62/$D$2*$D$1,0) -> TRUE | AR17: =ROUND(SUM(AR8:AR16),0)=ROUND('[14]LongTerm Post RPE Iss 31-08-16'!AQ62/$D$2*$D$1,0) -> TRUE
A18: Capex
A19: Total Capex - Av £2014 - UR Final Det | E19: =SUM(E8:E16) -> 4427663.292 | F19: 12552916.6 | G19: 9553919.962 | H19: 7421366.167 | I19: 7884366.874 | J19: 5729650.323 | K19: 5643884.291 | L19: 5610697.53 | M19: 5759874.738 | N19: 5483982.25 | O19: 4166953.387 | P19: 1461513.048 | Q19: 1773893.348 | R19: 1461513.048 | S19: 1515404.49 | T19: 1460877.31 | U19: 1773893.348 | V19: 1461513.048 | W19: 1532242.383 | X19: 1644258.675 | Y19: 1969287.415 | Z19: 3126146.855 | AA19: 2566040.798 | AB19: 2184431.68 | AC19: 2537425.948 | AD19: 2112627.003 | AE19: 2149769.881 | AF19: 2093562.838 | AG19: 2070816.093 | AH19: 2028771.051 | AI19: 1422434.974 | AJ19: 1393016.365 | AK19: 1444527.392 | AL19: 1393016.365 | AM19: 1401902.98 | AN19: 1392902.35 | AO19: 1444527.392 | AP19: 1393016.365 | AQ19: 1418740.872 | AR19: 1585651.142
A21: Opex
A22: Total Opex - Av £2014 - UR Final Det | E22: ='[15]Pi Model Linked Summary'!B5/$D$2*$D$1 -> 843010.1674 | F22: ='[15]Pi Model Linked Summary'!C5/$D$2*$D$1 -> 2156026.499 | G22: ='[15]Pi Model Linked Summary'!D5/$D$2*$D$1 -> 1971310.831 | H22: ='[15]Pi Model Linked Summary'!E5/$D$2*$D$1 -> 1693885.456 | I22: ='[15]Pi Model Linked Summary'!F5/$D$2*$D$1 -> 2015342.36 | J22: ='[15]Pi Model Linked Summary'!G5/$D$2*$D$1 -> 1476414.514 | K22: ='[15]Pi Model Linked Summary'!H5/$D$2*$D$1 -> 1648941.3 | L22: ='[15]Pi Model Linked Summary'!I5/$D$2*$D$1 -> 1528942.707 | M22: ='[15]Pi Model Linked Summary'!J5/$D$2*$D$1 -> 1583217.288 | N22: ='[15]Pi Model Linked Summary'!K5/$D$2*$D$1 -> 1588646.273 | O22: ='[15]Pi Model Linked Summary'!L5/$D$2*$D$1 -> 1768593.223 | P22: ='[15]Pi Model Linked Summary'!M5/$D$2*$D$1 -> 1656505.374 | Q22: ='[15]Pi Model Linked Summary'!N5/$D$2*$D$1 -> 1719213.715 | R22: ='[15]Pi Model Linked Summary'!O5/$D$2*$D$1 -> 1733634.057 | S22: ='[15]Pi Model Linked Summary'!P5/$D$2*$D$1 -> 1923166.822 | T22: ='[15]Pi Model Linked Summary'!Q5/$D$2*$D$1 -> 1821298.551 | U22: ='[15]Pi Model Linked Summary'!R5/$D$2*$D$1 -> 1894902.135 | V22: ='[15]Pi Model Linked Summary'!S5/$D$2*$D$1 -> 1920938.054 | W22: ='[15]Pi Model Linked Summary'!T5/$D$2*$D$1 -> 2122854.356 | X22: ='[15]Pi Model Linked Summary'!U5/$D$2*$D$1 -> 2034188.356 | Y22: ='[15]Pi Model Linked Summary'!V5/$D$2*$D$1 -> 2121867.073 | Z22: ='[15]Pi Model Linked Summary'!W5/$D$2*$D$1 -> 2162908.698 | AA22: ='[15]Pi Model Linked Summary'!X5/$D$2*$D$1 -> 2380822.804 | AB22: ='[15]Pi Model Linked Summary'!Y5/$D$2*$D$1 -> 2309212.296 | AC22: ='[15]Pi Model Linked Summary'!Z5/$D$2*$D$1 -> 2415074.123 | AD22: ='[15]Pi Model Linked Summary'!AA5/$D$2*$D$1 -> 2475501.028 | AE22: ='[15]Pi Model Linked Summary'!AB5/$D$2*$D$1 -> 2566978.936 | AF22: ='[15]Pi Model Linked Summary'!AC5/$D$2*$D$1 -> 2664504.874 | AG22: ='[15]Pi Model Linked Summary'!AD5/$D$2*$D$1 -> 2768478.704 | AH22: ='[15]Pi Model Linked Summary'!AE5/$D$2*$D$1 -> 2879326.727 | AI22: ='[15]Pi Model Linked Summary'!AF5/$D$2*$D$1 -> 2997503.428 | AJ22: ='[15]Pi Model Linked Summary'!AG5/$D$2*$D$1 -> 3123493.339 | AK22: ='[15]Pi Model Linked Summary'!AH5/$D$2*$D$1 -> 3257813.029 | AL22: ='[15]Pi Model Linked Summary'!AI5/$D$2*$D$1 -> 3401013.217 | AM22: ='[15]Pi Model Linked Summary'!AJ5/$D$2*$D$1 -> 3553681.034 | AN22: ='[15]Pi Model Linked Summary'!AK5/$D$2*$D$1 -> 3716442.43 | AO22: ='[15]Pi Model Linked Summary'!AL5/$D$2*$D$1 -> 3889964.738 | AP22: ='[15]Pi Model Linked Summary'!AM5/$D$2*$D$1 -> 4074959.412 | AQ22: ='[15]Pi Model Linked Summary'!AN5/$D$2*$D$1 -> 4272184.943 | AR22: ='[15]Pi Model Linked Summary'!AO5/$D$2*$D$1 -> 4482449.969
A24: Volumes (Therms)
A25: GD17 FD
A26: Domestic & Very Small I&C (Tariff) | B26: P1 | E26: ='[16]SGN|Volumes'!H56+'[16]SGN|Volumes'!H58 -> 239813 | F26: ='[16]SGN|Volumes'!I56+'[16]SGN|Volumes'!I58 -> 1043066.5 | G26: ='[16]SGN|Volumes'!J56+'[16]SGN|Volumes'!J58 -> 2212093 | H26: ='[16]SGN|Volumes'!K56+'[16]SGN|Volumes'!K58 -> 3042876 | I26: ='[16]SGN|Volumes'!L56+'[16]SGN|Volumes'!L58 -> 3922058 | J26: ='[16]SGN|Volumes'!M56+'[16]SGN|Volumes'!M58 -> 4750102.829 | K26: ='[16]SGN|Volumes'!N56+'[16]SGN|Volumes'!N58 -> 5499338.8 | L26: ='[16]SGN|Volumes'!O56+'[16]SGN|Volumes'!O58 -> 6216649.214 | M26: ='[16]SGN|Volumes'!P56+'[16]SGN|Volumes'!P58 -> 6945324.434 | N26: ='[16]SGN|Volumes'!Q56+'[16]SGN|Volumes'!Q58 -> 7646107 | O26: ='[16]SGN|Volumes'!R56+'[16]SGN|Volumes'!R58 -> 8137014.56 | P26: ='[16]SGN|Volumes'!S56+'[16]SGN|Volumes'!S58 -> 8483554.52 | Q26: ='[16]SGN|Volumes'!T56+'[16]SGN|Volumes'!T58 -> 8886143.394 | R26: ='[16]SGN|Volumes'!U56+'[16]SGN|Volumes'!U58 -> 9279898.897 | S26: ='[16]SGN|Volumes'!V56+'[16]SGN|Volumes'!V58 -> 9625909.029 | T26: ='[16]SGN|Volumes'!W56+'[16]SGN|Volumes'!W58 -> 9963643.303 | U26: ='[16]SGN|Volumes'!X56+'[16]SGN|Volumes'!X58 -> 10331459.46 | V26: ='[16]SGN|Volumes'!Y56+'[16]SGN|Volumes'!Y58 -> 10690445.51 | W26: ='[16]SGN|Volumes'!Z56+'[16]SGN|Volumes'!Z58 -> 11003148.64 | X26: ='[16]SGN|Volumes'!AA56+'[16]SGN|Volumes'!AA58 -> 11301459.54 | Y26: ='[16]SGN|Volumes'!AB56+'[16]SGN|Volumes'!AB58 -> 11622123.13 | Z26: ='[16]SGN|Volumes'!AC56+'[16]SGN|Volumes'!AC58 -> 11897199.75 | AA26: ='[16]SGN|Volumes'!AD56+'[16]SGN|Volumes'!AD58 -> 12092131.11 | AB26: ='[16]SGN|Volumes'!AE56+'[16]SGN|Volumes'!AE58 -> 12281009.61 | AC26: ='[16]SGN|Volumes'!AF56+'[16]SGN|Volumes'!AF58 -> 12498459.77 | AD26: ='[16]SGN|Volumes'!AG56+'[16]SGN|Volumes'!AG58 -> 12708497.76 | AE26: ='[16]SGN|Volumes'!AH56+'[16]SGN|Volumes'!AH58 -> 12877369.81 | AF26: ='[16]SGN|Volumes'!AI56+'[16]SGN|Volumes'!AI58 -> 13040020.17 | AG26: ='[16]SGN|Volumes'!AJ56+'[16]SGN|Volumes'!AJ58 -> 13229796.01 | AH26: ='[16]SGN|Volumes'!AK56+'[16]SGN|Volumes'!AK58 -> 13398438.43 | AI26: ='[16]SGN|Volumes'!AL56+'[16]SGN|Volumes'!AL58 -> 13506834.56 | AJ26: ='[16]SGN|Volumes'!AM56+'[16]SGN|Volumes'!AM58 -> 13530759.95 | AK26: ='[16]SGN|Volumes'!AN56+'[16]SGN|Volumes'!AN58 -> 13472564.08 | AL26: ='[16]SGN|Volumes'!AO56+'[16]SGN|Volumes'!AO58 -> 13412277.13 | AM26: ='[16]SGN|Volumes'!AP56+'[16]SGN|Volumes'!AP58 -> 13349899.09 | AN26: ='[16]SGN|Volumes'!AQ56+'[16]SGN|Volumes'!AQ58 -> 13285429.96 | AO26: ='[16]SGN|Volumes'!AR56+'[16]SGN|Volumes'!AR58 -> 13218869.75 | AP26: ='[16]SGN|Volumes'!AS56+'[16]SGN|Volumes'!AS58 -> 13106479.91 | AQ26: ='[16]SGN|Volumes'!AT56+'[16]SGN|Volumes'!AT58 -> 12949828.75 | AR26: ='[16]SGN|Volumes'!AU56+'[16]SGN|Volumes'!AU58 -> 12793177.6
A27: SME (Tarriff) | B27: P2 | E27: ='[16]SGN|Volumes'!H59 -> 101310 | F27: ='[16]SGN|Volumes'!I59 -> 475850 | G27: ='[16]SGN|Volumes'!J59 -> 1092920 | H27: ='[16]SGN|Volumes'!K59 -> 1630170 | I27: ='[16]SGN|Volumes'!L59 -> 2164350 | J27: ='[16]SGN|Volumes'!M59 -> 2678443.429 | K27: ='[16]SGN|Volumes'!N59 -> 3183326.857 | L27: ='[16]SGN|Volumes'!O59 -> 3679000.286 | M27: ='[16]SGN|Volumes'!P59 -> 4138781.029 | N27: ='[16]SGN|Volumes'!Q59 -> 4563379.571 | O27: ='[16]SGN|Volumes'!R59 -> 4752570.514 | P27: ='[16]SGN|Volumes'!S59 -> 4709625.6 | Q27: ='[16]SGN|Volumes'!T59 -> 4666680.686 | R27: ='[16]SGN|Volumes'!U59 -> 4623735.771 | S27: ='[16]SGN|Volumes'!V59 -> 4580790.857 | T27: ='[16]SGN|Volumes'!W59 -> 4537845.943 | U27: ='[16]SGN|Volumes'!X59 -> 4494901.029 | V27: ='[16]SGN|Volumes'!Y59 -> 4451956.114 | W27: ='[16]SGN|Volumes'!Z59 -> 4409011.2 | X27: ='[16]SGN|Volumes'!AA59 -> 4366066.286 | Y27: ='[16]SGN|Volumes'!AB59 -> 4323121.371 | Z27: ='[16]SGN|Volumes'!AC59 -> 4280176.457 | AA27: ='[16]SGN|Volumes'!AD59 -> 4237231.543 | AB27: ='[16]SGN|Volumes'!AE59 -> 4194286.629 | AC27: ='[16]SGN|Volumes'!AF59 -> 4151341.714 | AD27: ='[16]SGN|Volumes'!AG59 -> 4108396.8 | AE27: ='[16]SGN|Volumes'!AH59 -> 4065451.886 | AF27: ='[16]SGN|Volumes'!AI59 -> 4022506.971 | AG27: ='[16]SGN|Volumes'!AJ59 -> 3979562.057 | AH27: ='[16]SGN|Volumes'!AK59 -> 3936617.143 | AI27: ='[16]SGN|Volumes'!AL59 -> 3893672.229 | AJ27: ='[16]SGN|Volumes'!AM59 -> 3850727.314 | AK27: ='[16]SGN|Volumes'!AN59 -> 3807782.4 | AL27: ='[16]SGN|Volumes'!AO59 -> 3764837.486 | AM27: ='[16]SGN|Volumes'!AP59 -> 3721892.571 | AN27: ='[16]SGN|Volumes'!AQ59 -> 3678947.657 | AO27: ='[16]SGN|Volumes'!AR59 -> 3636002.743 | AP27: ='[16]SGN|Volumes'!AS59 -> 3593057.829 | AQ27: ='[16]SGN|Volumes'!AT59 -> 3550112.914 | AR27: ='[16]SGN|Volumes'!AU59 -> 3507168
A28: Large I&C (Tarriff) | B28: P3 | E28: ='[16]SGN|Volumes'!H60 -> 37500 | F28: ='[16]SGN|Volumes'!I60 -> 325781.25 | G28: ='[16]SGN|Volumes'!J60 -> 926367.1875 | H28: ='[16]SGN|Volumes'!K60 -> 1238671.875 | I28: ='[16]SGN|Volumes'!L60 -> 1238671.875 | J28: ='[16]SGN|Volumes'!M60 -> 1228054.688 | K28: ='[16]SGN|Volumes'!N60 -> 1217437.5 | L28: ='[16]SGN|Volumes'!O60 -> 1206820.312 | M28: ='[16]SGN|Volumes'!P60 -> 1196203.125 | N28: ='[16]SGN|Volumes'!Q60 -> 1185585.938 | O28: ='[16]SGN|Volumes'!R60 -> 1174968.75 | P28: ='[16]SGN|Volumes'!S60 -> 1164351.562 | Q28: ='[16]SGN|Volumes'!T60 -> 1153734.375 | R28: ='[16]SGN|Volumes'!U60 -> 1143117.188 | S28: ='[16]SGN|Volumes'!V60 -> 1132500 | T28: ='[16]SGN|Volumes'!W60 -> 1121882.812 | U28: ='[16]SGN|Volumes'!X60 -> 1111265.625 | V28: ='[16]SGN|Volumes'!Y60 -> 1100648.438 | W28: ='[16]SGN|Volumes'!Z60 -> 1090031.25 | X28: ='[16]SGN|Volumes'!AA60 -> 1079414.062 | Y28: ='[16]SGN|Volumes'!AB60 -> 1068796.875 | Z28: ='[16]SGN|Volumes'!AC60 -> 1058179.688 | AA28: ='[16]SGN|Volumes'!AD60 -> 1047562.5 | AB28: ='[16]SGN|Volumes'!AE60 -> 1036945.312 | AC28: ='[16]SGN|Volumes'!AF60 -> 1026328.125 | AD28: ='[16]SGN|Volumes'!AG60 -> 1015710.938 | AE28: ='[16]SGN|Volumes'!AH60 -> 1005093.75 | AF28: ='[16]SGN|Volumes'!AI60 -> 994476.5625 | AG28: ='[16]SGN|Volumes'!AJ60 -> 983859.375 | AH28: ='[16]SGN|Volumes'!AK60 -> 973242.1875 | AI28: ='[16]SGN|Volumes'!AL60 -> 962625 | AJ28: ='[16]SGN|Volumes'!AM60 -> 952007.8125 | AK28: ='[16]SGN|Volumes'!AN60 -> 941390.625 | AL28: ='[16]SGN|Volumes'!AO60 -> 930773.4375 | AM28: ='[16]SGN|Volumes'!AP60 -> 920156.25 | AN28: ='[16]SGN|Volumes'!AQ60 -> 909539.0625 | AO28: ='[16]SGN|Volumes'!AR60 -> 898921.875 | AP28: ='[16]SGN|Volumes'!AS60 -> 888304.6875 | AQ28: ='[16]SGN|Volumes'!AT60 -> 877687.5 | AR28: ='[16]SGN|Volumes'!AU60 -> 867070.3125
A29: CHP I&C (Contract) | B29: P4 | E29: 0 | F29: 0 | G29: 0 | H29: 0 | I29: 0 | J29: 0 | K29: 0 | L29: 0 | M29: 0 | N29: 0 | O29: 0 | P29: 0 | Q29: 0 | R29: 0 | S29: 0 | T29: 0 | U29: 0 | V29: 0 | W29: 0 | X29: 0 | Y29: 0 | Z29: 0 | AA29: 0 | AB29: 0 | AC29: 0 | AD29: 0 | AE29: 0 | AF29: 0 | AG29: 0 | AH29: 0 | AI29: 0 | AJ29: 0 | AK29: 0 | AL29: 0 | AM29: 0 | AN29: 0 | AO29: 0 | AP29: 0 | AQ29: 0 | AR29: 0
A30: Firm I&C (Contract) | B30: P5 | E30: ='[16]SGN|Volumes'!H61 -> 3082140.242 | F30: ='[16]SGN|Volumes'!I61 -> 7216658.424 | G30: ='[16]SGN|Volumes'!J61 -> 11351176.61 | H30: ='[16]SGN|Volumes'!K61 -> 12729349.33 | I30: ='[16]SGN|Volumes'!L61 -> 12729349.33 | J30: ='[16]SGN|Volumes'!M61 -> 12620240.62 | K30: ='[16]SGN|Volumes'!N61 -> 12511131.92 | L30: ='[16]SGN|Volumes'!O61 -> 12402023.21 | M30: ='[16]SGN|Volumes'!P61 -> 12292914.5 | N30: ='[16]SGN|Volumes'!Q61 -> 12183805.79 | O30: ='[16]SGN|Volumes'!R61 -> 12074697.08 | P30: ='[16]SGN|Volumes'!S61 -> 11965588.37 | Q30: ='[16]SGN|Volumes'!T61 -> 11856479.66 | R30: ='[16]SGN|Volumes'!U61 -> 11747370.96 | S30: ='[16]SGN|Volumes'!V61 -> 11638262.25 | T30: ='[16]SGN|Volumes'!W61 -> 11529153.54 | U30: ='[16]SGN|Volumes'!X61 -> 11420044.83 | V30: ='[16]SGN|Volumes'!Y61 -> 11310936.12 | W30: ='[16]SGN|Volumes'!Z61 -> 11201827.41 | X30: ='[16]SGN|Volumes'!AA61 -> 11092718.7 | Y30: ='[16]SGN|Volumes'!AB61 -> 10983610 | Z30: ='[16]SGN|Volumes'!AC61 -> 10874501.29 | AA30: ='[16]SGN|Volumes'!AD61 -> 10765392.58 | AB30: ='[16]SGN|Volumes'!AE61 -> 10656283.87 | AC30: ='[16]SGN|Volumes'!AF61 -> 10547175.16 | AD30: ='[16]SGN|Volumes'!AG61 -> 10438066.45 | AE30: ='[16]SGN|Volumes'!AH61 -> 10328957.74 | AF30: ='[16]SGN|Volumes'!AI61 -> 10219849.04 | AG30: ='[16]SGN|Volumes'!AJ61 -> 10110740.33 | AH30: ='[16]SGN|Volumes'!AK61 -> 10001631.62 | AI30: ='[16]SGN|Volumes'!AL61 -> 9892522.91 | AJ30: ='[16]SGN|Volumes'!AM61 -> 9783414.202 | AK30: ='[16]SGN|Volumes'!AN61 -> 9674305.493 | AL30: ='[16]SGN|Volumes'!AO61 -> 9565196.785 | AM30: ='[16]SGN|Volumes'!AP61 -> 9456088.076 | AN30: ='[16]SGN|Volumes'!AQ61 -> 9346979.368 | AO30: ='[16]SGN|Volumes'!AR61 -> 9237870.659 | AP30: ='[16]SGN|Volumes'!AS61 -> 9128761.95 | AQ30: ='[16]SGN|Volumes'!AT61 -> 9019653.242 | AR30: ='[16]SGN|Volumes'!AU61 -> 8910544.533
A31: Interruptible I&C (Contract) | B31: P6 | E31: 0 | F31: 0 | G31: 0 | H31: 0 | I31: 0 | J31: 0 | K31: 0 | L31: 0 | M31: 0 | N31: 0 | O31: 0 | P31: 0 | Q31: 0 | R31: 0 | S31: 0 | T31: 0 | U31: 0 | V31: 0 | W31: 0 | X31: 0 | Y31: 0 | Z31: 0 | AA31: 0 | AB31: 0 | AC31: 0 | AD31: 0 | AE31: 0 | AF31: 0 | AG31: 0 | AH31: 0 | AI31: 0 | AJ31: 0 | AK31: 0 | AL31: 0 | AM31: 0 | AN31: 0 | AO31: 0 | AP31: 0 | AQ31: 0 | AR31: 0
A32: Super User I&C (Super Contract) | B32: P7 | E32: ='[16]SGN|Volumes'!H62 -> 1593750 | F32: ='[16]SGN|Volumes'!I62 -> 12750000 | G32: ='[16]SGN|Volumes'!J62 -> 12750000 | H32: ='[16]SGN|Volumes'!K62 -> 12750000 | I32: ='[16]SGN|Volumes'!L62 -> 12750000 | J32: ='[16]SGN|Volumes'!M62 -> 12640714.29 | K32: ='[16]SGN|Volumes'!N62 -> 12531428.57 | L32: ='[16]SGN|Volumes'!O62 -> 12422142.86 | M32: ='[16]SGN|Volumes'!P62 -> 12312857.14 | N32: ='[16]SGN|Volumes'!Q62 -> 12203571.43 | O32: ='[16]SGN|Volumes'!R62 -> 12094285.71 | P32: ='[16]SGN|Volumes'!S62 -> 11985000 | Q32: ='[16]SGN|Volumes'!T62 -> 11875714.29 | R32: ='[16]SGN|Volumes'!U62 -> 11766428.57 | S32: ='[16]SGN|Volumes'!V62 -> 11657142.86 | T32: ='[16]SGN|Volumes'!W62 -> 11547857.14 | U32: ='[16]SGN|Volumes'!X62 -> 11438571.43 | V32: ='[16]SGN|Volumes'!Y62 -> 11329285.71 | W32: ='[16]SGN|Volumes'!Z62 -> 11220000 | X32: ='[16]SGN|Volumes'!AA62 -> 11110714.29 | Y32: ='[16]SGN|Volumes'!AB62 -> 11001428.57 | Z32: ='[16]SGN|Volumes'!AC62 -> 10892142.86 | AA32: ='[16]SGN|Volumes'!AD62 -> 10782857.14 | AB32: ='[16]SGN|Volumes'!AE62 -> 10673571.43 | AC32: ='[16]SGN|Volumes'!AF62 -> 10564285.71 | AD32: ='[16]SGN|Volumes'!AG62 -> 10455000 | AE32: ='[16]SGN|Volumes'!AH62 -> 10345714.29 | AF32: ='[16]SGN|Volumes'!AI62 -> 10236428.57 | AG32: ='[16]SGN|Volumes'!AJ62 -> 10127142.86 | AH32: ='[16]SGN|Volumes'!AK62 -> 10017857.14 | AI32: ='[16]SGN|Volumes'!AL62 -> 9908571.429 | AJ32: ='[16]SGN|Volumes'!AM62 -> 9799285.714 | AK32: ='[16]SGN|Volumes'!AN62 -> 9690000 | AL32: ='[16]SGN|Volumes'!AO62 -> 9580714.286 | AM32: ='[16]SGN|Volumes'!AP62 -> 9471428.571 | AN32: ='[16]SGN|Volumes'!AQ62 -> 9362142.857 | AO32: ='[16]SGN|Volumes'!AR62 -> 9252857.143 | AP32: ='[16]SGN|Volumes'!AS62 -> 9143571.429 | AQ32: ='[16]SGN|Volumes'!AT62 -> 9034285.714 | AR32: ='[16]SGN|Volumes'!AU62 -> 8925000
A33: Total Volume (Therms) - UR Final Det | E33: =SUM(E26:E32) -> 5054513.242 | F33: =SUM(F26:F32) -> 21811356.17 | G33: =SUM(G26:G32) -> 28332556.79 | H33: 31391067.21 | I33: 32804429.21 | J33: 33917555.86 | K33: 34942663.64 | L33: 35926635.88 | M33: 36886080.23 | N33: 37782449.73 | O33: 38233536.62 | P33: 38308120.06 | Q33: 38438752.41 | R33: 38560551.38 | S33: 38634604.99 | T33: 38700382.74 | U33: 38796242.38 | V33: 38883271.9 | W33: 38924018.5 | X33: 38950372.88 | Y33: 38999079.95 | Z33: 39002200.04 | AA33: 38925174.87 | AB33: 38842096.85 | AC33: 38787590.49 | AD33: 38725671.95 | AE33: 38622587.47 | AF33: 38513281.31 | AG33: 38431100.63 | AH33: 38327786.52 | AI33: 38164226.13 | AJ33: 37916194.99 | AK33: 37586042.6 | AL33: 37253799.12 | AM33: 36919464.55 | AN33: 36583038.9 | AO33: 36244522.17 | AP33: 35860175.8 | AQ33: 35431568.12 | AR33: 35002960.45
E34: =E33='[16]SGN|Volumes'!H65 -> TRUE | F34: =F33='[16]SGN|Volumes'!I65 -> TRUE | G34: =G33='[16]SGN|Volumes'!J65 -> TRUE | H34: =H33='[16]SGN|Volumes'!K65 -> TRUE | I34: =I33='[16]SGN|Volumes'!L65 -> TRUE | J34: =J33='[16]SGN|Volumes'!M65 -> TRUE | K34: =K33='[16]SGN|Volumes'!N65 -> TRUE | L34: =L33='[16]SGN|Volumes'!O65 -> TRUE | M34: =M33='[16]SGN|Volumes'!P65 -> TRUE | N34: =N33='[16]SGN|Volumes'!Q65 -> TRUE | O34: =O33='[16]SGN|Volumes'!R65 -> TRUE | P34: =P33='[16]SGN|Volumes'!S65 -> TRUE | Q34: =Q33='[16]SGN|Volumes'!T65 -> TRUE | R34: =R33='[16]SGN|Volumes'!U65 -> TRUE | S34: =S33='[16]SGN|Volumes'!V65 -> TRUE | T34: =T33='[16]SGN|Volumes'!W65 -> TRUE | U34: =U33='[16]SGN|Volumes'!X65 -> TRUE | V34: =V33='[16]SGN|Volumes'!Y65 -> TRUE | W34: =W33='[16]SGN|Volumes'!Z65 -> TRUE | X34: =X33='[16]SGN|Volumes'!AA65 -> TRUE | Y34: =Y33='[16]SGN|Volumes'!AB65 -> TRUE | Z34: =Z33='[16]SGN|Volumes'!AC65 -> TRUE | AA34: =AA33='[16]SGN|Volumes'!AD65 -> TRUE | AB34: =AB33='[16]SGN|Volumes'!AE65 -> TRUE | AC34: =AC33='[16]SGN|Volumes'!AF65 -> TRUE | AD34: =AD33='[16]SGN|Volumes'!AG65 -> TRUE | AE34: =AE33='[16]SGN|Volumes'!AH65 -> TRUE | AF34: =AF33='[16]SGN|Volumes'!AI65 -> TRUE | AG34: =AG33='[16]SGN|Volumes'!AJ65 -> TRUE | AH34: =AH33='[16]SGN|Volumes'!AK65 -> TRUE | AI34: =AI33='[16]SGN|Volumes'!AL65 -> TRUE | AJ34: =AJ33='[16]SGN|Volumes'!AM65 -> TRUE | AK34: =AK33='[16]SGN|Volumes'!AN65 -> TRUE | AL34: =AL33='[16]SGN|Volumes'!AO65 -> TRUE | AM34: =AM33='[16]SGN|Volumes'!AP65 -> TRUE | AN34: =AN33='[16]SGN|Volumes'!AQ65 -> TRUE | AO34: =AO33='[16]SGN|Volumes'!AR65 -> TRUE | AP34: =AP33='[16]SGN|Volumes'!AS65 -> TRUE | AQ34: =AQ33='[16]SGN|Volumes'!AT65 -> TRUE | AR34: =AR33='[16]SGN|Volumes'!AU65 -> TRUE
A36: Opening Asset Value (£2014) | B36: Capex | C36: PI's model V7 | D36: ='OAV Derivation'!E20 -> 2711220.193
B37: Opex | C37: PI's model V7 | D37: ='OAV Derivation'!E26 -> 1579392.345
B38: Revenue | D38: =-'OAV Derivation'!E50 -> 555158.1159
B39: Total OAV | D39: =D36+D37-D38 -> 3735454.421
D40: =D39='OAV Derivation'!E52 -> TRUE

Sheet DAV
A1: Condition 2.3.17 Calculation of DAV
D6: Av £2014 | E6: 2018 | F6: =E6+1 -> 2019 | G6: 2020 | H6: 2021 | I6: 2022 | J6: 2023 | K6: 2024 | L6: 2025 | M6: 2026 | N6: 2027 | O6: 2028 | P6: 2029 | Q6: 2030 | R6: 2031 | S6: 2032 | T6: 2033 | U6: 2034 | V6: 2035 | W6: 2036 | X6: 2037 | Y6: 2038 | Z6: 2039 | AA6: 2040 | AB6: 2041 | AC6: 2042 | AD6: 2043 | AE6: 2044 | AF6: 2045 | AG6: =AF6+1 -> 2046 | AH6: =AG6+1 -> 2047 | AI6: =AH6+1 -> 2048 | AJ6: =AI6+1 -> 2049 | AK6: =AJ6+1 -> 2050 | AL6: =AK6+1 -> 2051 | AM6: =AL6+1 -> 2052 | AN6: =AM6+1 -> 2053 | AO6: =AN6+1 -> 2054 | AP6: =AO6+1 -> 2055 | AQ6: =AP6+1 -> 2056 | AR6: =AQ6+1 -> 2057
A8: Annual Capex
A9: Mains | E9: =SUM(Inputs!E8:E9,Inputs!E16) -> 3546216.002 | F9: =SUM(Inputs!F8:F9,Inputs!F16) -> 7066092.241 | G9: =SUM(Inputs!G8:G9,Inputs!G16) -> 5966329.277 | H9: =SUM(Inputs!H8:H9,Inputs!H16) -> 4459602.552 | I9: =SUM(Inputs!I8:I9,Inputs!I16) -> 4701766.532 | J9: =SUM(Inputs!J8:J9,Inputs!J16) -> 3069012.564 | K9: =SUM(Inputs!K8:K9,Inputs!K16) -> 3073210.791 | L9: =SUM(Inputs!L8:L9,Inputs!L16) -> 3076466.033 | M9: =SUM(Inputs!M8:M9,Inputs!M16) -> 3092024.068 | N9: =SUM(Inputs!N8:N9,Inputs!N16) -> 3070830.429 | O9: =SUM(Inputs!O8:O9,Inputs!O16) -> 3006209.673 | P9: =SUM(Inputs!P8:P9,Inputs!P16) -> 251812.3561 | Q9: =SUM(Inputs!Q8:Q9,Inputs!Q16) -> 275456.3292 | R9: =SUM(Inputs!R8:R9,Inputs!R16) -> 251812.3561 | S9: =SUM(Inputs!S8:S9,Inputs!S16) -> 255891.3836 | T9: =SUM(Inputs!T8:T9,Inputs!T16) -> 251489.9544 | U9: =SUM(Inputs!U8:U9,Inputs!U16) -> 275456.3292 | V9: =SUM(Inputs!V8:V9,Inputs!V16) -> 251812.3561 | W9: =SUM(Inputs!W8:W9,Inputs!W16) -> 255891.3836 | X9: =SUM(Inputs!X8:X9,Inputs!X16) -> 248393.4288 | Y9: =SUM(Inputs!Y8:Y9,Inputs!Y16) -> 272037.4019 | Z9: =SUM(Inputs!Z8:Z9,Inputs!Z16) -> 228575.7084 | AA9: =SUM(Inputs!AA8:AA9,Inputs!AA16) -> 232654.7358 | AB9: =SUM(Inputs!AB8:AB9,Inputs!AB16) -> 228575.7084 | AC9: =SUM(Inputs!AC8:AC9,Inputs!AC16) -> 251897.2798 | AD9: =SUM(Inputs!AD8:AD9,Inputs!AD16) -> 228575.7084 | AE9: =SUM(Inputs!AE8:AE9,Inputs!AE16) -> 232654.7358 | AF9: =SUM(Inputs!AF8:AF9,Inputs!AF16) -> 228575.7084 | AG9: =SUM(Inputs!AG8:AG9,Inputs!AG16) -> 228575.7084 | AH9: =SUM(Inputs!AH8:AH9,Inputs!AH16) -> 228575.7084 | AI9: =SUM(Inputs!AI8:AI9,Inputs!AI16) -> 228575.7084 | AJ9: =SUM(Inputs!AJ8:AJ9,Inputs!AJ16) -> 228575.7084 | AK9: =SUM(Inputs!AK8:AK9,Inputs!AK16) -> 228575.7084 | AL9: =SUM(Inputs!AL8:AL9,Inputs!AL16) -> 228575.7084 | AM9: =SUM(Inputs!AM8:AM9,Inputs!AM16) -> 228575.7084 | AN9: =SUM(Inputs!AN8:AN9,Inputs!AN16) -> 228575.7084 | AO9: =SUM(Inputs!AO8:AO9,Inputs!AO16) -> 228575.7084 | AP9: =SUM(Inputs!AP8:AP9,Inputs!AP16) -> 228575.7084 | AQ9: =SUM(Inputs!AQ8:AQ9,Inputs!AQ16) -> 228575.7084 | AR9: =SUM(Inputs!AR8:AR9,Inputs!AR16) -> 228575.7084
A10: Services | E10: =SUM(Inputs!E11,Inputs!E13) -> 257678.5893 | F10: =SUM(Inputs!F11,Inputs!F13) -> 3177856.592 | G10: =SUM(Inputs!G11,Inputs!G13) -> 1889381.58 | H10: =SUM(Inputs!H11,Inputs!H13) -> 1590509.944 | I10: =SUM(Inputs!I11,Inputs!I13) -> 1780811.839 | J10: =SUM(Inputs!J11,Inputs!J13) -> 1624427.322 | K10: =SUM(Inputs!K11,Inputs!K13) -> 1551405.093 | L10: =SUM(Inputs!L11,Inputs!L13) -> 1517375.962 | M10: =SUM(Inputs!M11,Inputs!M13) -> 1672956.313 | N10: =SUM(Inputs!N11,Inputs!N13) -> 1461019.917 | O10: =SUM(Inputs!O11,Inputs!O13) -> 814812.3622 | P10: =SUM(Inputs!P11,Inputs!P13) -> 892928.4106 | Q10: =SUM(Inputs!Q11,Inputs!Q13) -> 1129368.142 | R10: =SUM(Inputs!R11,Inputs!R13) -> 892928.4106 | S10: =SUM(Inputs!S11,Inputs!S13) -> 933718.6849 | T10: =SUM(Inputs!T11,Inputs!T13) -> 892730.8279 | U10: =SUM(Inputs!U11,Inputs!U13) -> 1129368.142 | V10: =SUM(Inputs!V11,Inputs!V13) -> 892928.4106 | W10: =SUM(Inputs!W11,Inputs!W13) -> 933718.6849 | X10: =SUM(Inputs!X11,Inputs!X13) -> 858739.1375 | Y10: =SUM(Inputs!Y11,Inputs!Y13) -> 1095178.869 | Z10: =SUM(Inputs!Z11,Inputs!Z13) -> 660561.9329 | AA10: =SUM(Inputs!AA11,Inputs!AA13) -> 701352.2072 | AB10: =SUM(Inputs!AB11,Inputs!AB13) -> 660561.9329 | AC10: =SUM(Inputs!AC11,Inputs!AC13) -> 896804.0813 | AD10: =SUM(Inputs!AD11,Inputs!AD13) -> 660561.9329 | AE10: =SUM(Inputs!AE11,Inputs!AE13) -> 701352.2072 | AF10: =SUM(Inputs!AF11,Inputs!AF13) -> 660561.9329 | AG10: =SUM(Inputs!AG11,Inputs!AG13) -> 660561.9329 | AH10: =SUM(Inputs!AH11,Inputs!AH13) -> 660561.9329 | AI10: =SUM(Inputs!AI11,Inputs!AI13) -> 660561.9329 | AJ10: =SUM(Inputs!AJ11,Inputs!AJ13) -> 660561.9329 | AK10: =SUM(Inputs!AK11,Inputs!AK13) -> 660561.9329 | AL10: =SUM(Inputs!AL11,Inputs!AL13) -> 660561.9329 | AM10: =SUM(Inputs!AM11,Inputs!AM13) -> 660561.9329 | AN10: =SUM(Inputs!AN11,Inputs!AN13) -> 660561.9329 | AO10: =SUM(Inputs!AO11,Inputs!AO13) -> 660561.9329 | AP10: =SUM(Inputs!AP11,Inputs!AP13) -> 660561.9329 | AQ10: =SUM(Inputs!AQ11,Inputs!AQ13) -> 660561.9329 | AR10: =SUM(Inputs!AR11,Inputs!AR13) -> 660561.9329
A11: Meters, PRS, Telemetry | E11: =SUM(Inputs!E10,Inputs!E12,Inputs!E14) -> 236908.4512 | F11: =SUM(Inputs!F10,Inputs!F12,Inputs!F14) -> 1925357.472 | G11: =SUM(Inputs!G10,Inputs!G12,Inputs!G14) -> 1317105.963 | H11: =SUM(Inputs!H10,Inputs!H12,Inputs!H14) -> 992641.2955 | I11: =SUM(Inputs!I10,Inputs!I12,Inputs!I14) -> 1025650.617 | J11: =SUM(Inputs!J10,Inputs!J12,Inputs!J14) -> 961488.2021 | K11: =SUM(Inputs!K10,Inputs!K12,Inputs!K14) -> 944546.1718 | L11: =SUM(Inputs!L10,Inputs!L12,Inputs!L14) -> 942133.2993 | M11: =SUM(Inputs!M10,Inputs!M12,Inputs!M14) -> 920172.1218 | N11: =SUM(Inputs!N10,Inputs!N12,Inputs!N14) -> 877409.6679 | O11: =SUM(Inputs!O10,Inputs!O12,Inputs!O14) -> 271209.1162 | P11: =SUM(Inputs!P10,Inputs!P12,Inputs!P14) -> 242050.0462 | Q11: =SUM(Inputs!Q10,Inputs!Q12,Inputs!Q14) -> 294346.6413 | R11: =SUM(Inputs!R10,Inputs!R12,Inputs!R14) -> 242050.0462 | S11: =SUM(Inputs!S10,Inputs!S12,Inputs!S14) -> 251072.1867 | T11: =SUM(Inputs!T10,Inputs!T12,Inputs!T14) -> 241934.2924 | U11: =SUM(Inputs!U10,Inputs!U12,Inputs!U14) -> 294346.6413 | V11: =SUM(Inputs!V10,Inputs!V12,Inputs!V14) -> 242050.0462 | W11: =SUM(Inputs!W10,Inputs!W12,Inputs!W14) -> 267910.0788 | X11: =SUM(Inputs!X10,Inputs!X12,Inputs!X14) -> 462403.8728 | Y11: =SUM(Inputs!Y10,Inputs!Y12,Inputs!Y14) -> 527348.9093 | Z11: =SUM(Inputs!Z10,Inputs!Z12,Inputs!Z14) -> 2162286.979 | AA11: =SUM(Inputs!AA10,Inputs!AA12,Inputs!AA14) -> 1557311.619 | AB11: =SUM(Inputs!AB10,Inputs!AB12,Inputs!AB14) -> 1220571.804 | AC11: =SUM(Inputs!AC10,Inputs!AC12,Inputs!AC14) -> 1314002.351 | AD11: =SUM(Inputs!AD10,Inputs!AD12,Inputs!AD14) -> 1148767.127 | AE11: =SUM(Inputs!AE10,Inputs!AE12,Inputs!AE14) -> 1141040.703 | AF11: =SUM(Inputs!AF10,Inputs!AF12,Inputs!AF14) -> 1129702.962 | AG11: =SUM(Inputs!AG10,Inputs!AG12,Inputs!AG14) -> 1106956.216 | AH11: =SUM(Inputs!AH10,Inputs!AH12,Inputs!AH14) -> 1064911.174 | AI11: =SUM(Inputs!AI10,Inputs!AI12,Inputs!AI14) -> 458575.0973 | AJ11: =SUM(Inputs!AJ10,Inputs!AJ12,Inputs!AJ14) -> 429156.4879 | AK11: =SUM(Inputs!AK10,Inputs!AK12,Inputs!AK14) -> 480667.5153 | AL11: =SUM(Inputs!AL10,Inputs!AL12,Inputs!AL14) -> 429156.4879 | AM11: =SUM(Inputs!AM10,Inputs!AM12,Inputs!AM14) -> 438043.1032 | AN11: =SUM(Inputs!AN10,Inputs!AN12,Inputs!AN14) -> 429042.4729 | AO11: =SUM(Inputs!AO10,Inputs!AO12,Inputs!AO14) -> 480667.5153 | AP11: =SUM(Inputs!AP10,Inputs!AP12,Inputs!AP14) -> 429156.4879 | AQ11: =SUM(Inputs!AQ10,Inputs!AQ12,Inputs!AQ14) -> 454880.9953 | AR11: =SUM(Inputs!AR10,Inputs!AR12,Inputs!AR14) -> 621791.2651
A12: Other Capex | E12: =Inputs!E15 -> 386860.2494 | F12: =Inputs!F15 -> 383610.2951 | G12: =Inputs!G15 -> 381103.1418 | H12: =Inputs!H15 -> 378612.3745 | I12: =Inputs!I15 -> 376137.886 | J12: =Inputs!J15 -> 74722.23535 | K12: =Inputs!K15 -> 74722.23535 | L12: =Inputs!L15 -> 74722.23535 | M12: =Inputs!M15 -> 74722.23535 | N12: =Inputs!N15 -> 74722.23535 | O12: =Inputs!O15 -> 74722.23535 | P12: =Inputs!P15 -> 74722.23535 | Q12: =Inputs!Q15 -> 74722.23535 | R12: =Inputs!R15 -> 74722.23535 | S12: =Inputs!S15 -> 74722.23535 | T12: =Inputs!T15 -> 74722.23535 | U12: =Inputs!U15 -> 74722.23535 | V12: =Inputs!V15 -> 74722.23535 | W12: =Inputs!W15 -> 74722.23535 | X12: =Inputs!X15 -> 74722.23535 | Y12: =Inputs!Y15 -> 74722.23535 | Z12: =Inputs!Z15 -> 74722.23535 | AA12: =Inputs!AA15 -> 74722.23535 | AB12: =Inputs!AB15 -> 74722.23535 | AC12: =Inputs!AC15 -> 74722.23535 | AD12: =Inputs!AD15 -> 74722.23535 | AE12: =Inputs!AE15 -> 74722.23535 | AF12: =Inputs!AF15 -> 74722.23535 | AG12: =Inputs!AG15 -> 74722.23535 | AH12: =Inputs!AH15 -> 74722.23535 | AI12: =Inputs!AI15 -> 74722.23535 | AJ12: =Inputs!AJ15 -> 74722.23535 | AK12: =Inputs!AK15 -> 74722.23535 | AL12: =Inputs!AL15 -> 74722.23535 | AM12: =Inputs!AM15 -> 74722.23535 | AN12: =Inputs!AN15 -> 74722.23535 | AO12: =Inputs!AO15 -> 74722.23535 | AP12: =Inputs!AP15 -> 74722.23535 | AQ12: =Inputs!AQ15 -> 74722.23535 | AR12: =Inputs!AR15 -> 74722.23535
A13: Total capex | E13: =SUM(E9:E12) -> 4427663.292 | F13: =SUM(F9:F12) -> 12552916.6 | G13: 9553919.962 | H13: 7421366.167 | I13: 7884366.874 | J13: 5729650.323 | K13: 5643884.291 | L13: 5610697.53 | M13: 5759874.738 | N13: 5483982.25 | O13: 4166953.387 | P13: 1461513.048 | Q13: 1773893.348 | R13: 1461513.048 | S13: 1515404.49 | T13: 1460877.31 | U13: 1773893.348 | V13: 1461513.048 | W13: 1532242.383 | X13: 1644258.675 | Y13: 1969287.415 | Z13: 3126146.855 | AA13: 2566040.798 | AB13: 2184431.68 | AC13: 2537425.948 | AD13: 2112627.003 | AE13: 2149769.881 | AF13: 2093562.838 | AG13: 2070816.093 | AH13: 2028771.051 | AI13: 1422434.974 | AJ13: 1393016.365 | AK13: 1444527.392 | AL13: 1393016.365 | AM13: 1401902.98 | AN13: 1392902.35 | AO13: 1444527.392 | AP13: 1393016.365 | AQ13: 1418740.872 | AR13: 1585651.142
A14: Check | B14: updated for UM adjs in PCR02 & GD14 & URs | E14: =ROUND(SUM(Inputs!E8:E16),0)=ROUND(E13,0) -> TRUE | F14: =ROUND(SUM(Inputs!F8:F16),0)=ROUND(F13,0) -> TRUE | G14: =ROUND(SUM(Inputs!G8:G16),0)=ROUND(G13,0) -> TRUE | H14: =ROUND(SUM(Inputs!H8:H16),0)=ROUND(H13,0) -> TRUE | I14: =ROUND(SUM(Inputs!I8:I16),0)=ROUND(I13,0) -> TRUE | J14: =ROUND(SUM(Inputs!J8:J16),0)=ROUND(J13,0) -> TRUE | K14: =ROUND(SUM(Inputs!K8:K16),0)=ROUND(K13,0) -> TRUE | L14: =ROUND(SUM(Inputs!L8:L16),0)=ROUND(L13,0) -> TRUE | M14: =ROUND(SUM(Inputs!M8:M16),0)=ROUND(M13,0) -> TRUE | N14: =ROUND(SUM(Inputs!N8:N16),0)=ROUND(N13,0) -> TRUE | O14: =ROUND(SUM(Inputs!O8:O16),0)=ROUND(O13,0) -> TRUE | P14: =ROUND(SUM(Inputs!P8:P16),0)=ROUND(P13,0) -> TRUE | Q14: =ROUND(SUM(Inputs!Q8:Q16),0)=ROUND(Q13,0) -> TRUE | R14: =ROUND(SUM(Inputs!R8:R16),0)=ROUND(R13,0) -> TRUE | S14: =ROUND(SUM(Inputs!S8:S16),0)=ROUND(S13,0) -> TRUE | T14: =ROUND(SUM(Inputs!T8:T16),0)=ROUND(T13,0) -> TRUE | U14: =ROUND(SUM(Inputs!U8:U16),0)=ROUND(U13,0) -> TRUE | V14: =ROUND(SUM(Inputs!V8:V16),0)=ROUND(V13,0) -> TRUE | W14: =ROUND(SUM(Inputs!W8:W16),0)=ROUND(W13,0) -> TRUE | X14: =ROUND(SUM(Inputs!X8:X16),0)=ROUND(X13,0) -> TRUE | Y14: =ROUND(SUM(Inputs!Y8:Y16),0)=ROUND(Y13,0) -> TRUE | Z14: =ROUND(SUM(Inputs!Z8:Z16),0)=ROUND(Z13,0) -> TRUE | AA14: =ROUND(SUM(Inputs!AA8:AA16),0)=ROUND(AA13,0) -> TRUE | AB14: =ROUND(SUM(Inputs!AB8:AB16),0)=ROUND(AB13,0) -> TRUE | AC14: =ROUND(SUM(Inputs!AC8:AC16),0)=ROUND(AC13,0) -> TRUE | AD14: =ROUND(SUM(Inputs!AD8:AD16),0)=ROUND(AD13,0) -> TRUE | AE14: =ROUND(SUM(Inputs!AE8:AE16),0)=ROUND(AE13,0) -> TRUE | AF14: =ROUND(SUM(Inputs!AF8:AF16),0)=ROUND(AF13,0) -> TRUE | AG14: =ROUND(SUM(Inputs!AG8:AG16),0)=ROUND(AG13,0) -> TRUE | AH14: =ROUND(SUM(Inputs!AH8:AH16),0)=ROUND(AH13,0) -> TRUE | AI14: =ROUND(SUM(Inputs!AI8:AI16),0)=ROUND(AI13,0) -> TRUE | AJ14: =ROUND(SUM(Inputs!AJ8:AJ16),0)=ROUND(AJ13,0) -> TRUE | AK14: =ROUND(SUM(Inputs!AK8:AK16),0)=ROUND(AK13,0) -> TRUE | AL14: =ROUND(SUM(Inputs!AL8:AL16),0)=ROUND(AL13,0) -> TRUE | AM14: =ROUND(SUM(Inputs!AM8:AM16),0)=ROUND(AM13,0) -> TRUE | AN14: =ROUND(SUM(Inputs!AN8:AN16),0)=ROUND(AN13,0) -> TRUE | AO14: =ROUND(SUM(Inputs!AO8:AO16),0)=ROUND(AO13,0) -> TRUE | AP14: =ROUND(SUM(Inputs!AP8:AP16),0)=ROUND(AP13,0) -> TRUE | AQ14: =ROUND(SUM(Inputs!AQ8:AQ16),0)=ROUND(AQ13,0) -> TRUE | AR14: =ROUND(SUM(Inputs!AR8:AR16),0)=ROUND(AR13,0) -> TRUE
A17: Opening DAV (Capex Only) | C17: Capex | D17: =Inputs!D36 -> 2711220.193
D18: =SUM(D16:D17) -> 2711220.193
A20: Basis of Depreciation | B20: submitted | C20: FE
B21: FE
A22: Depreciation | C22: Useful Life
A23: Opening DAV | C23: =IF($C$20=$B$20,35,40) -> 40 | E23: =IF($C$20=$B$20,$D$18/$C$23,$D$18/$C$23) -> 67780.50482 | F23: =IF($C$20=$B$20,$D$18/$C$23,$D$18/$C$23) -> 67780.50482 | G23: 67780.50482 | H23: 67780.50482 | I23: 67780.50482 | J23: 67780.50482 | K23: 67780.50482 | L23: 67780.50482 | M23: 67780.50482 | N23: 67780.50482 | O23: 67780.50482 | P23: 67780.50482 | Q23: 67780.50482 | R23: 67780.50482 | S23: 67780.50482 | T23: 67780.50482 | U23: 67780.50482 | V23: 67780.50482 | W23: 67780.50482 | X23: 67780.50482 | Y23: 67780.50482 | Z23: 67780.50482 | AA23: 67780.50482 | AB23: 67780.50482 | AC23: 67780.50482 | AD23: 67780.50482 | AE23: 67780.50482 | AF23: 67780.50482 | AG23: 67780.50482 | AH23: 67780.50482 | AI23: 67780.50482 | AJ23: 67780.50482 | AK23: 67780.50482 | AL23: 67780.50482 | AM23: 67780.50482 | AN23: =IF($C$20=$B$20,0,$D$18/$C$23) -> 67780.50482 | AO23: =IF($C$20=$B$20,0,$D$18/$C$23) -> 67780.50482 | AP23: 67780.50482 | AQ23: 67780.50482 | AR23: 67780.50482
A24: Mains | C24: =IF($C$20=$B$20,35,40) -> 40 | E24: =IF($C$20=$B$20,SUM($E$9:E9)/$C$24,SUM($E$9:E9)/$C$24) -> 88655.40006 | F24: =IF($C$20=$B$20,SUM($E$9:F9)/$C$24,SUM($E$9:F9)/$C$24) -> 265307.7061 | G24: =IF($C$20=$B$20,SUM($E$9:G9)/$C$24,SUM($E$9:G9)/$C$24) -> 414465.938 | H24: =IF($C$20=$B$20,SUM($E$9:H9)/$C$24,SUM($E$9:H9)/$C$24) -> 525956.0018 | I24: =IF($C$20=$B$20,SUM($E$9:I9)/$C$24,SUM($E$9:I9)/$C$24) -> 643500.1651 | J24: =IF($C$20=$B$20,SUM($E$9:J9)/$C$24,SUM($E$9:J9)/$C$24) -> 720225.4792 | K24: =IF($C$20=$B$20,SUM($E$9:K9)/$C$24,SUM($E$9:K9)/$C$24) -> 797055.749 | L24: =IF($C$20=$B$20,SUM($E$9:L9)/$C$24,SUM($E$9:L9)/$C$24) -> 873967.3998 | M24: =IF($C$20=$B$20,SUM($E$9:M9)/$C$24,SUM($E$9:M9)/$C$24) -> 951268.0015 | N24: =IF($C$20=$B$20,SUM($E$9:N9)/$C$24,SUM($E$9:N9)/$C$24) -> 1028038.762 | O24: =IF($C$20=$B$20,SUM($E$9:O9)/$C$24,SUM($E$9:O9)/$C$24) -> 1103194.004 | P24: =IF($C$20=$B$20,SUM($E$9:P9)/$C$24,SUM($E$9:P9)/$C$24) -> 1109489.313 | Q24: =IF($C$20=$B$20,SUM($E$9:Q9)/$C$24,SUM($E$9:Q9)/$C$24) -> 1116375.721 | R24: =IF($C$20=$B$20,SUM($E$9:R9)/$C$24,SUM($E$9:R9)/$C$24) -> 1122671.03 | S24: =IF($C$20=$B$20,SUM($E$9:S9)/$C$24,SUM($E$9:S9)/$C$24) -> 1129068.315 | T24: =IF($C$20=$B$20,SUM($E$9:T9)/$C$24,SUM($E$9:T9)/$C$24) -> 1135355.564 | U24: =IF($C$20=$B$20,SUM($E$9:U9)/$C$24,SUM($E$9:U9)/$C$24) -> 1142241.972 | V24: =IF($C$20=$B$20,SUM($E$9:V9)/$C$24,SUM($E$9:V9)/$C$24) -> 1148537.281 | W24: =IF($C$20=$B$20,SUM($E$9:W9)/$C$24,SUM($E$9:W9)/$C$24) -> 1154934.565 | X24: =IF($C$20=$B$20,SUM($E$9:X9)/$C$24,SUM($E$9:X9)/$C$24) -> 1161144.401 | Y24: =IF($C$20=$B$20,SUM($E$9:Y9)/$C$24,SUM($E$9:Y9)/$C$24) -> 1167945.336 | Z24: =IF($C$20=$B$20,SUM($E$9:Z9)/$C$24,SUM($E$9:Z9)/$C$24) -> 1173659.729 | AA24: =IF($C$20=$B$20,SUM($E$9:AA9)/$C$24,SUM($E$9:AA9)/$C$24) -> 1179476.097 | AB24: =IF($C$20=$B$20,SUM($E$9:AB9)/$C$24,SUM($E$9:AB9)/$C$24) -> 1185190.49 | AC24: =IF($C$20=$B$20,SUM($E$9:AC9)/$C$24,SUM($E$9:AC9)/$C$24) -> 1191487.922 | AD24: =IF($C$20=$B$20,SUM($E$9:AD9)/$C$24,SUM($E$9:AD9)/$C$24) -> 1197202.315 | AE24: =IF($C$20=$B$20,SUM($E$9:AE9)/$C$24,SUM($E$9:AE9)/$C$24) -> 1203018.683 | AF24: =IF($C$20=$B$20,SUM($E$9:AF9)/$C$24,SUM($E$9:AF9)/$C$24) -> 1208733.076 | AG24: =IF($C$20=$B$20,SUM($E$9:AG9)/$C$24,SUM($E$9:AG9)/$C$24) -> 1214447.468 | AH24: =IF($C$20=$B$20,SUM($E$9:AH9)/$C$24,SUM($E$9:AH9)/$C$24) -> 1220161.861 | AI24: =IF($C$20=$B$20,SUM($E$9:AI9)/$C$24,SUM($E$9:AI9)/$C$24) -> 1225876.254 | AJ24: =IF($C$20=$B$20,SUM($E$9:AJ9)/$C$24,SUM($E$9:AJ9)/$C$24) -> 1231590.647 | AK24: =IF($C$20=$B$20,SUM($E$9:AK9)/$C$24,SUM($E$9:AK9)/$C$24) -> 1237305.039 | AL24: =IF($C$20=$B$20,SUM($E$9:AL9)/$C$24,SUM($E$9:AL9)/$C$24) -> 1243019.432 | AM24: =IF($C$20=$B$20,SUM(E9:AM9)/$C$24,SUM($E$9:AM9)/$C$24) -> 1248733.825 | AN24: =IF($C$20=$B$20,SUM(F9:AN9)/$C$24,SUM($E$9:AN9)/$C$24) -> 1254448.217 | AO24: =IF($C$20=$B$20,SUM(G9:AO9)/$C$24,SUM($E$9:AO9)/$C$24) -> 1260162.61 | AP24: =IF($C$20=$B$20,SUM(H9:AP9)/$C$24,SUM($E$9:AP9)/$C$24) -> 1265877.003 | AQ24: =IF($C$20=$B$20,SUM(I9:AQ9)/$C$24,SUM($E$9:AQ9)/$C$24) -> 1271591.396 | AR24: =IF($C$20=$B$20,SUM(J9:AR9)/$C$24,SUM($E$9:AR9)/$C$24) -> 1277305.788
A25: Services | C25: 40 | E25: =IF($C$20=$B$20,SUM($E$10:E10)/$C$25,SUM($E$10:E10)/$C$25) -> 6441.964731 | F25: =IF($C$20=$B$20,SUM($E$10:F10)/$C$25,SUM($E$10:F10)/$C$25) -> 85888.37954 | G25: =IF($C$20=$B$20,SUM($E$10:G10)/$C$25,SUM($E$10:G10)/$C$25) -> 133122.919 | H25: =IF($C$20=$B$20,SUM($E$10:H10)/$C$25,SUM($E$10:H10)/$C$25) -> 172885.6676 | I25: =IF($C$20=$B$20,SUM($E$10:I10)/$C$25,SUM($E$10:I10)/$C$25) -> 217405.9636 | J25: =IF($C$20=$B$20,SUM($E$10:J10)/$C$25,SUM($E$10:J10)/$C$25) -> 258016.6467 | K25: =IF($C$20=$B$20,SUM($E$10:K10)/$C$25,SUM($E$10:K10)/$C$25) -> 296801.774 | L25: =IF($C$20=$B$20,SUM($E$10:L10)/$C$25,SUM($E$10:L10)/$C$25) -> 334736.173 | M25: =IF($C$20=$B$20,SUM($E$10:M10)/$C$25,SUM($E$10:M10)/$C$25) -> 376560.0808 | N25: =IF($C$20=$B$20,SUM($E$10:N10)/$C$25,SUM($E$10:N10)/$C$25) -> 413085.5788 | O25: =IF($C$20=$B$20,SUM($E$10:O10)/$C$25,SUM($E$10:O10)/$C$25) -> 433455.8878 | P25: =IF($C$20=$B$20,SUM($E$10:P10)/$C$25,SUM($E$10:P10)/$C$25) -> 455779.0981 | Q25: =IF($C$20=$B$20,SUM($E$10:Q10)/$C$25,SUM($E$10:Q10)/$C$25) -> 484013.3016 | R25: =IF($C$20=$B$20,SUM($E$10:R10)/$C$25,SUM($E$10:R10)/$C$25) -> 506336.5119 | S25: =IF($C$20=$B$20,SUM($E$10:S10)/$C$25,SUM($E$10:S10)/$C$25) -> 529679.479 | T25: =IF($C$20=$B$20,SUM($E$10:T10)/$C$25,SUM($E$10:T10)/$C$25) -> 551997.7497 | U25: =IF($C$20=$B$20,SUM($E$10:U10)/$C$25,SUM($E$10:U10)/$C$25) -> 580231.9533 | V25: =IF($C$20=$B$20,SUM($E$10:V10)/$C$25,SUM($E$10:V10)/$C$25) -> 602555.1635 | W25: =IF($C$20=$B$20,SUM($E$10:W10)/$C$25,SUM($E$10:W10)/$C$25) -> 625898.1307 | X25: =IF($C$20=$B$20,SUM($E$10:X10)/$C$25,SUM($E$10:X10)/$C$25) -> 647366.6091 | Y25: =IF($C$20=$B$20,SUM($E$10:Y10)/$C$25,SUM($E$10:Y10)/$C$25) -> 674746.0808 | Z25: =IF($C$20=$B$20,SUM($E$10:Z10)/$C$25,SUM($E$10:Z10)/$C$25) -> 691260.1291 | AA25: =IF($C$20=$B$20,SUM($E$10:AA10)/$C$25,SUM($E$10:AA10)/$C$25) -> 708793.9343 | AB25: =IF($C$20=$B$20,SUM($E$10:AB10)/$C$25,SUM($E$10:AB10)/$C$25) -> 725307.9826 | AC25: =IF($C$20=$B$20,SUM($E$10:AC10)/$C$25,SUM($E$10:AC10)/$C$25) -> 747728.0847 | AD25: =IF($C$20=$B$20,SUM($E$10:AD10)/$C$25,SUM($E$10:AD10)/$C$25) -> 764242.133 | AE25: =IF($C$20=$B$20,SUM($E$10:AE10)/$C$25,SUM($E$10:AE10)/$C$25) -> 781775.9382 | AF25: =IF($C$20=$B$20,SUM($E$10:AF10)/$C$25,SUM($E$10:AF10)/$C$25) -> 798289.9865 | AG25: =IF($C$20=$B$20,SUM($E$10:AG10)/$C$25,SUM($E$10:AG10)/$C$25) -> 814804.0348 | AH25: =IF($C$20=$B$20,SUM($E$10:AH10)/$C$25,SUM($E$10:AH10)/$C$25) -> 831318.0831 | AI25: =IF($C$20=$B$20,SUM($E$10:AI10)/$C$25,SUM($E$10:AI10)/$C$25) -> 847832.1315 | AJ25: =IF($C$20=$B$20,SUM($E$10:AJ10)/$C$25,SUM($E$10:AJ10)/$C$25) -> 864346.1798 | AK25: =IF($C$20=$B$20,SUM($E$10:AK10)/$C$25,SUM($E$10:AK10)/$C$25) -> 880860.2281 | AL25: =IF($C$20=$B$20,SUM($E$10:AL10)/$C$25,SUM($E$10:AL10)/$C$25) -> 897374.2764 | AM25: =IF($C$20=$B$20,SUM(E10:AM10)/$C$25,SUM($E$10:AM10)/$C$25) -> 913888.3248 | AN25: =IF($C$20=$B$20,SUM(F10:AN10)/$C$25,SUM($E$10:AN10)/$C$25) -> 930402.3731 | AO25: =IF($C$20=$B$20,SUM(G10:AO10)/$C$25,SUM($E$10:AO10)/$C$25) -> 946916.4214 | AP25: =IF($C$20=$B$20,SUM(H10:AP10)/$C$25,SUM($E$10:AP10)/$C$25) -> 963430.4697 | AQ25: =IF($C$20=$B$20,SUM(I10:AQ10)/$C$25,SUM($E$10:AQ10)/$C$25) -> 979944.518 | AR25: =IF($C$20=$B$20,SUM(J10:AR10)/$C$25,SUM($E$10:AR10)/$C$25) -> 996458.5664
A26: Meters, PRS, Telemetry | C26: =IF($C$20=$B$20,35,15) -> 15 | E26: =IF($C$20=$B$20,SUM($E$11:E11)/$C$26,SUM($E$11:E11)/$C$26) -> 15793.89675 | F26: =IF($C$20=$B$20,SUM($E$11:F11)/$C$26,SUM($E$11:F11)/$C$26) -> 144151.0615 | G26: =IF($C$20=$B$20,SUM($E$11:G11)/$C$26,SUM($E$11:G11)/$C$26) -> 231958.1257 | H26: =IF($C$20=$B$20,SUM($E$11:H11)/$C$26,SUM($E$11:H11)/$C$26) -> 298134.2121 | I26: =IF($C$20=$B$20,SUM($E$11:I11)/$C$26,SUM($E$11:I11)/$C$26) -> 366510.9199 | J26: =IF($C$20=$B$20,SUM($E$11:J11)/$C$26,SUM($E$11:J11)/$C$26) -> 430610.1334 | K26: =IF($C$20=$B$20,SUM($E$11:K11)/$C$26,SUM($E$11:K11)/$C$26) -> 493579.8782 | L26: =IF($C$20=$B$20,SUM($E$11:L11)/$C$26,SUM($E$11:L11)/$C$26) -> 556388.7648 | M26: =IF($C$20=$B$20,SUM($E$11:M11)/$C$26,SUM($E$11:M11)/$C$26) -> 617733.5729 | N26: =IF($C$20=$B$20,SUM($E$11:N11)/$C$26,SUM($E$11:N11)/$C$26) -> 676227.5508 | O26: =IF($C$20=$B$20,SUM($E$11:O11)/$C$26,SUM($E$11:O11)/$C$26) -> 694308.1585 | P26: =IF($C$20=$B$20,SUM($E$11:P11)/$C$26,SUM($E$11:P11)/$C$26) -> 710444.8283 | Q26: =IF($C$20=$B$20,SUM($E$11:Q11)/$C$26,SUM($E$11:Q11)/$C$26) -> 730067.9377 | R26: =IF($C$20=$B$20,SUM($E$11:R11)/$C$26,SUM($E$11:R11)/$C$26) -> 746204.6075 | S26: =IF($C$20=$B$20,SUM($E$11:S11)/$C$26,SUM(E11:S11)/$C$26) -> 762942.7532 | T26: =IF($C$20=$B$20,SUM($E$11:T11)/$C$26,SUM(F11:T11)/$C$26) -> 763277.8093 | U26: =IF($C$20=$B$20,SUM($E$11:U11)/$C$26,SUM(G11:U11)/$C$26) -> 654543.754 | V26: =IF($C$20=$B$20,SUM($E$11:V11)/$C$26,SUM(H11:V11)/$C$26) -> 582873.3595 | W26: =IF($C$20=$B$20,SUM($E$11:W11)/$C$26,SUM(I11:W11)/$C$26) -> 534557.945 | X26: =IF($C$20=$B$20,SUM($E$11:X11)/$C$26,SUM(J11:X11)/$C$26) -> 497008.1621 | Y26: =IF($C$20=$B$20,SUM($E$11:Y11)/$C$26,SUM(K11:Y11)/$C$26) -> 468065.5426 | Z26: =IF($C$20=$B$20,SUM($E$11:Z11)/$C$26,SUM(L11:Z11)/$C$26) -> 549248.263 | AA26: =IF($C$20=$B$20,SUM($E$11:AA11)/$C$26,SUM(M11:AA11)/$C$26) -> 590260.151 | AB26: =IF($C$20=$B$20,SUM($E$11:AB11)/$C$26,SUM(N11:AB11)/$C$26) -> 610286.7965 | AC26: =IF($C$20=$B$20,SUM($E$11:AC11)/$C$26,SUM(O11:AC11)/$C$26) -> 639392.9753 | AD26: =IF($C$20=$B$20,SUM($E$11:AD11)/$C$26,SUM(P11:AD11)/$C$26) -> 697896.8427 | AE26: =IF($C$20=$B$20,SUM($E$11:AE11)/$C$26,SUM(Q11:AE11)/$C$26) -> 757829.5532 | AF26: =IF($C$20=$B$20,SUM($E$11:AF11)/$C$26,SUM(R11:AF11)/$C$26) -> 813519.9745 | AG26: =IF($C$20=$B$20,SUM($E$11:AG11)/$C$26,SUM(S11:AG11)/$C$26) -> 871180.3859 | AH26: =IF($C$20=$B$20,SUM($E$11:AH11)/$C$26,SUM(T11:AH11)/$C$26) -> 925436.3184 | AI26: =IF($C$20=$B$20,SUM($E$11:AI11)/$C$26,SUM(U11:AI11)/$C$26) -> 939879.0387 | AJ26: =IF($C$20=$B$20,SUM($E$11:AJ11)/$C$26,SUM(V11:AJ11)/$C$26) -> 948866.3618 | AK26: =IF($C$20=$B$20,SUM($E$11:AK11)/$C$26,SUM(W11:AK11)/$C$26) -> 964774.1931 | AL26: =IF($C$20=$B$20,SUM($E$11:AL11)/$C$26,SUM(X11:AL11)/$C$26) -> 975523.9537 | AM26: =IF($C$20=$B$20,SUM(E11:AM11)/$C$26,SUM(Y11:AM11)/$C$26) -> 973899.9024 | AN26: =IF($C$20=$B$20,SUM(F11:AN11)/$C$26,SUM(Z11:AN11)/$C$26) -> 967346.1399 | AO26: 855238.1757 | AP26: 780027.8336 | AQ26: 728981.7797 | AR26: =IF($C$20=$B$20,SUM(J11:AR11)/$C$26,SUM(AD11:AR11)/$C$26) -> 682834.374
A27: Other Capex | C27: =IF($C$20=$B$20,35,5) -> 5 | E27: =IF($C$20=$B$20,SUM($E$12:E12)/$C$27,SUM($E$12:E12)/$C$27) -> 77372.04988 | F27: =IF($C$20=$B$20,SUM($E$12:F12)/$C$27,SUM($E$12:F12)/$C$27) -> 154094.1089 | G27: =IF($C$20=$B$20,SUM($E$12:G12)/$C$27,SUM($E$12:G12)/$C$27) -> 230314.7373 | H27: =IF($C$20=$B$20,SUM($E$12:H12)/$C$27,SUM($E$12:H12)/$C$27) -> 306037.2122 | I27: =IF($C$20=$B$20,SUM($E$12:I12)/$C$27,SUM(E12:I12)/$C$27) -> 381264.7894 | J27: =IF($C$20=$B$20,SUM($E$12:J12)/$C$27,SUM(F12:J12)/$C$27) -> 318837.1865 | K27: =IF($C$20=$B$20,SUM($E$12:K12)/$C$27,SUM(G12:K12)/$C$27) -> 257059.5746 | L27: =IF($C$20=$B$20,SUM($E$12:L12)/$C$27,SUM(H12:L12)/$C$27) -> 195783.3933 | M27: =IF($C$20=$B$20,SUM($E$12:M12)/$C$27,SUM(I12:M12)/$C$27) -> 135005.3655 | N27: =IF($C$20=$B$20,SUM($E$12:N12)/$C$27,SUM(J12:N12)/$C$27) -> 74722.23535 | O27: =IF($C$20=$B$20,SUM($E$12:O12)/$C$27,SUM(K12:O12)/$C$27) -> 74722.23535 | P27: =IF($C$20=$B$20,SUM($E$12:P12)/$C$27,SUM(L12:P12)/$C$27) -> 74722.23535 | Q27: =IF($C$20=$B$20,SUM($E$12:Q12)/$C$27,SUM(M12:Q12)/$C$27) -> 74722.23535 | R27: =IF($C$20=$B$20,SUM($E$12:R12)/$C$27,SUM(N12:R12)/$C$27) -> 74722.23535 | S27: =IF($C$20=$B$20,SUM($E$12:S12)/$C$27,SUM(O12:S12)/$C$27) -> 74722.23535 | T27: =IF($C$20=$B$20,SUM($E$12:T12)/$C$27,SUM(P12:T12)/$C$27) -> 74722.23535 | U27: =IF($C$20=$B$20,SUM($E$12:U12)/$C$27,SUM(Q12:U12)/$C$27) -> 74722.23535 | V27: =IF($C$20=$B$20,SUM($E$12:V12)/$C$27,SUM(R12:V12)/$C$27) -> 74722.23535 | W27: =IF($C$20=$B$20,SUM($E$12:W12)/$C$27,SUM(S12:W12)/$C$27) -> 74722.23535 | X27: =IF($C$20=$B$20,SUM($E$12:X12)/$C$27,SUM(T12:X12)/$C$27) -> 74722.23535 | Y27: =IF($C$20=$B$20,SUM($E$12:Y12)/$C$27,SUM(U12:Y12)/$C$27) -> 74722.23535 | Z27: =IF($C$20=$B$20,SUM($E$12:Z12)/$C$27,SUM(V12:Z12)/$C$27) -> 74722.23535 | AA27: =IF($C$20=$B$20,SUM($E$12:AA12)/$C$27,SUM(W12:AA12)/$C$27) -> 74722.23535 | AB27: =IF($C$20=$B$20,SUM($E$12:AB12)/$C$27,SUM(X12:AB12)/$C$27) -> 74722.23535 | AC27: =IF($C$20=$B$20,SUM($E$12:AC12)/$C$27,SUM(Y12:AC12)/$C$27) -> 74722.23535 | AD27: =IF($C$20=$B$20,SUM($E$12:AD12)/$C$27,SUM(Z12:AD12)/$C$27) -> 74722.23535 | AE27: =IF($C$20=$B$20,SUM($E$12:AE12)/$C$27,SUM(AA12:AE12)/$C$27) -> 74722.23535 | AF27: =IF($C$20=$B$20,SUM($E$12:AF12)/$C$27,SUM(AB12:AF12)/$C$27) -> 74722.23535 | AG27: =IF($C$20=$B$20,SUM($E$12:AG12)/$C$27,SUM(AC12:AG12)/$C$27) -> 74722.23535 | AH27: =IF($C$20=$B$20,SUM($E$12:AH12)/$C$27,SUM(AD12:AH12)/$C$27) -> 74722.23535 | AI27: =IF($C$20=$B$20,SUM($E$12:AI12)/$C$27,SUM(AE12:AI12)/$C$27) -> 74722.23535 | AJ27: =IF($C$20=$B$20,SUM($E$12:AJ12)/$C$27,SUM(AF12:AJ12)/$C$27) -> 74722.23535 | AK27: =IF($C$20=$B$20,SUM($E$12:AK12)/$C$27,SUM(AG12:AK12)/$C$27) -> 74722.23535 | AL27: =IF($C$20=$B$20,SUM($E$12:AL12)/$C$27,SUM(AH12:AL12)/$C$27) -> 74722.23535 | AM27: =IF($C$20=$B$20,SUM(E12:AM12)/$C$27,SUM(AI12:AM12)/$C$27) -> 74722.23535 | AN27: =IF($C$20=$B$20,SUM(F12:AN12)/$C$27,SUM(AJ12:AN12)/$C$27) -> 74722.23535 | AO27: 74722.23535 | AP27: 74722.23535 | AQ27: 74722.23535 | AR27: =IF($C$20=$B$20,SUM(J12:AR12)/$C$27,SUM(AN12:AR12)/$C$27) -> 74722.23535
A28: Total depreciation | E28: =SUM(E23:E27) -> 256043.8162 | F28: =SUM(F23:F27) -> 717221.7609 | G28: 1077642.225 | H28: 1370793.599 | I28: 1676462.343 | J28: 1795469.951 | K28: 1912277.481 | L28: 2028656.236 | M28: 2148347.526 | N28: 2259854.632 | O28: 2373460.791 | P28: 2418215.98 | Q28: 2472959.701 | R28: 2517714.89 | S28: 2564193.287 | T28: 2593133.863 | U28: 2519520.419 | V28: 2476468.544 | W28: 2457893.381 | X28: 2448021.912 | Y28: 2453259.7 | Z28: 2556670.861 | AA28: 2621032.923 | AB28: 2663288.009 | AC28: 2721111.722 | AD28: 2801844.03 | AE28: 2885126.914 | AF28: 2963045.777 | AG28: 3042934.629 | AH28: 3119419.003 | AI28: 3156090.164 | AJ28: 3187305.928 | AK28: 3225442.201 | AL28: 3258420.402 | AM28: 3279024.792 | AN28: 3294699.471 | AO28: 3204819.947 | AP28: 3151838.046 | AQ28: 3123020.433 | AR28: 3099101.469
A30: DAV
A31: Opening balance | E31: =D34 -> 2711220.193 | F31: =E34 -> 6882839.669 | G31: 18718534.51 | H31: 27194812.25 | I31: 33245384.81 | J31: 39453289.34 | K31: 43387469.72 | L31: 47119076.53 | M31: 50701117.82 | N31: 54312645.03 | O31: 57536772.65 | P31: 59330265.25 | Q31: 58373562.32 | R31: 57674495.96 | S31: 56618294.12 | T31: 55569505.33 | U31: 54437248.77 | V31: 53691621.7 | W31: =V34 -> 52676666.21 | X31: =W34 -> 51751015.21 | Y31: =X34 -> 50947251.97 | Z31: =Y34 -> 50463279.69 | AA31: =Z34 -> 51032755.68 | AB31: =AA34 -> 50977763.55 | AC31: =AB34 -> 50498907.23 | AD31: =AC34 -> 50315221.45 | AE31: =AD34 -> 49626004.42 | AF31: =AE34 -> 48890647.39 | AG31: =AF34 -> 48021164.45 | AH31: 47049045.92 | AI31: 45958397.96 | AJ31: 44224742.77 | AK31: 42430453.21 | AL31: 40649538.4 | AM31: 38784134.36 | AN31: 36907012.55 | AO31: 35005215.43 | AP31: 33244922.88 | AQ31: 31486101.19 | AR31: 29781821.63
A32: Capex | E32: =E13 -> 4427663.292 | F32: =F13 -> 12552916.6 | G32: 9553919.962 | H32: 7421366.167 | I32: 7884366.874 | J32: 5729650.323 | K32: 5643884.291 | L32: 5610697.53 | M32: 5759874.738 | N32: 5483982.25 | O32: 4166953.387 | P32: 1461513.048 | Q32: 1773893.348 | R32: 1461513.048 | S32: 1515404.49 | T32: 1460877.31 | U32: 1773893.348 | V32: 1461513.048 | W32: 1532242.383 | X32: 1644258.675 | Y32: 1969287.415 | Z32: 3126146.855 | AA32: 2566040.798 | AB32: 2184431.68 | AC32: 2537425.948 | AD32: 2112627.003 | AE32: 2149769.881 | AF32: 2093562.838 | AG32: 2070816.093 | AH32: 2028771.051 | AI32: 1422434.974 | AJ32: 1393016.365 | AK32: 1444527.392 | AL32: 1393016.365 | AM32: 1401902.98 | AN32: 1392902.35 | AO32: 1444527.392 | AP32: 1393016.365 | AQ32: 1418740.872 | AR32: 1585651.142
A33: Depreciation | E33: =-E28 -> -256043.8162 | F33: =-F28 -> -717221.7609 | G33: -1077642.225 | H33: -1370793.599 | I33: -1676462.343 | J33: -1795469.951 | K33: -1912277.481 | L33: -2028656.236 | M33: -2148347.526 | N33: -2259854.632 | O33: -2373460.791 | P33: -2418215.98 | Q33: -2472959.701 | R33: -2517714.89 | S33: -2564193.287 | T33: -2593133.863 | U33: -2519520.419 | V33: -2476468.544 | W33: -2457893.381 | X33: -2448021.912 | Y33: -2453259.7 | Z33: -2556670.861 | AA33: -2621032.923 | AB33: -2663288.009 | AC33: -2721111.722 | AD33: -2801844.03 | AE33: -2885126.914 | AF33: -2963045.777 | AG33: -3042934.629 | AH33: -3119419.003 | AI33: -3156090.164 | AJ33: -3187305.928 | AK33: -3225442.201 | AL33: -3258420.402 | AM33: -3279024.792 | AN33: -3294699.471 | AO33: -3204819.947 | AP33: -3151838.046 | AQ33: -3123020.433 | AR33: -3099101.469
A34: Closing balance | D34: =D18 -> 2711220.193 | E34: =SUM(E31:E33) -> 6882839.669 | F34: =SUM(F31:F33) -> 18718534.51 | G34: 27194812.25 | H34: 33245384.81 | I34: 39453289.34 | J34: 43387469.72 | K34: 47119076.53 | L34: 50701117.82 | M34: 54312645.03 | N34: 57536772.65 | O34: 59330265.25 | P34: 58373562.32 | Q34: 57674495.96 | R34: 56618294.12 | S34: 55569505.33 | T34: 54437248.77 | U34: 53691621.7 | V34: 52676666.21 | W34: 51751015.21 | X34: 50947251.97 | Y34: 50463279.69 | Z34: 51032755.68 | AA34: 50977763.55 | AB34: 50498907.23 | AC34: 50315221.45 | AD34: 49626004.42 | AE34: 48890647.39 | AF34: 48021164.45 | AG34: 47049045.92 | AH34: 45958397.96 | AI34: 44224742.77 | AJ34: 42430453.21 | AK34: 40649538.4 | AL34: 38784134.36 | AM34: 36907012.55 | AN34: 35005215.43 | AO34: 33244922.88 | AP34: 31486101.19 | AQ34: 29781821.63 | AR34: 28268371.3

Sheet GD17 Pi's Calc - 40 yrs
A1: =242.7/193.4 -> 1.254912099
A2: SGN P Tariff Model - Calculation of Pi tariffs, Allowed Revenues, PA and TRV | D2: Return
D3: GD17 | E3: 0.053
B4: Av £2014 | D4: Post GD17 | E4: =E3 -> 0.053
B5: £'000
A6: Real Return pa | D6: =E3 -> 0.053 | E6: =D6 -> 0.053 | F6: =E6 -> 0.053 | G6: =F6 -> 0.053 | H6: =G6 -> 0.053 | I6: =E4 -> 0.053 | J6: =I6 -> 0.053 | K6: =J6 -> 0.053 | L6: 0.053 | M6: 0.053 | N6: 0.053 | O6: 0.053 | P6: 0.053 | Q6: 0.053 | R6: 0.053 | S6: 0.053 | T6: 0.053 | U6: 0.053 | V6: 0.053 | W6: 0.053 | X6: 0.053 | Y6: 0.053 | Z6: 0.053 | AA6: 0.053 | AB6: 0.053 | AC6: 0.053 | AD6: 0.053 | AE6: 0.053 | AF6: 0.053 | AG6: 0.053 | AH6: 0.053 | AI6: 0.053 | AJ6: 0.053 | AK6: 0.053 | AL6: 0.053 | AM6: 0.053 | AN6: 0.053 | AO6: 0.053 | AP6: 0.053 | AQ6: 0.053
A7: Discount Factor (Mid Yr) | B7: 0.5 | C7: 1 | D7: =D8*(1+D6*$B$7) -> 0.9748338082 | E7: =E8*(1+E6*$B$7) -> 0.9257680989 | F7: 0.8791719838 | G7: 0.8349211622 | H7: 0.7928975899 | I7: 0.7529891642 | J7: 0.7150894247 | K7: =K8*(1+K6*$B$7) -> 0.6790972694 | L7: 0.6449166851 | M7: 0.6124564911 | N7: 0.581630096 | O7: =O8*(1+O6*$B$7) -> 0.5523552669 | P7: 0.5245539096 | Q7: 0.498151861 | R7: 0.4730786904 | S7: 0.4492675123 | T7: 0.4266548075 | U7: 0.405180254 | V7: =V8*(1+V6*$B$7) -> 0.384786566 | W7: =W8*(1+W6*$B$7) -> 0.3654193409 | X7: 0.3470269145 | Y7: =Y8*(1+Y6*$B$7) -> 0.3295602227 | Z7: 0.3129726711 | AA7: 0.2972200105 | AB7: 0.2822602189 | AC7: 0.2680533893 | AD7: 0.2545616233 | AE7: 0.24174893 | AF7: =AF8*(1+AF6*$B$7) -> 0.2295811301 | AG7: =AG8*(1+AG6*$B$7) -> 0.2180257646 | AH7: 0.2070520081 | AI7: 0.196630587 | AJ7: 0.1867337009 | AK7: 0.1773349486 | AL7: 0.1684092579 | AM7: 0.1599328185 | AN7: 0.1518830186 | AO7: =AO8*(1+AO6*$B$7) -> 0.1442383842 | AP7: 0.1369785225 | AQ7: 0.130084067
A8: Discount Factor (Yr End) | C8: 1 | D8: =C8/(1+D6) -> 0.9496676163 | E8: =D8/(1+E6) -> 0.9018685815 | F8: =E8/(1+F6) -> 0.8564753861 | G8: 0.8133669383 | H8: 0.7724282415 | I8: 0.7335500869 | J8: 0.6966287625 | K8: 0.6615657764 | L8: 0.6282675939 | M8: 0.5966453883 | N8: 0.5666148037 | O8: 0.53809573 | P8: 0.5110120893 | Q8: 0.4852916327 | R8: 0.4608657481 | S8: 0.4376692764 | T8: 0.4156403385 | U8: 0.3947201695 | V8: 0.3748529625 | W8: 0.3559857194 | X8: 0.3380681096 | Y8: 0.3210523358 | Z8: 0.3048930064 | AA8: 0.2895470147 | AB8: 0.2749734232 | AC8: 0.2611333554 | AD8: 0.2479898912 | AE8: 0.2355079688 | AF8: 0.2236542914 | AG8: =AF8/(1+AG6) -> 0.2123972378 | AH8: =AG8/(1+AH6) -> 0.2017067785 | AI8: =AH8/(1+AI6) -> 0.1915543955 | AJ8: =AI8/(1+AJ6) -> 0.1819130062 | AK8: =AJ8/(1+AK6) -> 0.172756891 | AL8: =AK8/(1+AL6) -> 0.1640616249 | AM8: =AL8/(1+AM6) -> 0.1558040122 | AN8: =AM8/(1+AN6) -> 0.1479620249 | AO8: =AN8/(1+AO6) -> 0.1405147435 | AP8: =AO8/(1+AP6) -> 0.1334423015 | AQ8: =AP8/(1+AQ6) -> 0.1267258324
I11: Allowances from 2023 onwards are for illustrative purposes only and will be determined in subsequent price controls
C12: 2017 | D12: =C12+1 -> 2018 | E12: =D12+1 -> 2019 | F12: 2020 | G12: 2021 | H12: 2022 | I12: 2023 | J12: 2024 | K12: 2025 | L12: 2026 | M12: 2027 | N12: 2028 | O12: 2029 | P12: 2030 | Q12: 2031 | R12: 2032 | S12: 2033 | T12: 2034 | U12: 2035 | V12: 2036 | W12: 2037 | X12: 2038 | Y12: 2039 | Z12: 2040 | AA12: 2041 | AB12: 2042 | AC12: 2043 | AD12: 2044 | AE12: 2045 | AF12: 2046 | AG12: 2047 | AH12: 2048 | AI12: 2049 | AJ12: 2050 | AK12: 2051 | AL12: 2052 | AM12: 2053 | AN12: 2054 | AO12: 2055 | AP12: 2056 | AQ12: 2057
A14: Capex | D14: =Inputs!E19/1000 -> 4427.663292 | E14: =Inputs!F19/1000 -> 12552.9166 | F14: =Inputs!G19/1000 -> 9553.919962 | G14: =Inputs!H19/1000 -> 7421.366167 | H14: =Inputs!I19/1000 -> 7884.366874 | I14: =Inputs!J19/1000 -> 5729.650323 | J14: =Inputs!K19/1000 -> 5643.884291 | K14: =Inputs!L19/1000 -> 5610.69753 | L14: =Inputs!M19/1000 -> 5759.874738 | M14: =Inputs!N19/1000 -> 5483.98225 | N14: =Inputs!O19/1000 -> 4166.953387 | O14: =Inputs!P19/1000 -> 1461.513048 | P14: =Inputs!Q19/1000 -> 1773.893348 | Q14: =Inputs!R19/1000 -> 1461.513048 | R14: =Inputs!S19/1000 -> 1515.40449 | S14: =Inputs!T19/1000 -> 1460.87731 | T14: =Inputs!U19/1000 -> 1773.893348 | U14: =Inputs!V19/1000 -> 1461.513048 | V14: =Inputs!W19/1000 -> 1532.242383 | W14: =Inputs!X19/1000 -> 1644.258675 | X14: =Inputs!Y19/1000 -> 1969.287415 | Y14: =Inputs!Z19/1000 -> 3126.146855 | Z14: =Inputs!AA19/1000 -> 2566.040798 | AA14: =Inputs!AB19/1000 -> 2184.43168 | AB14: =Inputs!AC19/1000 -> 2537.425948 | AC14: =Inputs!AD19/1000 -> 2112.627003 | AD14: =Inputs!AE19/1000 -> 2149.769881 | AE14: =Inputs!AF19/1000 -> 2093.562838 | AF14: =Inputs!AG19/1000 -> 2070.816093 | AG14: =Inputs!AH19/1000 -> 2028.771051 | AH14: =Inputs!AI19/1000 -> 1422.434974 | AI14: =Inputs!AJ19/1000 -> 1393.016365 | AJ14: =Inputs!AK19/1000 -> 1444.527392 | AK14: =Inputs!AL19/1000 -> 1393.016365 | AL14: =Inputs!AM19/1000 -> 1401.90298 | AM14: =Inputs!AN19/1000 -> 1392.90235 | AN14: =Inputs!AO19/1000 -> 1444.527392 | AO14: =Inputs!AP19/1000 -> 1393.016365 | AP14: =Inputs!AQ19/1000 -> 1418.740872 | AQ14: =Inputs!AR19/1000 -> 1585.651142
A15: Opex | D15: =Inputs!E22/1000 -> 843.0101674 | E15: =Inputs!F22/1000 -> 2156.026499 | F15: =Inputs!G22/1000 -> 1971.310831 | G15: =Inputs!H22/1000 -> 1693.885456 | H15: =Inputs!I22/1000 -> 2015.34236 | I15: =Inputs!J22/1000 -> 1476.414514 | J15: =Inputs!K22/1000 -> 1648.9413 | K15: =Inputs!L22/1000 -> 1528.942707 | L15: =Inputs!M22/1000 -> 1583.217288 | M15: =Inputs!N22/1000 -> 1588.646273 | N15: =Inputs!O22/1000 -> 1768.593223 | O15: =Inputs!P22/1000 -> 1656.505374 | P15: =Inputs!Q22/1000 -> 1719.213715 | Q15: =Inputs!R22/1000 -> 1733.634057 | R15: =Inputs!S22/1000 -> 1923.166822 | S15: =Inputs!T22/1000 -> 1821.298551 | T15: =Inputs!U22/1000 -> 1894.902135 | U15: =Inputs!V22/1000 -> 1920.938054 | V15: =Inputs!W22/1000 -> 2122.854356 | W15: =Inputs!X22/1000 -> 2034.188356 | X15: =Inputs!Y22/1000 -> 2121.867073 | Y15: =Inputs!Z22/1000 -> 2162.908698 | Z15: =Inputs!AA22/1000 -> 2380.822804 | AA15: =Inputs!AB22/1000 -> 2309.212296 | AB15: =Inputs!AC22/1000 -> 2415.074123 | AC15: =Inputs!AD22/1000 -> 2475.501028 | AD15: =Inputs!AE22/1000 -> 2566.978936 | AE15: =Inputs!AF22/1000 -> 2664.504874 | AF15: =Inputs!AG22/1000 -> 2768.478704 | AG15: =Inputs!AH22/1000 -> 2879.326727 | AH15: =Inputs!AI22/1000 -> 2997.503428 | AI15: =Inputs!AJ22/1000 -> 3123.493339 | AJ15: =Inputs!AK22/1000 -> 3257.813029 | AK15: =Inputs!AL22/1000 -> 3401.013217 | AL15: =Inputs!AM22/1000 -> 3553.681034 | AM15: =Inputs!AN22/1000 -> 3716.44243 | AN15: =Inputs!AO22/1000 -> 3889.964738 | AO15: =Inputs!AP22/1000 -> 4074.959412 | AP15: =Inputs!AQ22/1000 -> 4272.184943 | AQ15: =Inputs!AR22/1000 -> 4482.449969
A17: Volumes (therms '000) | D17: =SUM(D18:D24) -> 5054.513242 | E17: =SUM(E18:E24) -> 21811.35617 | F17: 28332.55679 | G17: 31391.06721 | H17: 32804.42921 | I17: 33917.55586 | J17: 34942.66364 | K17: 35926.63588 | L17: 36886.08023 | M17: 37782.44973 | N17: 38233.53662 | O17: 38308.12006 | P17: 38438.75241 | Q17: 38560.55138 | R17: 38634.60499 | S17: 38700.38274 | T17: 38796.24238 | U17: 38883.2719 | V17: 38924.0185 | W17: 38950.37288 | X17: 38999.07995 | Y17: 39002.20004 | Z17: 38925.17487 | AA17: 38842.09685 | AB17: 38787.59049 | AC17: 38725.67195 | AD17: 38622.58747 | AE17: 38513.28131 | AF17: 38431.10063 | AG17: 38327.78652 | AH17: 38164.22613 | AI17: 37916.19499 | AJ17: 37586.0426 | AK17: 37253.79912 | AL17: 36919.46455 | AM17: 36583.0389 | AN17: 36244.52217 | AO17: 35860.1758 | AP17: 35431.56812 | AQ17: 35002.96045
A18: V Domestic/Very Small Tariff (P1) | D18: =Inputs!E26/1000 -> 239.813 | E18: =Inputs!F26/1000 -> 1043.0665 | F18: =Inputs!G26/1000 -> 2212.093 | G18: =Inputs!H26/1000 -> 3042.876 | H18: =Inputs!I26/1000 -> 3922.058 | I18: =Inputs!J26/1000 -> 4750.102829 | J18: =Inputs!K26/1000 -> 5499.3388 | K18: =Inputs!L26/1000 -> 6216.649214 | L18: =Inputs!M26/1000 -> 6945.324434 | M18: =Inputs!N26/1000 -> 7646.107 | N18: =Inputs!O26/1000 -> 8137.01456 | O18: =Inputs!P26/1000 -> 8483.55452 | P18: =Inputs!Q26/1000 -> 8886.143394 | Q18: =Inputs!R26/1000 -> 9279.898897 | R18: =Inputs!S26/1000 -> 9625.909029 | S18: =Inputs!T26/1000 -> 9963.643303 | T18: =Inputs!U26/1000 -> 10331.45946 | U18: =Inputs!V26/1000 -> 10690.44551 | V18: =Inputs!W26/1000 -> 11003.14864 | W18: =Inputs!X26/1000 -> 11301.45954 | X18: =Inputs!Y26/1000 -> 11622.12313 | Y18: =Inputs!Z26/1000 -> 11897.19975 | Z18: =Inputs!AA26/1000 -> 12092.13111 | AA18: =Inputs!AB26/1000 -> 12281.00961 | AB18: =Inputs!AC26/1000 -> 12498.45977 | AC18: =Inputs!AD26/1000 -> 12708.49776 | AD18: =Inputs!AE26/1000 -> 12877.36981 | AE18: =Inputs!AF26/1000 -> 13040.02017 | AF18: =Inputs!AG26/1000 -> 13229.79601 | AG18: =Inputs!AH26/1000 -> 13398.43843 | AH18: =Inputs!AI26/1000 -> 13506.83456 | AI18: =Inputs!AJ26/1000 -> 13530.75995 | AJ18: =Inputs!AK26/1000 -> 13472.56408 | AK18: =Inputs!AL26/1000 -> 13412.27713 | AL18: =Inputs!AM26/1000 -> 13349.89909 | AM18: =Inputs!AN26/1000 -> 13285.42996 | AN18: =Inputs!AO26/1000 -> 13218.86975 | AO18: =Inputs!AP26/1000 -> 13106.47991 | AP18: =Inputs!AQ26/1000 -> 12949.82875 | AQ18: =Inputs!AR26/1000 -> 12793.1776
A19: V SME Tariff (P2) | D19: =Inputs!E27/1000 -> 101.31 | E19: =Inputs!F27/1000 -> 475.85 | F19: =Inputs!G27/1000 -> 1092.92 | G19: =Inputs!H27/1000 -> 1630.17 | H19: =Inputs!I27/1000 -> 2164.35 | I19: =Inputs!J27/1000 -> 2678.443429 | J19: =Inputs!K27/1000 -> 3183.326857 | K19: =Inputs!L27/1000 -> 3679.000286 | L19: =Inputs!M27/1000 -> 4138.781029 | M19: =Inputs!N27/1000 -> 4563.379571 | N19: =Inputs!O27/1000 -> 4752.570514 | O19: =Inputs!P27/1000 -> 4709.6256 | P19: =Inputs!Q27/1000 -> 4666.680686 | Q19: =Inputs!R27/1000 -> 4623.735771 | R19: =Inputs!S27/1000 -> 4580.790857 | S19: =Inputs!T27/1000 -> 4537.845943 | T19: =Inputs!U27/1000 -> 4494.901029 | U19: =Inputs!V27/1000 -> 4451.956114 | V19: =Inputs!W27/1000 -> 4409.0112 | W19: =Inputs!X27/1000 -> 4366.066286 | X19: =Inputs!Y27/1000 -> 4323.121371 | Y19: =Inputs!Z27/1000 -> 4280.176457 | Z19: =Inputs!AA27/1000 -> 4237.231543 | AA19: =Inputs!AB27/1000 -> 4194.286629 | AB19: =Inputs!AC27/1000 -> 4151.341714 | AC19: =Inputs!AD27/1000 -> 4108.3968 | AD19: =Inputs!AE27/1000 -> 4065.451886 | AE19: =Inputs!AF27/1000 -> 4022.506971 | AF19: =Inputs!AG27/1000 -> 3979.562057 | AG19: =Inputs!AH27/1000 -> 3936.617143 | AH19: =Inputs!AI27/1000 -> 3893.672229 | AI19: =Inputs!AJ27/1000 -> 3850.727314 | AJ19: =Inputs!AK27/1000 -> 3807.7824 | AK19: =Inputs!AL27/1000 -> 3764.837486 | AL19: =Inputs!AM27/1000 -> 3721.892571 | AM19: =Inputs!AN27/1000 -> 3678.947657 | AN19: =Inputs!AO27/1000 -> 3636.002743 | AO19: =Inputs!AP27/1000 -> 3593.057829 | AP19: =Inputs!AQ27/1000 -> 3550.112914 | AQ19: =Inputs!AR27/1000 -> 3507.168
A20: V Large Tariff (P3) | D20: =Inputs!E28/1000 -> 37.5 | E20: =Inputs!F28/1000 -> 325.78125 | F20: =Inputs!G28/1000 -> 926.3671875 | G20: =Inputs!H28/1000 -> 1238.671875 | H20: =Inputs!I28/1000 -> 1238.671875 | I20: =Inputs!J28/1000 -> 1228.054688 | J20: =Inputs!K28/1000 -> 1217.4375 | K20: =Inputs!L28/1000 -> 1206.820312 | L20: =Inputs!M28/1000 -> 1196.203125 | M20: =Inputs!N28/1000 -> 1185.585938 | N20: =Inputs!O28/1000 -> 1174.96875 | O20: =Inputs!P28/1000 -> 1164.351562 | P20: =Inputs!Q28/1000 -> 1153.734375 | Q20: =Inputs!R28/1000 -> 1143.117188 | R20: =Inputs!S28/1000 -> 1132.5 | S20: =Inputs!T28/1000 -> 1121.882812 | T20: =Inputs!U28/1000 -> 1111.265625 | U20: =Inputs!V28/1000 -> 1100.648438 | V20: =Inputs!W28/1000 -> 1090.03125 | W20: =Inputs!X28/1000 -> 1079.414062 | X20: =Inputs!Y28/1000 -> 1068.796875 | Y20: =Inputs!Z28/1000 -> 1058.179688 | Z20: =Inputs!AA28/1000 -> 1047.5625 | AA20: =Inputs!AB28/1000 -> 1036.945312 | AB20: =Inputs!AC28/1000 -> 1026.328125 | AC20: =Inputs!AD28/1000 -> 1015.710938 | AD20: =Inputs!AE28/1000 -> 1005.09375 | AE20: =Inputs!AF28/1000 -> 994.4765625 | AF20: =Inputs!AG28/1000 -> 983.859375 | AG20: =Inputs!AH28/1000 -> 973.2421875 | AH20: =Inputs!AI28/1000 -> 962.625 | AI20: =Inputs!AJ28/1000 -> 952.0078125 | AJ20: =Inputs!AK28/1000 -> 941.390625 | AK20: =Inputs!AL28/1000 -> 930.7734375 | AL20: =Inputs!AM28/1000 -> 920.15625 | AM20: =Inputs!AN28/1000 -> 909.5390625 | AN20: =Inputs!AO28/1000 -> 898.921875 | AO20: =Inputs!AP28/1000 -> 888.3046875 | AP20: =Inputs!AQ28/1000 -> 877.6875 | AQ20: =Inputs!AR28/1000 -> 867.0703125
A21: V CHP Contract (P4) | D21: =Inputs!E29/1000 -> 0 | E21: =Inputs!F29/1000 -> 0 | F21: =Inputs!G29/1000 -> 0 | G21: =Inputs!H29/1000 -> 0 | H21: =Inputs!I29/1000 -> 0 | I21: =Inputs!J29/1000 -> 0 | J21: =Inputs!K29/1000 -> 0 | K21: =Inputs!L29/1000 -> 0 | L21: =Inputs!M29/1000 -> 0 | M21: =Inputs!N29/1000 -> 0 | N21: =Inputs!O29/1000 -> 0 | O21: =Inputs!P29/1000 -> 0 | P21: =Inputs!Q29/1000 -> 0 | Q21: =Inputs!R29/1000 -> 0 | R21: =Inputs!S29/1000 -> 0 | S21: =Inputs!T29/1000 -> 0 | T21: =Inputs!U29/1000 -> 0 | U21: =Inputs!V29/1000 -> 0 | V21: =Inputs!W29/1000 -> 0 | W21: =Inputs!X29/1000 -> 0 | X21: =Inputs!Y29/1000 -> 0 | Y21: =Inputs!Z29/1000 -> 0 | Z21: =Inputs!AA29/1000 -> 0 | AA21: =Inputs!AB29/1000 -> 0 | AB21: =Inputs!AC29/1000 -> 0 | AC21: =Inputs!AD29/1000 -> 0 | AD21: =Inputs!AE29/1000 -> 0 | AE21: =Inputs!AF29/1000 -> 0 | AF21: =Inputs!AG29/1000 -> 0 | AG21: =Inputs!AH29/1000 -> 0 | AH21: =Inputs!AI29/1000 -> 0 | AI21: =Inputs!AJ29/1000 -> 0 | AJ21: =Inputs!AK29/1000 -> 0 | AK21: =Inputs!AL29/1000 -> 0 | AL21: =Inputs!AM29/1000 -> 0 | AM21: =Inputs!AN29/1000 -> 0 | AN21: =Inputs!AO29/1000 -> 0 | AO21: =Inputs!AP29/1000 -> 0 | AP21: =Inputs!AQ29/1000 -> 0 | AQ21: =Inputs!AR29/1000 -> 0
A22: V Firm Contract (P5) | D22: =Inputs!E30/1000 -> 3082.140242 | E22: =Inputs!F30/1000 -> 7216.658424 | F22: =Inputs!G30/1000 -> 11351.17661 | G22: =Inputs!H30/1000 -> 12729.34933 | H22: =Inputs!I30/1000 -> 12729.34933 | I22: =Inputs!J30/1000 -> 12620.24062 | J22: =Inputs!K30/1000 -> 12511.13192 | K22: =Inputs!L30/1000 -> 12402.02321 | L22: =Inputs!M30/1000 -> 12292.9145 | M22: =Inputs!N30/1000 -> 12183.80579 | N22: =Inputs!O30/1000 -> 12074.69708 | O22: =Inputs!P30/1000 -> 11965.58837 | P22: =Inputs!Q30/1000 -> 11856.47966 | Q22: =Inputs!R30/1000 -> 11747.37096 | R22: =Inputs!S30/1000 -> 11638.26225 | S22: =Inputs!T30/1000 -> 11529.15354 | T22: =Inputs!U30/1000 -> 11420.04483 | U22: =Inputs!V30/1000 -> 11310.93612 | V22: =Inputs!W30/1000 -> 11201.82741 | W22: =Inputs!X30/1000 -> 11092.7187 | X22: =Inputs!Y30/1000 -> 10983.61 | Y22: =Inputs!Z30/1000 -> 10874.50129 | Z22: =Inputs!AA30/1000 -> 10765.39258 | AA22: =Inputs!AB30/1000 -> 10656.28387 | AB22: =Inputs!AC30/1000 -> 10547.17516 | AC22: =Inputs!AD30/1000 -> 10438.06645 | AD22: =Inputs!AE30/1000 -> 10328.95774 | AE22: =Inputs!AF30/1000 -> 10219.84904 | AF22: =Inputs!AG30/1000 -> 10110.74033 | AG22: =Inputs!AH30/1000 -> 10001.63162 | AH22: =Inputs!AI30/1000 -> 9892.52291 | AI22: =Inputs!AJ30/1000 -> 9783.414202 | AJ22: =Inputs!AK30/1000 -> 9674.305493 | AK22: =Inputs!AL30/1000 -> 9565.196785 | AL22: =Inputs!AM30/1000 -> 9456.088076 | AM22: =Inputs!AN30/1000 -> 9346.979368 | AN22: =Inputs!AO30/1000 -> 9237.870659 | AO22: =Inputs!AP30/1000 -> 9128.76195 | AP22: =Inputs!AQ30/1000 -> 9019.653242 | AQ22: =Inputs!AR30/1000 -> 8910.544533
A23: V Interruptible Contract (P6) | D23: =Inputs!E31/1000 -> 0 | E23: =Inputs!F31/1000 -> 0 | F23: =Inputs!G31/1000 -> 0 | G23: =Inputs!H31/1000 -> 0 | H23: =Inputs!I31/1000 -> 0 | I23: =Inputs!J31/1000 -> 0 | J23: =Inputs!K31/1000 -> 0 | K23: =Inputs!L31/1000 -> 0 | L23: =Inputs!M31/1000 -> 0 | M23: =Inputs!N31/1000 -> 0 | N23: =Inputs!O31/1000 -> 0 | O23: =Inputs!P31/1000 -> 0 | P23: =Inputs!Q31/1000 -> 0 | Q23: =Inputs!R31/1000 -> 0 | R23: =Inputs!S31/1000 -> 0 | S23: =Inputs!T31/1000 -> 0 | T23: =Inputs!U31/1000 -> 0 | U23: =Inputs!V31/1000 -> 0 | V23: =Inputs!W31/1000 -> 0 | W23: =Inputs!X31/1000 -> 0 | X23: =Inputs!Y31/1000 -> 0 | Y23: =Inputs!Z31/1000 -> 0 | Z23: =Inputs!AA31/1000 -> 0 | AA23: =Inputs!AB31/1000 -> 0 | AB23: =Inputs!AC31/1000 -> 0 | AC23: =Inputs!AD31/1000 -> 0 | AD23: =Inputs!AE31/1000 -> 0 | AE23: =Inputs!AF31/1000 -> 0 | AF23: =Inputs!AG31/1000 -> 0 | AG23: =Inputs!AH31/1000 -> 0 | AH23: =Inputs!AI31/1000 -> 0 | AI23: =Inputs!AJ31/1000 -> 0 | AJ23: =Inputs!AK31/1000 -> 0 | AK23: =Inputs!AL31/1000 -> 0 | AL23: =Inputs!AM31/1000 -> 0 | AM23: =Inputs!AN31/1000 -> 0 | AN23: =Inputs!AO31/1000 -> 0 | AO23: =Inputs!AP31/1000 -> 0 | AP23: =Inputs!AQ31/1000 -> 0 | AQ23: =Inputs!AR31/1000 -> 0
A24: V Super User Contract (P7) | D24: =Inputs!E32/1000 -> 1593.75 | E24: =Inputs!F32/1000 -> 12750 | F24: =Inputs!G32/1000 -> 12750 | G24: =Inputs!H32/1000 -> 12750 | H24: =Inputs!I32/1000 -> 12750 | I24: =Inputs!J32/1000 -> 12640.71429 | J24: =Inputs!K32/1000 -> 12531.42857 | K24: =Inputs!L32/1000 -> 12422.14286 | L24: =Inputs!M32/1000 -> 12312.85714 | M24: =Inputs!N32/1000 -> 12203.57143 | N24: =Inputs!O32/1000 -> 12094.28571 | O24: =Inputs!P32/1000 -> 11985 | P24: =Inputs!Q32/1000 -> 11875.71429 | Q24: =Inputs!R32/1000 -> 11766.42857 | R24: =Inputs!S32/1000 -> 11657.14286 | S24: =Inputs!T32/1000 -> 11547.85714 | T24: =Inputs!U32/1000 -> 11438.57143 | U24: =Inputs!V32/1000 -> 11329.28571 | V24: =Inputs!W32/1000 -> 11220 | W24: =Inputs!X32/1000 -> 11110.71429 | X24: =Inputs!Y32/1000 -> 11001.42857 | Y24: =Inputs!Z32/1000 -> 10892.14286 | Z24: =Inputs!AA32/1000 -> 10782.85714 | AA24: =Inputs!AB32/1000 -> 10673.57143 | AB24: =Inputs!AC32/1000 -> 10564.28571 | AC24: =Inputs!AD32/1000 -> 10455 | AD24: =Inputs!AE32/1000 -> 10345.71429 | AE24: =Inputs!AF32/1000 -> 10236.42857 | AF24: =Inputs!AG32/1000 -> 10127.14286 | AG24: =Inputs!AH32/1000 -> 10017.85714 | AH24: =Inputs!AI32/1000 -> 9908.571429 | AI24: =Inputs!AJ32/1000 -> 9799.285714 | AJ24: =Inputs!AK32/1000 -> 9690 | AK24: =Inputs!AL32/1000 -> 9580.714286 | AL24: =Inputs!AM32/1000 -> 9471.428571 | AM24: =Inputs!AN32/1000 -> 9362.142857 | AN24: =Inputs!AO32/1000 -> 9252.857143 | AO24: =Inputs!AP32/1000 -> 9143.571429 | AP24: =Inputs!AQ32/1000 -> 9034.285714 | AQ24: =Inputs!AR32/1000 -> 8925
A25: £/therm
A26: P Domestic/Very Small Tariff (P1) | D26: 0.2882651176 | E26: =D26 -> 0.2882651176 | F26: =E26 -> 0.2882651176 | G26: 0.2882651176 | H26: 0.2882651176 | I26: 0.2882651176 | J26: 0.2882651176 | K26: 0.2882651176 | L26: 0.2882651176 | M26: 0.2882651176 | N26: 0.2882651176 | O26: 0.2882651176 | P26: 0.2882651176 | Q26: 0.2882651176 | R26: 0.2882651176 | S26: 0.2882651176 | T26: 0.2882651176 | U26: 0.2882651176 | V26: 0.2882651176 | W26: 0.2882651176 | X26: 0.2882651176 | Y26: 0.2882651176 | Z26: 0.2882651176 | AA26: 0.2882651176 | AB26: 0.2882651176 | AC26: 0.2882651176 | AD26: 0.2882651176 | AE26: 0.2882651176 | AF26: 0.2882651176 | AG26: 0.2882651176 | AH26: 0.2882651176 | AI26: 0.2882651176 | AJ26: 0.2882651176 | AK26: 0.2882651176 | AL26: 0.2882651176 | AM26: 0.2882651176 | AN26: 0.2882651176 | AO26: 0.2882651176 | AP26: 0.2882651176 | AQ26: 0.2882651176
A27: P SME Tariff (P2) | C27: 1 | D27: =D26*$C$27 -> 0.2882651176 | E27: =D27 -> 0.2882651176 | F27: 0.2882651176 | G27: 0.2882651176 | H27: 0.2882651176 | I27: 0.2882651176 | J27: 0.2882651176 | K27: 0.2882651176 | L27: 0.2882651176 | M27: 0.2882651176 | N27: 0.2882651176 | O27: 0.2882651176 | P27: 0.2882651176 | Q27: 0.2882651176 | R27: 0.2882651176 | S27: 0.2882651176 | T27: 0.2882651176 | U27: 0.2882651176 | V27: 0.2882651176 | W27: 0.2882651176 | X27: 0.2882651176 | Y27: 0.2882651176 | Z27: 0.2882651176 | AA27: 0.2882651176 | AB27: 0.2882651176 | AC27: 0.2882651176 | AD27: 0.2882651176 | AE27: 0.2882651176 | AF27: 0.2882651176 | AG27: 0.2882651176 | AH27: 0.2882651176 | AI27: 0.2882651176 | AJ27: 0.2882651176 | AK27: 0.2882651176 | AL27: 0.2882651176 | AM27: 0.2882651176 | AN27: 0.2882651176 | AO27: 0.2882651176 | AP27: 0.2882651176 | AQ27: 0.2882651176
A28: P Large Tariff (P3) | C28: 0.966 | D28: =D26*$C$28 -> 0.2784641036 | E28: =D28 -> 0.2784641036 | F28: 0.2784641036 | G28: 0.2784641036 | H28: 0.2784641036 | I28: 0.2784641036 | J28: 0.2784641036 | K28: 0.2784641036 | L28: 0.2784641036 | M28: 0.2784641036 | N28: 0.2784641036 | O28: 0.2784641036 | P28: 0.2784641036 | Q28: 0.2784641036 | R28: 0.2784641036 | S28: 0.2784641036 | T28: 0.2784641036 | U28: 0.2784641036 | V28: 0.2784641036 | W28: 0.2784641036 | X28: 0.2784641036 | Y28: 0.2784641036 | Z28: 0.2784641036 | AA28: 0.2784641036 | AB28: 0.2784641036 | AC28: 0.2784641036 | AD28: 0.2784641036 | AE28: 0.2784641036 | AF28: 0.2784641036 | AG28: 0.2784641036 | AH28: 0.2784641036 | AI28: 0.2784641036 | AJ28: 0.2784641036 | AK28: 0.2784641036 | AL28: 0.2784641036 | AM28: 0.2784641036 | AN28: 0.2784641036 | AO28: 0.2784641036 | AP28: 0.2784641036 | AQ28: 0.2784641036
A29: P CHP Contract (P4) | C29: 0.55 | D29: =D26*$C$29 -> 0.1585458147 | E29: 0.1585458147 | F29: 0.1585458147 | G29: 0.1585458147 | H29: 0.1585458147 | I29: 0.1585458147 | J29: 0.1585458147 | K29: 0.1585458147 | L29: 0.1585458147 | M29: 0.1585458147 | N29: 0.1585458147 | O29: 0.1585458147 | P29: 0.1585458147 | Q29: 0.1585458147 | R29: 0.1585458147 | S29: 0.1585458147 | T29: 0.1585458147 | U29: 0.1585458147 | V29: 0.1585458147 | W29: 0.1585458147 | X29: 0.1585458147 | Y29: 0.1585458147 | Z29: 0.1585458147 | AA29: 0.1585458147 | AB29: 0.1585458147 | AC29: 0.1585458147 | AD29: 0.1585458147 | AE29: 0.1585458147 | AF29: 0.1585458147 | AG29: 0.1585458147 | AH29: 0.1585458147 | AI29: 0.1585458147 | AJ29: 0.1585458147 | AK29: 0.1585458147 | AL29: 0.1585458147 | AM29: 0.1585458147 | AN29: 0.1585458147 | AO29: 0.1585458147 | AP29: 0.1585458147 | AQ29: 0.1585458147
A30: P Firm Contract (P5) | C30: =C29 -> 0.55 | D30: =D26*$C$30 -> 0.1585458147 | E30: =D30 -> 0.1585458147 | F30: 0.1585458147 | G30: 0.1585458147 | H30: 0.1585458147 | I30: 0.1585458147 | J30: 0.1585458147 | K30: 0.1585458147 | L30: 0.1585458147 | M30: 0.1585458147 | N30: 0.1585458147 | O30: 0.1585458147 | P30: 0.1585458147 | Q30: 0.1585458147 | R30: 0.1585458147 | S30: 0.1585458147 | T30: 0.1585458147 | U30: 0.1585458147 | V30: 0.1585458147 | W30: 0.1585458147 | X30: 0.1585458147 | Y30: 0.1585458147 | Z30: 0.1585458147 | AA30: 0.1585458147 | AB30: 0.1585458147 | AC30: 0.1585458147 | AD30: 0.1585458147 | AE30: 0.1585458147 | AF30: 0.1585458147 | AG30: 0.1585458147 | AH30: 0.1585458147 | AI30: 0.1585458147 | AJ30: 0.1585458147 | AK30: 0.1585458147 | AL30: 0.1585458147 | AM30: 0.1585458147 | AN30: 0.1585458147 | AO30: 0.1585458147 | AP30: 0.1585458147 | AQ30: 0.1585458147
A31: P Interruptible Contract (P6) | C31: =C30 -> 0.55 | D31: =D26*$C$31 -> 0.1585458147 | E31: =D31 -> 0.1585458147 | F31: 0.1585458147 | G31: 0.1585458147 | H31: 0.1585458147 | I31: 0.1585458147 | J31: 0.1585458147 | K31: 0.1585458147 | L31: 0.1585458147 | M31: 0.1585458147 | N31: 0.1585458147 | O31: 0.1585458147 | P31: 0.1585458147 | Q31: 0.1585458147 | R31: 0.1585458147 | S31: 0.1585458147 | T31: 0.1585458147 | U31: 0.1585458147 | V31: 0.1585458147 | W31: 0.1585458147 | X31: 0.1585458147 | Y31: 0.1585458147 | Z31: 0.1585458147 | AA31: 0.1585458147 | AB31: 0.1585458147 | AC31: 0.1585458147 | AD31: 0.1585458147 | AE31: 0.1585458147 | AF31: 0.1585458147 | AG31: 0.1585458147 | AH31: 0.1585458147 | AI31: 0.1585458147 | AJ31: 0.1585458147 | AK31: 0.1585458147 | AL31: 0.1585458147 | AM31: 0.1585458147 | AN31: 0.1585458147 | AO31: 0.1585458147 | AP31: 0.1585458147 | AQ31: 0.1585458147
A32: P Super User Contract (P7) | C32: =D32/D26 -> 0.416283458 | D32: 0.12 | E32: =D32 -> 0.12 | F32: 0.12 | G32: 0.12 | H32: 0.12 | I32: 0.12 | J32: 0.12 | K32: 0.12 | L32: 0.12 | M32: 0.12 | N32: 0.12 | O32: 0.12 | P32: 0.12 | Q32: 0.12 | R32: 0.12 | S32: =R32 -> 0.12 | T32: 0.12 | U32: 0.12 | V32: 0.12 | W32: 0.12 | X32: 0.12 | Y32: 0.12 | Z32: 0.12 | AA32: 0.12 | AB32: 0.12 | AC32: 0.12 | AD32: 0.12 | AE32: 0.12 | AF32: 0.12 | AG32: 0.12 | AH32: 0.12 | AI32: 0.12 | AJ32: 0.12 | AK32: 0.12 | AL32: 0.12 | AM32: 0.12 | AN32: 0.12 | AO32: 0.12 | AP32: 0.12 | AQ32: 0.12
A34: Conditions 4.6 and 4.6.6 Establishing Best Available Revenue Per Unit and Calculating Cashflow
A36: Allowed Revenue | D36: =SUMPRODUCT(D26:D32,D18:D24) -> 788.6867014 | E36: =SUMPRODUCT(E26:E32,E18:E24) -> 3202.740017 | F36: =SUMPRODUCT(F26:F32,F18:F24) -> 4540.361513 | G36: 5240.186869 | H36: 5647.609832 | I36: 6001.131954 | J36: =SUMPRODUCT(J26:J32,J18:J24) -> 6329.28131 | K36: 6645.57272 | L36: 6954.793598 | M36: 7245.832195 | N36: 7408.51135 | O36: 7462.657691 | P36: 7532.960979 | Q36: 7600.717914 | R36: 7654.711524 | S36: 7706.319493 | T36: 7766.599021 | U36: 7824.333134 | V36: 7868.725498 | W36: 7908.969084 | X36: 7955.65617 | Y36: 7989.202122 | Z36: 7999.644993 | AA36: 8008.343035 | AB36: 8025.27729 | AC36: 8040.074874 | AD36: 8043.005753 | AE36: 8044.143137 | AF36: 8053.099853 | AG36: 8055.964538 | AH36: 8041.46232 | AI36: 8002.610134 | AJ36: 7940.085254 | AK36: 7876.957587 | AL36: 7813.227132 | AM36: 7748.893891 | AN36: 7683.957863 | AO36: 7605.810751 | AP36: 7514.904647 | AQ36: 7423.998542
A37: Capex | D37: =-D14 -> -4427.663292 | E37: -12552.9166 | F37: -9553.919962 | G37: -7421.366167 | H37: -7884.366874 | I37: -5729.650323 | J37: -5643.884291 | K37: -5610.69753 | L37: -5759.874738 | M37: -5483.98225 | N37: -4166.953387 | O37: -1461.513048 | P37: -1773.893348 | Q37: -1461.513048 | R37: -1515.40449 | S37: -1460.87731 | T37: -1773.893348 | U37: -1461.513048 | V37: -1532.242383 | W37: =-W14 -> -1644.258675 | X37: -1969.287415 | Y37: -3126.146855 | Z37: -2566.040798 | AA37: -2184.43168 | AB37: -2537.425948 | AC37: -2112.627003 | AD37: -2149.769881 | AE37: -2093.562838 | AF37: -2070.816093 | AG37: -2028.771051 | AH37: -1422.434974 | AI37: -1393.016365 | AJ37: -1444.527392 | AK37: -1393.016365 | AL37: -1401.90298 | AM37: -1392.90235 | AN37: -1444.527392 | AO37: -1393.016365 | AP37: -1418.740872 | AQ37: -1585.651142
A38: Opex | D38: =-D15 -> -843.0101674 | E38: -2156.026499 | F38: -1971.310831 | G38: -1693.885456 | H38: -2015.34236 | I38: -1476.414514 | J38: -1648.9413 | K38: -1528.942707 | L38: -1583.217288 | M38: -1588.646273 | N38: -1768.593223 | O38: -1656.505374 | P38: -1719.213715 | Q38: -1733.634057 | R38: -1923.166822 | S38: -1821.298551 | T38: -1894.902135 | U38: -1920.938054 | V38: -2122.854356 | W38: =-W15 -> -2034.188356 | X38: -2121.867073 | Y38: -2162.908698 | Z38: -2380.822804 | AA38: -2309.212296 | AB38: -2415.074123 | AC38: -2475.501028 | AD38: -2566.978936 | AE38: -2664.504874 | AF38: -2768.478704 | AG38: -2879.326727 | AH38: -2997.503428 | AI38: -3123.493339 | AJ38: -3257.813029 | AK38: -3401.013217 | AL38: -3553.681034 | AM38: -3716.44243 | AN38: -3889.964738 | AO38: -4074.959412 | AP38: -4272.184943 | AQ38: -4482.449969
A39: Tax Payable | D39: 0 | E39: 0 | F39: 0 | G39: 0 | H39: 0 | I39: 0 | J39: 0 | K39: 0 | L39: 0 | M39: 0 | N39: 0 | O39: 0 | P39: 0 | Q39: 0 | R39: 0 | S39: 0 | T39: 0 | U39: -342.0713737 | V39: -345.6448047 | W39: -393.5269836 | X39: -404.1697195 | Y39: -397.2538596 | Z39: -365.4617241 | AA39: -391.0708832 | AB39: -380.4658821 | AC39: -384.8392694 | AD39: -380.7372685 | AE39: -375.4755681 | AF39: -370.0591702 | AG39: -362.3398811 | AH39: -361.0060964 | AI39: -353.5387824 | AJ39: -337.6449073 | AK39: -319.1774986 | AL39: -296.9765766 | AM39: -271.2551698 | AN39: -240.7725403 | AO39: -205.1711592 | AP39: -162.9019553 | AQ39: -113.1945908
A41: Cashflows | D41: =SUM(D36:D40) -> -4481.986758 | E41: =SUM(E36:E40) -> -11506.20308 | F41: -6984.86928 | G41: -3875.064753 | H41: -4252.099402 | I41: -1204.932882 | J41: -963.5442811 | K41: -494.0675165 | L41: =SUM(L36:L40) -> -388.2984282 | M41: 173.2036719 | N41: 1472.96474 | O41: 4344.639269 | P41: 4039.853916 | Q41: 4405.570809 | R41: 4216.140212 | S41: 4424.143632 | T41: 4097.803538 | U41: =SUM(U36:U40) -> 4099.810659 | V41: 3867.983955 | W41: 3836.995071 | X41: 3460.331962 | Y41: 2302.892709 | Z41: 2687.319667 | AA41: 3123.628176 | AB41: 2692.311337 | AC41: 3067.107573 | AD41: 2945.519668 | AE41: 2910.599857 | AF41: 2843.745885 | AG41: 2785.526879 | AH41: 3260.517822 | AI41: 3132.561648 | AJ41: 2900.099926 | AK41: 2763.750507 | AL41: 2560.666542 | AM41: 2368.293941 | AN41: 2108.693192 | AO41: 1932.663815 | AP41: 1661.076877 | AQ41: =SUM(AQ36:AQ40) -> 1242.70284
A45: Discounted Cashflow | C45: =SUM(D45:AQ45) -> 153.1215372 | D45: =D41*D7 -> -4369.19222 | E45: =E41*E7 -> -10652.07575 | F45: -6140.901381 | G45: -3235.373567 | H45: -3371.479368 | I45: -907.301404 | J45: -689.0203257 | K45: -335.5199014 | L45: -250.4201352 | M45: 106.0797131 | N45: 856.7206229 | O45: 2399.784383 | P45: 2119.121166 | Q45: 2194.643297 | R45: 1994.56609 | S45: 1987.624003 | T45: 1748.34758 | U45: 1661.162324 | V45: 1488.348263 | W45: 1402.11221 | X45: 1200.828324 | Y45: 758.9418341 | Z45: 841.0576144 | AA45: 928.4047994 | AB45: 759.9323874 | AC45: 822.1485804 | AD45: 749.816268 | AE45: 703.6344011 | AF45: 652.870394 | AG45: 607.3166274 | AH45: 675.0967626 | AI45: 615.9574357 | AJ45: 541.5463921 | AK45: 490.1095541 | AL45: 431.2399521 | AM45: 378.7679252 | AN45: 320.2746873 | AO45: 278.764306 | AP45: 227.5318563 | AQ45: 161.6558395
A49: Closing DAV | D49: =DAV!E34/1000 -> 6882.839669 | E49: =DAV!F34/1000 -> 18718.53451 | F49: =DAV!G34/1000 -> 27194.81225 | G49: =DAV!H34/1000 -> 33245.38481 | H49: =DAV!I34/1000 -> 39453.28934 | I49: =DAV!J34/1000 -> 43387.46972 | J49: =DAV!K34/1000 -> 47119.07653 | K49: =DAV!L34/1000 -> 50701.11782 | L49: =DAV!M34/1000 -> 54312.64503 | M49: =DAV!N34/1000 -> 57536.77265 | N49: =DAV!O34/1000 -> 59330.26525 | O49: =DAV!P34/1000 -> 58373.56232 | P49: =DAV!Q34/1000 -> 57674.49596 | Q49: =DAV!R34/1000 -> 56618.29412 | R49: =DAV!S34/1000 -> 55569.50533 | S49: =DAV!T34/1000 -> 54437.24877 | T49: =DAV!U34/1000 -> 53691.6217 | U49: =DAV!V34/1000 -> 52676.66621 | V49: =DAV!W34/1000 -> 51751.01521 | W49: =DAV!X34/1000 -> 50947.25197 | X49: =DAV!Y34/1000 -> 50463.27969 | Y49: =DAV!Z34/1000 -> 51032.75568 | Z49: =DAV!AA34/1000 -> 50977.76355 | AA49: =DAV!AB34/1000 -> 50498.90723 | AB49: =DAV!AC34/1000 -> 50315.22145 | AC49: =DAV!AD34/1000 -> 49626.00442 | AD49: =DAV!AE34/1000 -> 48890.64739 | AE49: =DAV!AF34/1000 -> 48021.16445 | AF49: =DAV!AG34/1000 -> 47049.04592 | AG49: =DAV!AH34/1000 -> 45958.39796 | AH49: =DAV!AI34/1000 -> 44224.74277 | AI49: =DAV!AJ34/1000 -> 42430.45321 | AJ49: =DAV!AK34/1000 -> 40649.5384 | AK49: =DAV!AL34/1000 -> 38784.13436 | AL49: =DAV!AM34/1000 -> 36907.01255 | AM49: =DAV!AN34/1000 -> 35005.21543 | AN49: =DAV!AO34/1000 -> 33244.92288 | AO49: =DAV!AP34/1000 -> 31486.10119 | AP49: =DAV!AQ34/1000 -> 29781.82163 | AQ49: =DAV!AR34/1000 -> 28268.3713
A53: TRV | C53: =-C69 -> -3735.454421
A54: Discounted DAV2045 | C54: =AQ49*AQ8 -> 3582.332884
A55: Backsolve to 0 by running Macro (2) Ctrl + q | C55: =C45+C53+C54 -> -7.730704965e-12
H58: `
A59: Condition 4.6.8 Calculating TRV
B61: Total Regulatory Value (TRV) | H61: =H71+H73 -> 40786.28281 | M61: =M71+M73 -> 56282.44083 | R61: =R71+R73 -> 52110.23667 | W61: =W71+W73 -> 44182.19038 | AB61: =AB71+AB73 -> 40873.27326 | AG61: =AG71+AG73 -> 36268.25695 | AL61: =AL71+AL73 -> 30167.49043 | AQ61: =AQ71+AQ73 -> 28268.3713
A65: Condition 4.6.9 Calculating Profile Adjustment
B67: Adjusted Cashflows | D67: =D41*(1+$H$6*$B$7)*(1+$H$6)^($H$12-D12) -> -5656.437692 | E67: =E41*(1+$H$6*$B$7)*(1+$H$6)^($H$12-E12) -> -13790.37583 | F67: =F41*(1+$H$6*$B$7)*(1+$H$6)^($H$12-F12) -> -7950.125398 | G67: =G41*(1+$H$6*$B$7)*(1+$H$6)^($H$12-G12) -> -4188.574929 | H67: =H41*(1+$H$6*$B$7)*(1+$H$6)^($H$12-H12) -> -4364.780036 | I67: =I41*(1+$M$6*$B$7)*(1+$M$6)^($M$12-I12) -> -1520.671109 | J67: =J41*(1+$M$6*$B$7)*(1+$M$6)^($M$12-J12) -> -1154.823852 | K67: =K41*(1+$M$6*$B$7)*(1+$M$6)^($M$12-K12) -> -562.3439114 | L67: =L41*(1+$M$6*$B$7)*(1+$M$6)^($M$12-L12) -> -419.7135184 | M67: =M41*(1+$M$6*$B$7)*(1+$M$6)^($M$12-M12) -> 177.7935692 | N67: =N41*(1+$R$6*$B$7)*(1+$R$6)^($R$12-N12) -> 1858.937503 | O67: =O41*(1+$R$6*$B$7)*(1+$R$6)^($R$12-O12) -> 5207.122449 | P67: =P41*(1+$R$6*$B$7)*(1+$R$6)^($R$12-P12) -> 4598.13118 | Q67: =Q41*(1+$R$6*$B$7)*(1+$R$6)^($R$12-Q12) -> 4762.001313 | R67: =R41*(1+$R$6*$B$7)*(1+$R$6)^($R$12-R12) -> 4327.867927 | S67: =S41*(1+$W$6*$B$7)*(1+$W$6)^($W$12-S12) -> 5583.437468 | T67: =T41*(1+$W$6*$B$7)*(1+$W$6)^($W$12-T12) -> 4911.285719 | U67: =U41*(1+$W$6*$B$7)*(1+$W$6)^($W$12-U12) -> 4666.373491 | V67: =V41*(1+$W$6*$B$7)*(1+$W$6)^($W$12-V12) -> 4180.921263 | W67: =W41*(1+$W$6*$B$7)*(1+$W$6)^($W$12-W12) -> 3938.67544 | X67: =X41*(1+$AB$6*$B$7)*(1+$AB$6)^($AB$12-X12) -> 4367.070497 | Y67: =Y41*(1+$AB$6*$B$7)*(1+$AB$6)^($AB$12-Y12) -> 2760.055227 | Z67: =Z41*(1+$AB$6*$B$7)*(1+$AB$6)^($AB$12-Z12) -> 3058.686925 | AA67: =AA41*(1+$AB$6*$B$7)*(1+$AB$6)^($AB$12-AA12) -> 3376.343752 | AB67: =AB41*(1+$AB$6*$B$7)*(1+$AB$6)^($AB$12-AB12) -> 2763.657587 | AC67: =AC41*(1+$AG$6*$B$7)*(1+$AG$6)^($AG$12-AC12) -> 3870.806368 | AD67: =AD41*(1+$AG$6*$B$7)*(1+$AG$6)^($AG$12-AD12) -> 3530.254328 | AE67: =AE41*(1+$AG$6*$B$7)*(1+$AG$6)^($AG$12-AE12) -> 3312.822749 | AF67: =AF41*(1+$AG$6*$B$7)*(1+$AG$6)^($AG$12-AF12) -> 3073.817724 | AG67: =AG41*(1+$AG$6*$B$7)*(1+$AG$6)^($AG$12-AG12) -> 2859.343341 | AH67: =AH41*(1+$AL$6*$B$7)*(1+$AL$6)^($AL$12-AH12) -> 4114.897455 | AI67: =AI41*(1+$AL$6*$B$7)*(1+$AL$6)^($AL$12-AI12) -> 3754.427253 | AJ67: =AJ41*(1+$AL$6*$B$7)*(1+$AL$6)^($AL$12-AJ12) -> 3300.871806 | AK67: =AK41*(1+$AL$6*$B$7)*(1+$AL$6)^($AL$12-AK12) -> 2987.35036 | AL67: =AL41*(1+$AL$6*$B$7)*(1+$AL$6)^($AL$12-AL12) -> 2628.524205 | AM67: =AM41*(1+$AQ$6*$B$7)*(1+$AQ$6)^($AQ$12-AM12) -> 2988.876996 | AN67: =AN41*(1+$AQ$6*$B$7)*(1+$AQ$6)^($AQ$12-AN12) -> 2527.303875 | AO67: =AO41*(1+$AQ$6*$B$7)*(1+$AQ$6)^($AQ$12-AO12) -> 2199.743341 | AP67: =AP41*(1+$AQ$6*$B$7)*(1+$AQ$6)^($AQ$12-AP12) -> 1795.465471 | AQ67: =AQ41*(1+$AQ$6*$B$7)*(1+$AQ$6)^($AQ$12-AQ12) -> 1275.634465
B69: Closing TRV (Incl Return) | C69: =Inputs!D39/1000 -> 3735.454421 | H69: =-$C$69*(1+H6)^(H12-C12) -> -4835.988925 | M69: =-H61*(1+M6)^(M12-H12) -> -52802.68201 | R69: =-M61*(1+R6)^(R12-M12) -> -72864.29704 | W69: =-R61*(1+W6)^(W12-R12) -> -67462.88376 | AB69: =-W61*(1+AB6)^(AB12-W12) -> -57199.08724 | AG69: =-AB61*(1+AG6)^(AG12-AB12) -> -52915.30146 | AL69: =-AG61*(1+AL6)^(AL12-AG12) -> -46953.56151 | AQ69: =-AL61*(1+AQ6)^(AQ12-AL12) -> -39055.39545
B71: DAV | H71: =H49 -> 39453.28934 | M71: =M49 -> 57536.77265 | R71: =R49 -> 55569.50533 | W71: =W49 -> 50947.25197 | AB71: =AB49 -> 50315.22145 | AG71: =AG49 -> 45958.39796 | AL71: =AL49 -> 36907.01255 | AQ71: =AQ49 -> 28268.3713
B73: Calculated PA | H73: =-SUM(D67:H72) -> 1332.993468 | M73: =-SUM(I67:M72) -> -1254.331821 | R73: =-SUM(N67:R72) -> -3459.268658 | W73: =-SUM(S67:W72) -> -6765.061593 | AB73: =-SUM(X67:AB72) -> -9441.948195 | AG73: =-SUM(AC67:AG72) -> -9690.141014 | AL73: =-SUM(AH67:AL72) -> -6739.52212 | AQ73: =-SUM(AM67:AQ72) -> 9.094947018e-11
B74: Check | H74: =SUM(D67:H73) -> 0 | M74: =SUM(I67:M73) -> 0 | R74: =SUM(N67:R73) -> 0 | W74: =SUM(S67:W73) -> 0 | AB74: =SUM(X67:AB73) -> 0 | AG74: =SUM(AC67:AG73) -> 0 | AL74: =SUM(AH67:AL73) -> 0 | AQ74: =SUM(AM67:AQ73) -> 0
B76: Annual Basis
B78: Cumulative annual Cashflow | D78: =-D103 -> -4600.759407 | E78: =-E103 -> -16655.71712 | F78: =-F103 -> -24708.43844 | G78: =-G103 -> -29995.73965 | H78: =-H103 -> -35950.29389 | I78: =-I103 -> -39092.52307 | J78: -42153.50499 | K78: -44894.80106 | L78: -47672.81386 | M78: -50021.67942 | N78: -51160.83013 | O78: -49412.58191 | P78: -47884.53871 | Q78: -45900.10083 | R78: -44004.93824 | S78: -41795.81653 | T78: -39804.59948 | U78: -37705.78761 | V78: -35733.70882 | W78: -33688.91995 | X78: -31922.40195 | Y78: -31250.36989 | Z78: -30148.10585 | AA78: -28539.55114 | AB78: -27288.48976 | AC78: -25586.39379 | AD78: -23918.89673 | AE78: -22198.8675 | AF78: -20456.30233 | AG78: -18681.14301 | AH78: -16324.32204 | AI78: -13973.93658 | AJ78: -11737.60265 | AK78: -9522.705692 | AL78: -7398.884888 | AM78: -5359.972057 | AN78: -3479.477014 | AO78: -1680.009889 | AP78: -63.95499902 | AQ78: 1208.289852
B79: Opening TRV incl. return | D79: =-$C69/D$8 -> -3933.433506 | E79: -4141.905482 | F79: -4361.426472 | G79: -4592.582075 | H79: -4835.988925 | I79: -5092.296338 | J79: -5362.188044 | K79: -5646.38401 | L79: -5945.642363 | M79: -6260.761408 | N79: -6592.581763 | O79: -6941.988596 | P79: -7309.913992 | Q79: -7697.339433 | R79: -8105.298423 | S79: -8534.87924 | T79: -8987.22784 | U79: -9463.550915 | V79: -9965.119114 | W79: -10493.27043 | X79: -11049.41376 | Y79: -11635.03269 | Z79: -12251.68942 | AA79: -12901.02896 | AB79: -13584.7835 | AC79: -14304.77702 | AD79: -15062.9302 | AE79: -15861.2655 | AF79: -16701.91257 | AG79: -17587.11394 | AH79: -18519.23098 | AI79: -19500.75022 | AJ79: -20534.28998 | AK79: -21622.60735 | AL79: -22768.60554 | AM79: -23975.34164 | AN79: -25246.03474 | AO79: -26584.07458 | AP79: -27993.03054 | AQ79: -29476.66116
B80: DAV | D80: =+D49 -> 6882.839669 | E80: 18718.53451 | F80: 27194.81225 | G80: 33245.38481 | H80: 39453.28934 | I80: 43387.46972 | J80: 47119.07653 | K80: 50701.11782 | L80: 54312.64503 | M80: 57536.77265 | N80: 59330.26525 | O80: 58373.56232 | P80: 57674.49596 | Q80: 56618.29412 | R80: 55569.50533 | S80: 54437.24877 | T80: 53691.6217 | U80: 52676.66621 | V80: 51751.01521 | W80: 50947.25197 | X80: 50463.27969 | Y80: 51032.75568 | Z80: 50977.76355 | AA80: 50498.90723 | AB80: 50315.22145 | AC80: 49626.00442 | AD80: 48890.64739 | AE80: 48021.16445 | AF80: 47049.04592 | AG80: 45958.39796 | AH80: 44224.74277 | AI80: 42430.45321 | AJ80: 40649.5384 | AK80: 38784.13436 | AL80: 36907.01255 | AM80: 35005.21543 | AN80: 33244.92288 | AO80: 31486.10119 | AP80: 29781.82163 | AQ80: 28268.3713
B81: PA | C81: =+C83-DAV!D34/1000 -> 1024.234229 | D81: =-SUM(D78:D80) -> 1651.353245 | E81: =-SUM(E78:E80) -> 2079.088094 | F81: 1875.052671 | G81: 1342.936912 | H81: =-SUM(H78:H80) -> 1332.993468 | I81: 797.3496886 | J81: 396.6165109 | K81: -159.9327468 | L81: -694.1888139 | M81: -1254.331821 | N81: -1576.853358 | O81: -2018.991806 | P81: -2480.043261 | Q81: -3020.853862 | R81: -3459.268658 | S81: -4106.553 | T81: -4899.794385 | U81: -5507.327682 | V81: -6052.187271 | W81: -6765.061593 | X81: -7491.463978 | Y81: -8147.353105 | Z81: -8577.968282 | AA81: -9058.327127 | AB81: -9441.948195 | AC81: -9734.833609 | AD81: -9908.820461 | AE81: -9961.031449 | AF81: -9890.831014 | AG81: -9690.141014 | AH81: -9381.189749 | AI81: -8955.766406 | AJ81: -8377.645771 | AK81: -7638.821319 | AL81: -6739.52212 | AM81: -5669.901737 | AN81: -4519.411118 | AO81: -3222.01672 | AP81: -1724.836095 | AQ81: 2.401066013e-10
B83: TRV | C83: =+C69 -> 3735.454421 | D83: =SUM(D80:D82) -> 8534.192913 | E83: 20797.6226 | F83: 29069.86492 | G83: 34588.32173 | H83: 40786.28281 | I83: 44184.81941 | J83: 47515.69304 | K83: 50541.18508 | L83: 53618.45622 | M83: 56282.44083 | N83: 57753.41189 | O83: 56354.57051 | P83: 55194.4527 | Q83: 53597.44026 | R83: 52110.23667 | S83: 50330.69577 | T83: 48791.82732 | U83: 47169.33852 | V83: 45698.82794 | W83: 44182.19038 | X83: 42971.81571 | Y83: 42885.40257 | Z83: 42399.79527 | AA83: 41440.5801 | AB83: 40873.27326 | AC83: 39891.17082 | AD83: 38981.82693 | AE83: 38060.133 | AF83: 37158.2149 | AG83: 36268.25695 | AH83: 34843.55302 | AI83: 33474.6868 | AJ83: 32271.89263 | AK83: 31145.31304 | AL83: 30167.49043 | AM83: 29335.31369 | AN83: 28725.51176 | AO83: 28264.08447 | AP83: 28056.98554 | AQ83: 28268.3713
B87: Opening TRV
B88: opening TRV | D88: =C69 -> 3735.454421 | E88: =D90 -> 3933.433506 | F88: 4141.905482 | G88: 4361.426472 | H88: 4592.582075 | I88: 4835.988925 | J88: 5092.296338 | K88: =J90 -> 5362.188044 | L88: 5646.38401 | M88: 5945.642363 | N88: 6260.761408 | O88: 6592.581763 | P88: 6941.988596 | Q88: 7309.913992 | R88: 7697.339433 | S88: 8105.298423 | T88: 8534.87924 | U88: 8987.22784 | V88: 9463.550915 | W88: 9965.119114 | X88: 10493.27043 | Y88: 11049.41376 | Z88: 11635.03269 | AA88: 12251.68942 | AB88: 12901.02896 | AC88: 13584.7835 | AD88: 14304.77702 | AE88: 15062.9302 | AF88: 15861.2655 | AG88: 16701.91257 | AH88: 17587.11394 | AI88: 18519.23098 | AJ88: 19500.75022 | AK88: 20534.28998 | AL88: 21622.60735 | AM88: 22768.60554 | AN88: 23975.34164 | AO88: 25246.03474 | AP88: 26584.07458 | AQ88: 27993.03054
B89: Return on opening trv | D89: =+D88*D6 -> 197.9790843 | E89: 208.4719758 | F89: 219.5209905 | G89: 231.155603 | H89: 243.40685 | I89: 256.307413 | J89: 269.8917059 | K89: 284.1959663 | L89: 299.2583526 | M89: 315.1190452 | N89: 331.8203546 | O89: 349.4068334 | P89: 367.9253956 | Q89: 387.4254416 | R89: 407.95899 | S89: 429.5808164 | T89: 452.3485997 | U89: 476.3230755 | V89: 501.5681985 | W89: 528.151313 | X89: 556.1433326 | Y89: 585.6189292 | Z89: 616.6567325 | AA89: 649.3395393 | AB89: 683.7545349 | AC89: 719.9935252 | AD89: 758.1531821 | AE89: 798.3353007 | AF89: 840.6470717 | AG89: 885.2013665 | AH89: 932.1170389 | AI89: 981.519242 | AJ89: 1033.539762 | AK89: 1088.317369 | AL89: 1145.99819 | AM89: 1206.736094 | AN89: 1270.693107 | AO89: 1338.039841 | AP89: 1408.955953 | AQ89: 1483.630619
B90: closing TRV | D90: =SUM(D88:D89) -> 3933.433506 | E90: 4141.905482 | F90: 4361.426472 | G90: 4592.582075 | H90: 4835.988925 | I90: 5092.296338 | J90: 5362.188044 | K90: 5646.38401 | L90: 5945.642363 | M90: 6260.761408 | N90: 6592.581763 | O90: 6941.988596 | P90: 7309.913992 | Q90: 7697.339433 | R90: 8105.298423 | S90: 8534.87924 | T90: 8987.22784 | U90: 9463.550915 | V90: 9965.119114 | W90: 10493.27043 | X90: 11049.41376 | Y90: 11635.03269 | Z90: 12251.68942 | AA90: 12901.02896 | AB90: 13584.7835 | AC90: 14304.77702 | AD90: 15062.9302 | AE90: 15861.2655 | AF90: 16701.91257 | AG90: 17587.11394 | AH90: 18519.23098 | AI90: 19500.75022 | AJ90: 20534.28998 | AK90: 21622.60735 | AL90: 22768.60554 | AM90: 23975.34164 | AN90: 25246.03474 | AO90: 26584.07458 | AP90: 27993.03054 | AQ90: 29476.66116
B92: Additional TRV
B93: Opex | D93: =+D15 -> 843.0101674 | E93: 2156.026499 | F93: 1971.310831 | G93: 1693.885456 | H93: 2015.34236 | I93: 1476.414514 | J93: 1648.9413 | K93: 1528.942707 | L93: 1583.217288 | M93: 1588.646273 | N93: 1768.593223 | O93: 1656.505374 | P93: 1719.213715 | Q93: 1733.634057 | R93: 1923.166822 | S93: 1821.298551 | T93: 1894.902135 | U93: 1920.938054 | V93: 2122.854356 | W93: 2034.188356 | X93: 2121.867073 | Y93: 2162.908698 | Z93: 2380.822804 | AA93: 2309.212296 | AB93: 2415.074123 | AC93: 2475.501028 | AD93: 2566.978936 | AE93: 2664.504874 | AF93: 2768.478704 | AG93: 2879.326727 | AH93: 2997.503428 | AI93: 3123.493339 | AJ93: 3257.813029 | AK93: 3401.013217 | AL93: 3553.681034 | AM93: 3716.44243 | AN93: 3889.964738 | AO93: 4074.959412 | AP93: 4272.184943 | AQ93: 4482.449969
B94: Capex | D94: =+D14 -> 4427.663292 | E94: 12552.9166 | F94: 9553.919962 | G94: 7421.366167 | H94: 7884.366874 | I94: 5729.650323 | J94: 5643.884291 | K94: 5610.69753 | L94: 5759.874738 | M94: 5483.98225 | N94: 4166.953387 | O94: 1461.513048 | P94: 1773.893348 | Q94: 1461.513048 | R94: 1515.40449 | S94: 1460.87731 | T94: 1773.893348 | U94: 1461.513048 | V94: 1532.242383 | W94: 1644.258675 | X94: 1969.287415 | Y94: 3126.146855 | Z94: 2566.040798 | AA94: 2184.43168 | AB94: 2537.425948 | AC94: 2112.627003 | AD94: 2149.769881 | AE94: 2093.562838 | AF94: 2070.816093 | AG94: 2028.771051 | AH94: 1422.434974 | AI94: 1393.016365 | AJ94: 1444.527392 | AK94: 1393.016365 | AL94: 1401.90298 | AM94: 1392.90235 | AN94: 1444.527392 | AO94: 1393.016365 | AP94: 1418.740872 | AQ94: 1585.651142
B95: Tax payable | D95: =-D39 -> 0 | E95: =-E39 -> 0 | F95: 0 | G95: 0 | H95: 0 | I95: 0 | J95: 0 | K95: 0 | L95: 0 | M95: 0 | N95: 0 | O95: 0 | P95: 0 | Q95: 0 | R95: 0 | S95: 0 | T95: 0 | U95: 342.0713737 | V95: 345.6448047 | W95: 393.5269836 | X95: 404.1697195 | Y95: 397.2538596 | Z95: 365.4617241 | AA95: 391.0708832 | AB95: 380.4658821 | AC95: 384.8392694 | AD95: 380.7372685 | AE95: 375.4755681 | AF95: 370.0591702 | AG95: 362.3398811 | AH95: 361.0060964 | AI95: 353.5387824 | AJ95: 337.6449073 | AK95: 319.1774986 | AL95: 296.9765766 | AM95: 271.2551698 | AN95: 240.7725403 | AO95: 205.1711592 | AP95: 162.9019553 | AQ95: 113.1945908
B96: Allowed Revenue | D96: =-D36 -> -788.6867014 | E96: -3202.740017 | F96: -4540.361513 | G96: -5240.186869 | H96: -5647.609832 | I96: -6001.131954 | J96: -6329.28131 | K96: -6645.57272 | L96: -6954.793598 | M96: -7245.832195 | N96: -7408.51135 | O96: -7462.657691 | P96: -7532.960979 | Q96: -7600.717914 | R96: -7654.711524 | S96: -7706.319493 | T96: -7766.599021 | U96: -7824.333134 | V96: -7868.725498 | W96: -7908.969084 | X96: -7955.65617 | Y96: -7989.202122 | Z96: -7999.644993 | AA96: -8008.343035 | AB96: -8025.27729 | AC96: -8040.074874 | AD96: -8043.005753 | AE96: -8044.143137 | AF96: -8053.099853 | AG96: -8055.964538 | AH96: -8041.46232 | AI96: -8002.610134 | AJ96: -7940.085254 | AK96: -7876.957587 | AL96: -7813.227132 | AM96: -7748.893891 | AN96: -7683.957863 | AO96: -7605.810751 | AP96: -7514.904647 | AQ96: -7423.998542
B97: Casflow | D97: =SUM(D93:D96) -> 4481.986758 | E97: 11506.20308 | F97: 6984.86928 | G97: 3875.064753 | H97: 4252.099402 | I97: 1204.932882 | J97: 963.5442811 | K97: 494.0675165 | L97: 388.2984282 | M97: -173.2036719 | N97: -1472.96474 | O97: -4344.639269 | P97: -4039.853916 | Q97: -4405.570809 | R97: -4216.140212 | S97: -4424.143632 | T97: -4097.803538 | U97: -4099.810659 | V97: -3867.983955 | W97: -3836.995071 | X97: -3460.331962 | Y97: -2302.892709 | Z97: -2687.319667 | AA97: -3123.628176 | AB97: -2692.311337 | AC97: -3067.107573 | AD97: -2945.519668 | AE97: -2910.599857 | AF97: -2843.745885 | AG97: -2785.526879 | AH97: -3260.517822 | AI97: -3132.561648 | AJ97: -2900.099926 | AK97: -2763.750507 | AL97: -2560.666542 | AM97: -2368.293941 | AN97: -2108.693192 | AO97: -1932.663815 | AP97: -1661.076877 | AQ97: -1242.70284
B99: Opening | D99: 0 | E99: =D103 -> 4600.759407 | F99: =E103 -> 16655.71712 | G99: =F103 -> 24708.43844 | H99: =G103 -> 29995.73965 | I99: =H103 -> 35950.29389 | J99: =I103 -> 39092.52307 | K99: 42153.50499 | L99: 44894.80106 | M99: 47672.81386 | N99: 50021.67942 | O99: 51160.83013 | P99: 49412.58191 | Q99: 47884.53871 | R99: 45900.10083 | S99: 44004.93824 | T99: 41795.81653 | U99: 39804.59948 | V99: 37705.78761 | W99: 35733.70882 | X99: 33688.91995 | Y99: 31922.40195 | Z99: 31250.36989 | AA99: 30148.10585 | AB99: 28539.55114 | AC99: 27288.48976 | AD99: 25586.39379 | AE99: 23918.89673 | AF99: 22198.8675 | AG99: 20456.30233 | AH99: 18681.14301 | AI99: 16324.32204 | AJ99: 13973.93658 | AK99: 11737.60265 | AL99: 9522.705692 | AM99: 7398.884888 | AN99: 5359.972057 | AO99: 3479.477014 | AP99: 1680.009889 | AQ99: 63.95499902
B100: Cashflow | D100: =+D97 -> 4481.986758 | E100: 11506.20308 | F100: 6984.86928 | G100: 3875.064753 | H100: 4252.099402 | I100: 1204.932882 | J100: 963.5442811 | K100: 494.0675165 | L100: 388.2984282 | M100: -173.2036719 | N100: -1472.96474 | O100: -4344.639269 | P100: -4039.853916 | Q100: -4405.570809 | R100: -4216.140212 | S100: -4424.143632 | T100: -4097.803538 | U100: -4099.810659 | V100: -3867.983955 | W100: -3836.995071 | X100: -3460.331962 | Y100: -2302.892709 | Z100: -2687.319667 | AA100: -3123.628176 | AB100: -2692.311337 | AC100: -3067.107573 | AD100: -2945.519668 | AE100: -2910.599857 | AF100: -2843.745885 | AG100: -2785.526879 | AH100: -3260.517822 | AI100: -3132.561648 | AJ100: -2900.099926 | AK100: -2763.750507 | AL100: -2560.666542 | AM100: -2368.293941 | AN100: -2108.693192 | AO100: -1932.663815 | AP100: -1661.076877 | AQ100: -1242.70284
B101: Return on in year cashflow | D101: =+D97*D6*$B7 -> 118.7726491 | E101: 304.9143817 | F101: 185.0990359 | G101: 102.689216 | H101: 112.6806341 | I101: 31.93072138 | J101: 25.53392345 | K101: 13.09278919 | L101: 10.28990835 | M101: -4.589897305 | N101: -39.0335656 | O101: -115.1329406 | P101: -107.0561288 | Q101: -116.7476264 | R101: -111.7277156 | S101: -117.2398062 | T101: -108.5917938 | U101: -108.6449825 | V101: -102.5015748 | W101: -101.6803694 | X101: -91.698797 | Y101: -61.0266568 | Z101: -71.21397118 | AA101: -82.77614667 | AB101: -71.34625043 | AC101: -81.2783507 | AD101: -78.05627119 | AE101: -77.13089621 | AF101: -75.35926596 | AG101: -73.81646228 | AH101: -86.40372228 | AI101: -83.01288366 | AJ101: -76.85264803 | AK101: -73.23938843 | AL101: -67.85766335 | AM101: -62.75978945 | AN101: -55.88036959 | AO101: -51.21559111 | AP101: -44.01853723 | AQ101: -32.93162527
B102: Return on in year opening | D102: =+D99*D6 -> 0 | E102: 243.8402486 | F102: 882.7530074 | G102: 1309.547238 | H102: 1589.774201 | I102: 1905.365576 | J102: 2071.903723 | K102: 2234.135765 | L102: 2379.424456 | M102: 2526.659134 | N102: 2651.149009 | O102: 2711.523997 | P102: 2618.866841 | Q102: 2537.880552 | R102: 2432.705344 | S102: 2332.261727 | T102: 2215.178276 | U102: 2109.643772 | V102: 1998.406743 | W102: 1893.886568 | X102: 1785.512757 | Y102: 1691.887303 | Z102: 1656.269604 | AA102: 1597.84961 | AB102: 1512.59621 | AC102: 1446.289957 | AD102: 1356.078871 | AE102: 1267.701527 | AF102: 1176.539978 | AG102: 1084.184023 | AH102: 990.1005795 | AI102: 865.1890684 | AJ102: 740.6186388 | AK102: 622.0929403 | AL102: 504.7034017 | AM102: 392.1408991 | AN102: 284.078519 | AO102: 184.4122817 | AP102: 89.04052411 | AQ102: 3.389614948
B103: Closing | D103: =SUM(D99:D102) -> 4600.759407 | E103: 16655.71712 | F103: 24708.43844 | G103: 29995.73965 | H103: 35950.29389 | I103: 39092.52307 | J103: 42153.50499 | K103: 44894.80106 | L103: 47672.81386 | M103: 50021.67942 | N103: 51160.83013 | O103: 49412.58191 | P103: 47884.53871 | Q103: 45900.10083 | R103: 44004.93824 | S103: 41795.81653 | T103: 39804.59948 | U103: 37705.78761 | V103: 35733.70882 | W103: 33688.91995 | X103: 31922.40195 | Y103: 31250.36989 | Z103: 30148.10585 | AA103: 28539.55114 | AB103: 27288.48976 | AC103: 25586.39379 | AD103: 23918.89673 | AE103: 22198.8675 | AF103: 20456.30233 | AG103: 18681.14301 | AH103: 16324.32204 | AI103: 13973.93658 | AJ103: 11737.60265 | AK103: 9522.705692 | AL103: 7398.884888 | AM103: 5359.972057 | AN103: 3479.477014 | AO103: 1680.009889 | AP103: 63.95499902 | AQ103: -1208.289852

Sheet SGN Financeability
A1: SGN: Financeability Model
A2: Av. £k's 2014 RPI and nominal
L5: 2014 | M5: =L5+1 -> 2015 | N5: =M5+1 -> 2016 | O5: 2017 | P5: 2018 | Q5: =P5+1 -> 2019 | R5: 2020 | S5: =R5+1 -> 2021 | T5: 2022 | U5: =T5+1 -> 2023 | V5: =U5+1 -> 2024 | W5: 2025 | X5: 2026 | Y5: 2027 | Z5: 2028 | AA5: 2029 | AB5: 2030 | AC5: 2031 | AD5: 2032 | AE5: 2033 | AF5: 2034 | AG5: 2035 | AH5: 2036 | AI5: 2037 | AJ5: 2038 | AK5: 2039 | AL5: 2040 | AM5: 2041 | AN5: 2042 | AO5: 2043 | AP5: 2044 | AQ5: 2045 | AR5: 2046 | AS5: 2047 | AT5: 2048 | AU5: 2049 | AV5: 2050 | AW5: 2051 | AX5: 2052 | AY5: 2053 | AZ5: 2054 | BA5: 2055 | BB5: 2056 | BC5: 2057 | BF5: Generic assumptions
B6: Financeability analysis (nominal) | BF6: Rolling incentive period | BH6: 5
L7: 256 | M7: 258.5 | N7: =+'SGN Financeability'!BH7 -> 0.0307 | O7: =+N7 -> 0.0307 | P7: =+O7 -> 0.0307 | Q7: 0.0307 | R7: 0.0307 | S7: 0.0307 | T7: 0.0307 | U7: 0.0307 | V7: =+U7 -> 0.0307 | W7: =+V7 -> 0.0307 | X7: =+W7 -> 0.0307 | Y7: =+X7 -> 0.0307 | Z7: =+Y7 -> 0.0307 | AA7: =+Z7 -> 0.0307 | AB7: =+AA7 -> 0.0307 | AC7: =+AB7 -> 0.0307 | AD7: =+AC7 -> 0.0307 | AE7: =+AD7 -> 0.0307 | AF7: =+AE7 -> 0.0307 | AG7: =+AF7 -> 0.0307 | AH7: =+AG7 -> 0.0307 | AI7: =+AH7 -> 0.0307 | AJ7: =+AI7 -> 0.0307 | AK7: =+AJ7 -> 0.0307 | AL7: =+AK7 -> 0.0307 | AM7: =+AL7 -> 0.0307 | AN7: =+AM7 -> 0.0307 | AO7: =+AN7 -> 0.0307 | AP7: =+AO7 -> 0.0307 | AQ7: =+AP7 -> 0.0307 | AR7: =+AQ7 -> 0.0307 | AS7: =+AR7 -> 0.0307 | AT7: =+AS7 -> 0.0307 | AU7: =+AT7 -> 0.0307 | AV7: =+AU7 -> 0.0307 | AW7: =+AV7 -> 0.0307 | AX7: =+AW7 -> 0.0307 | AY7: =+AX7 -> 0.0307 | AZ7: =+AY7 -> 0.0307 | BA7: =+AZ7 -> 0.0307 | BB7: =+BA7 -> 0.0307 | BC7: =+BB7 -> 0.0307 | BF7: Forward inflation rate | BH7: 0.0307
B8: RPI factor | L8: 1 | M8: =+M7/L7 -> 1.009765625 | N8: =M8*(1+N7) -> 1.04076543 | O8: 1.072716928 | P8: 1.105649338 | Q8: 1.139592773 | R8: 1.174578271 | S8: 1.210637824 | T8: 1.247804405 | U8: 1.286112 | V8: =U8*(1+V7) -> 1.325595639 | W8: =V8*(1+W7) -> 1.366291425 | X8: =W8*(1+X7) -> 1.408236571 | Y8: =X8*(1+Y7) -> 1.451469434 | Z8: =Y8*(1+Z7) -> 1.496029546 | AA8: =Z8*(1+AA7) -> 1.541957653 | AB8: =AA8*(1+AB7) -> 1.589295753 | AC8: =AB8*(1+AC7) -> 1.638087132 | AD8: =AC8*(1+AD7) -> 1.688376407 | AE8: =AD8*(1+AE7) -> 1.740209563 | AF8: =AE8*(1+AF7) -> 1.793633997 | AG8: =AF8*(1+AG7) -> 1.84869856 | AH8: =AG8*(1+AH7) -> 1.905453606 | AI8: =AH8*(1+AI7) -> 1.963951032 | AJ8: =AI8*(1+AJ7) -> 2.024244329 | AK8: =AJ8*(1+AK7) -> 2.08638863 | AL8: =AK8*(1+AL7) -> 2.15044076 | AM8: =AL8*(1+AM7) -> 2.216459292 | AN8: =AM8*(1+AN7) -> 2.284504592 | AO8: =AN8*(1+AO7) -> 2.354638883 | AP8: =AO8*(1+AP7) -> 2.426926297 | AQ8: =AP8*(1+AQ7) -> 2.501432934 | AR8: =AQ8*(1+AR7) -> 2.578226925 | AS8: =AR8*(1+AS7) -> 2.657378492 | AT8: =AS8*(1+AT7) -> 2.738960011 | AU8: =AT8*(1+AU7) -> 2.823046084 | AV8: =AU8*(1+AV7) -> 2.909713599 | AW8: =AV8*(1+AW7) -> 2.999041806 | AX8: =AW8*(1+AX7) -> 3.091112389 | AY8: =AX8*(1+AY7) -> 3.18600954 | AZ8: =AY8*(1+AZ7) -> 3.283820033 | BA8: =AZ8*(1+BA7) -> 3.384633308 | BB8: =BA8*(1+BB7) -> 3.48854155 | BC8: =BB8*(1+BC7) -> 3.595639776 | BF8: Prospective tax rate | BH8: 0.2
BF9: Year dividends can start | BH9: 2023
B10: Revenues | P10: =('GD17 Pi''s Calc - 40 yrs'!D36*'SGN Financeability'!P8) -> 872.0109293 | Q10: =('GD17 Pi''s Calc - 40 yrs'!E36*'SGN Financeability'!Q8) -> 3649.819376 | R10: =('GD17 Pi''s Calc - 40 yrs'!F36*'SGN Financeability'!R8) -> 5333.009975 | S10: =('GD17 Pi''s Calc - 40 yrs'!G36*'SGN Financeability'!S8) -> 6343.968427 | T10: =('GD17 Pi''s Calc - 40 yrs'!H36*'SGN Financeability'!T8) -> 7047.112426 | U10: =('GD17 Pi''s Calc - 40 yrs'!I36*'SGN Financeability'!U8) -> 7718.127822 | V10: =('GD17 Pi''s Calc - 40 yrs'!J36*'SGN Financeability'!V8) -> 8390.067701 | W10: =('GD17 Pi''s Calc - 40 yrs'!K36*'SGN Financeability'!W8) -> 9079.78902 | X10: =('GD17 Pi''s Calc - 40 yrs'!L36*'SGN Financeability'!X8) -> 9793.994691 | Y10: =('GD17 Pi''s Calc - 40 yrs'!M36*'SGN Financeability'!Y8) -> 10517.10396 | Z10: =('GD17 Pi''s Calc - 40 yrs'!N36*'SGN Financeability'!Z8) -> 11083.35187 | AA10: =('GD17 Pi''s Calc - 40 yrs'!O36*'SGN Financeability'!AA8) -> 11507.10214 | AB10: =('GD17 Pi''s Calc - 40 yrs'!P36*'SGN Financeability'!AB8) -> 11972.10289 | AC10: =('GD17 Pi''s Calc - 40 yrs'!Q36*'SGN Financeability'!AC8) -> 12450.63821 | AD10: =('GD17 Pi''s Calc - 40 yrs'!R36*'SGN Financeability'!AD8) -> 12924.03434 | AE10: =('GD17 Pi''s Calc - 40 yrs'!S36*'SGN Financeability'!AE8) -> 13410.61088 | AF10: =('GD17 Pi''s Calc - 40 yrs'!T36*'SGN Financeability'!AF8) -> 13930.43604 | AG10: =('GD17 Pi''s Calc - 40 yrs'!U36*'SGN Financeability'!AG8) -> 14464.8334 | AH10: =('GD17 Pi''s Calc - 40 yrs'!V36*'SGN Financeability'!AH8) -> 14993.49138 | AI10: =('GD17 Pi''s Calc - 40 yrs'!W36*'SGN Financeability'!AI8) -> 15532.82799 | AJ10: =('GD17 Pi''s Calc - 40 yrs'!X36*'SGN Financeability'!AJ8) -> 16104.19188 | AK10: =('GD17 Pi''s Calc - 40 yrs'!Y36*'SGN Financeability'!AK8) -> 16668.58047 | AL10: =('GD17 Pi''s Calc - 40 yrs'!Z36*'SGN Financeability'!AL8) -> 17202.76266 | AM10: =('GD17 Pi''s Calc - 40 yrs'!AA36*'SGN Financeability'!AM8) -> 17750.16633 | AN10: =('GD17 Pi''s Calc - 40 yrs'!AB36*'SGN Financeability'!AN8) -> 18333.78282 | AO10: =('GD17 Pi''s Calc - 40 yrs'!AC36*'SGN Financeability'!AO8) -> 18931.47292 | AP10: =('GD17 Pi''s Calc - 40 yrs'!AD36*'SGN Financeability'!AP8) -> 19519.78217 | AQ10: =('GD17 Pi''s Calc - 40 yrs'!AE36*'SGN Financeability'!AQ8) -> 20121.88457 | AR10: =('GD17 Pi''s Calc - 40 yrs'!AF36*'SGN Financeability'!AR8) -> 20762.71887 | AS10: =('GD17 Pi''s Calc - 40 yrs'!AG36*'SGN Financeability'!AS8) -> 21407.74689 | AT10: =('GD17 Pi''s Calc - 40 yrs'!AH36*'SGN Financeability'!AT8) -> 22025.24373 | AU10: =('GD17 Pi''s Calc - 40 yrs'!AI36*'SGN Financeability'!AU8) -> 22591.7372 | AV10: =('GD17 Pi''s Calc - 40 yrs'!AJ36*'SGN Financeability'!AV8) -> 23103.37404 | AW10: =('GD17 Pi''s Calc - 40 yrs'!AK36*'SGN Financeability'!AW8) -> 23623.32511 | AX10: =('GD17 Pi''s Calc - 40 yrs'!AL36*'SGN Financeability'!AX8) -> 24151.56319 | AY10: =('GD17 Pi''s Calc - 40 yrs'!AM36*'SGN Financeability'!AY8) -> 24688.04986 | AZ10: =('GD17 Pi''s Calc - 40 yrs'!AN36*'SGN Financeability'!AZ8) -> 25232.73476 | BA10: =('GD17 Pi''s Calc - 40 yrs'!AO36*'SGN Financeability'!BA8) -> 25742.8804 | BB10: =('GD17 Pi''s Calc - 40 yrs'!AP36*'SGN Financeability'!BB8) -> 26216.05711 | BC10: =('GD17 Pi''s Calc - 40 yrs'!AQ36*'SGN Financeability'!BC8) -> 26694.02445
B11: Opex | P11: =-('GD17 Pi''s Calc - 40 yrs'!D15*'SGN Financeability'!P8) -> -932.0736336 | Q11: =-('GD17 Pi''s Calc - 40 yrs'!E15*'SGN Financeability'!Q8) -> -2456.992216 | R11: =-('GD17 Pi''s Calc - 40 yrs'!F15*'SGN Financeability'!R8) -> -2315.458867 | S11: =-('GD17 Pi''s Calc - 40 yrs'!G15*'SGN Financeability'!S8) -> -2050.681802 | T11: =-('GD17 Pi''s Calc - 40 yrs'!H15*'SGN Financeability'!T8) -> -2514.753074 | U11: =-('GD17 Pi''s Calc - 40 yrs'!I15*'SGN Financeability'!U8) -> -1898.834423 | V11: =-('GD17 Pi''s Calc - 40 yrs'!J15*'SGN Financeability'!V8) -> -2185.829396 | W11: =-('GD17 Pi''s Calc - 40 yrs'!K15*'SGN Financeability'!W8) -> -2088.981309 | X11: =-('GD17 Pi''s Calc - 40 yrs'!L15*'SGN Financeability'!X8) -> -2229.544485 | Y11: =-('GD17 Pi''s Calc - 40 yrs'!M15*'SGN Financeability'!Y8) -> -2305.871508 | Z11: =-('GD17 Pi''s Calc - 40 yrs'!N15*'SGN Financeability'!Z8) -> -2645.867716 | AA11: =-('GD17 Pi''s Calc - 40 yrs'!O15*'SGN Financeability'!AA8) -> -2554.261138 | AB11: =-('GD17 Pi''s Calc - 40 yrs'!P15*'SGN Financeability'!AB8) -> -2732.339056 | AC11: =-('GD17 Pi''s Calc - 40 yrs'!Q15*'SGN Financeability'!AC8) -> -2839.84364 | AD11: =-('GD17 Pi''s Calc - 40 yrs'!R15*'SGN Financeability'!AD8) -> -3247.029489 | AE11: =-('GD17 Pi''s Calc - 40 yrs'!S15*'SGN Financeability'!AE8) -> -3169.441156 | AF11: =-('GD17 Pi''s Calc - 40 yrs'!T15*'SGN Financeability'!AF8) -> -3398.76089 | AG11: =-('GD17 Pi''s Calc - 40 yrs'!U15*'SGN Financeability'!AG8) -> -3551.235414 | AH11: =-('GD17 Pi''s Calc - 40 yrs'!V15*'SGN Financeability'!AH8) -> -4045.000488 | AI11: =-('GD17 Pi''s Calc - 40 yrs'!W15*'SGN Financeability'!AI8) -> -3995.04632 | AJ11: =-('GD17 Pi''s Calc - 40 yrs'!X15*'SGN Financeability'!AJ8) -> -4295.177389 | AK11: =-('GD17 Pi''s Calc - 40 yrs'!Y15*'SGN Financeability'!AK8) -> -4512.668115 | AL11: =-('GD17 Pi''s Calc - 40 yrs'!Z15*'SGN Financeability'!AL8) -> -5119.818401 | AM11: =-('GD17 Pi''s Calc - 40 yrs'!AA15*'SGN Financeability'!AM8) -> -5118.275049 | AN11: =-('GD17 Pi''s Calc - 40 yrs'!AB15*'SGN Financeability'!AN8) -> -5517.247925 | AO11: =-('GD17 Pi''s Calc - 40 yrs'!AC15*'SGN Financeability'!AO8) -> -5828.910976 | AP11: =-('GD17 Pi''s Calc - 40 yrs'!AD15*'SGN Financeability'!AP8) -> -6229.868684 | AQ11: =-('GD17 Pi''s Calc - 40 yrs'!AE15*'SGN Financeability'!AQ8) -> -6665.080244 | AR11: =-('GD17 Pi''s Calc - 40 yrs'!AF15*'SGN Financeability'!AR8) -> -7137.766336 | AS11: =-('GD17 Pi''s Calc - 40 yrs'!AG15*'SGN Financeability'!AS8) -> -7651.460915 | AT11: =-('GD17 Pi''s Calc - 40 yrs'!AH15*'SGN Financeability'!AT8) -> -8210.042023 | AU11: =-('GD17 Pi''s Calc - 40 yrs'!AI15*'SGN Financeability'!AU8) -> -8817.765639 | AV11: =-('GD17 Pi''s Calc - 40 yrs'!AJ15*'SGN Financeability'!AV8) -> -9479.302871 | AW11: =-('GD17 Pi''s Calc - 40 yrs'!AK15*'SGN Financeability'!AW8) -> -10199.78082 | AX11: =-('GD17 Pi''s Calc - 40 yrs'!AL15*'SGN Financeability'!AX8) -> -10984.82747 | AY11: =-('GD17 Pi''s Calc - 40 yrs'!AM15*'SGN Financeability'!AY8) -> -11840.62104 | AZ11: =-('GD17 Pi''s Calc - 40 yrs'!AN15*'SGN Financeability'!AZ8) -> -12773.94413 | BA11: =-('GD17 Pi''s Calc - 40 yrs'!AO15*'SGN Financeability'!BA8) -> -13792.24335 | BB11: =-('GD17 Pi''s Calc - 40 yrs'!AP15*'SGN Financeability'!BB8) -> -14903.69468 | BC11: =-('GD17 Pi''s Calc - 40 yrs'!AQ15*'SGN Financeability'!BC8) -> -16117.2754 | BF11: Maximum dividend payout 2017 on | BH11: 0.0598
B12: Movements in working capital | BF12: CAs as % of core depreciation | BH12: =1-BP14 -> 1
B13: Core asset depreciation | P13: =-(DAV!E28*'SGN Financeability'!P8)/1000 -> -283.0946759 | Q13: =-(DAV!F28*'SGN Financeability'!Q8)/1000 -> -817.3407352 | R13: =-(DAV!G28*'SGN Financeability'!R8)/1000 -> -1265.775141 | S13: =-(DAV!H28*'SGN Financeability'!S8)/1000 -> -1659.534579 | T13: =-(DAV!I28*'SGN Financeability'!T8)/1000 -> -2091.897096 | U13: =-(DAV!J28*'SGN Financeability'!U8)/1000 -> -2309.17545 | V13: =-(DAV!K28*'SGN Financeability'!V8)/1000 -> -2534.906688 | W13: =-(DAV!L28*'SGN Financeability'!W8)/1000 -> -2771.735619 | X13: =-(DAV!M28*'SGN Financeability'!X8)/1000 -> -3025.381554 | Y13: =-(DAV!N28*'SGN Financeability'!Y8)/1000 -> -3280.109924 | Z13: =-(DAV!O28*'SGN Financeability'!Z8)/1000 -> -3550.767469 | AA13: =-(DAV!P28*'SGN Financeability'!AA8)/1000 -> -3728.786636 | AB13: =-(DAV!Q28*'SGN Financeability'!AB8)/1000 -> -3930.264349 | AC13: =-(DAV!R28*'SGN Financeability'!AC8)/1000 -> -4124.236364 | AD13: =-(DAV!S28*'SGN Financeability'!AD8)/1000 -> -4329.32345 | AE13: =-(DAV!T28*'SGN Financeability'!AE8)/1000 -> -4512.596347 | AF13: =-(DAV!U28*'SGN Financeability'!AF8)/1000 -> -4519.097479 | AG13: =-(DAV!V28*'SGN Financeability'!AG8)/1000 -> -4578.243832 | AH13: =-(DAV!W28*'SGN Financeability'!AH8)/1000 -> -4683.401807 | AI13: =-(DAV!X28*'SGN Financeability'!AI8)/1000 -> -4807.795161 | AJ13: =-(DAV!Y28*'SGN Financeability'!AJ8)/1000 -> -4965.997034 | AK13: =-(DAV!Z28*'SGN Financeability'!AK8)/1000 -> -5334.209014 | AL13: =-(DAV!AA28*'SGN Financeability'!AL8)/1000 -> -5636.376031 | AM13: =-(DAV!AB28*'SGN Financeability'!AM8)/1000 -> -5903.069455 | AN13: =-(DAV!AC28*'SGN Financeability'!AN8)/1000 -> -6216.392225 | AO13: =-(DAV!AD28*'SGN Financeability'!AO8)/1000 -> -6597.330898 | AP13: =-(DAV!AE28*'SGN Financeability'!AP8)/1000 -> -7001.990378 | AQ13: =-(DAV!AF28*'SGN Financeability'!AQ8)/1000 -> -7411.860291 | AR13: =-(DAV!AG28*'SGN Financeability'!AR8)/1000 -> -7845.375993 | AS13: =-(DAV!AH28*'SGN Financeability'!AS8)/1000 -> -8289.476965 | AT13: =-(DAV!AI28*'SGN Financeability'!AT8)/1000 -> -8644.404752 | AU13: =-(DAV!AJ28*'SGN Financeability'!AU8)/1000 -> -8997.911519 | AV13: =-(DAV!AK28*'SGN Financeability'!AV8)/1000 -> -9385.113032 | AW13: =-(DAV!AL28*'SGN Financeability'!AW8)/1000 -> -9772.139008 | AX13: =-(DAV!AM28*'SGN Financeability'!AX8)/1000 -> -10135.83416 | AY13: =-(DAV!AN28*'SGN Financeability'!AY8)/1000 -> -10496.94394 | AZ13: =-(DAV!AO28*'SGN Financeability'!AZ8)/1000 -> -10524.05194 | BA13: =-(DAV!AP28*'SGN Financeability'!BA8)/1000 -> -10667.81603 | BB13: =-(DAV!AQ28*'SGN Financeability'!BB8)/1000 -> -10894.78654 | BC13: =-(DAV!AR28*'SGN Financeability'!BC8)/1000 -> -11143.25251 | BF13: Threshold PMICR | BH13: 1.4
B14: Profile adjustment | P14: =('GD17 Pi''s Calc - 40 yrs'!D81-'GD17 Pi''s Calc - 40 yrs'!C81)*'SGN Financeability'!P8 -> 693.3737246 | Q14: =('GD17 Pi''s Calc - 40 yrs'!E81-'GD17 Pi''s Calc - 40 yrs'!D81)*'SGN Financeability'!Q8 -> 487.4435431 | R14: =('GD17 Pi''s Calc - 40 yrs'!F81-'GD17 Pi''s Calc - 40 yrs'!E81)*'SGN Financeability'!R8 -> -239.6555748 | S14: =('GD17 Pi''s Calc - 40 yrs'!G81-'GD17 Pi''s Calc - 40 yrs'!F81)*'SGN Financeability'!S8 -> -644.1994638 | T14: =('GD17 Pi''s Calc - 40 yrs'!H81-'GD17 Pi''s Calc - 40 yrs'!G81)*'SGN Financeability'!T8 -> -12.40747293 | U14: =('GD17 Pi''s Calc - 40 yrs'!I81-'GD17 Pi''s Calc - 40 yrs'!H81)*'SGN Financeability'!U8 -> -688.897893 | V14: =('GD17 Pi''s Calc - 40 yrs'!J81-'GD17 Pi''s Calc - 40 yrs'!I81)*'SGN Financeability'!V8 -> -531.2101527 | W14: =('GD17 Pi''s Calc - 40 yrs'!K81-'GD17 Pi''s Calc - 40 yrs'!J81)*'SGN Financeability'!W8 -> -760.4084782 | X14: =('GD17 Pi''s Calc - 40 yrs'!L81-'GD17 Pi''s Calc - 40 yrs'!K81)*'SGN Financeability'!X8 -> -752.3589322 | Y14: =('GD17 Pi''s Calc - 40 yrs'!M81-'GD17 Pi''s Calc - 40 yrs'!L81)*'SGN Financeability'!Y8 -> -813.0304536 | Z14: =('GD17 Pi''s Calc - 40 yrs'!N81-'GD17 Pi''s Calc - 40 yrs'!M81)*'SGN Financeability'!Z8 -> -482.5017492 | AA14: =('GD17 Pi''s Calc - 40 yrs'!O81-'GD17 Pi''s Calc - 40 yrs'!N81)*'SGN Financeability'!AA8 -> -681.7587633 | AB14: =('GD17 Pi''s Calc - 40 yrs'!P81-'GD17 Pi''s Calc - 40 yrs'!O81)*'SGN Financeability'!AB8 -> -732.7471183 | AC14: =('GD17 Pi''s Calc - 40 yrs'!Q81-'GD17 Pi''s Calc - 40 yrs'!P81)*'SGN Financeability'!AC8 -> -885.8948864 | AD14: =('GD17 Pi''s Calc - 40 yrs'!R81-'GD17 Pi''s Calc - 40 yrs'!Q81)*'SGN Financeability'!AD8 -> -740.2091996 | AE14: =('GD17 Pi''s Calc - 40 yrs'!S81-'GD17 Pi''s Calc - 40 yrs'!R81)*'SGN Financeability'!AE8 -> -1126.410402 | AF14: =('GD17 Pi''s Calc - 40 yrs'!T81-'GD17 Pi''s Calc - 40 yrs'!S81)*'SGN Financeability'!AF8 -> -1422.784714 | AG14: =('GD17 Pi''s Calc - 40 yrs'!U81-'GD17 Pi''s Calc - 40 yrs'!T81)*'SGN Financeability'!AG8 -> -1123.145933 | AH14: =('GD17 Pi''s Calc - 40 yrs'!V81-'GD17 Pi''s Calc - 40 yrs'!U81)*'SGN Financeability'!AH8 -> -1038.204669 | AI14: =('GD17 Pi''s Calc - 40 yrs'!W81-'GD17 Pi''s Calc - 40 yrs'!V81)*'SGN Financeability'!AI8 -> -1400.050259 | AJ14: =('GD17 Pi''s Calc - 40 yrs'!X81-'GD17 Pi''s Calc - 40 yrs'!W81)*'SGN Financeability'!AJ8 -> -1470.415908 | AK14: =('GD17 Pi''s Calc - 40 yrs'!Y81-'GD17 Pi''s Calc - 40 yrs'!X81)*'SGN Financeability'!AK8 -> -1368.439618 | AL14: =('GD17 Pi''s Calc - 40 yrs'!Z81-'GD17 Pi''s Calc - 40 yrs'!Y81)*'SGN Financeability'!AL8 -> -926.0124283 | AM14: =('GD17 Pi''s Calc - 40 yrs'!AA81-'GD17 Pi''s Calc - 40 yrs'!Z81)*'SGN Financeability'!AM8 -> -1064.695825 | AN14: =('GD17 Pi''s Calc - 40 yrs'!AB81-'GD17 Pi''s Calc - 40 yrs'!AA81)*'SGN Financeability'!AN8 -> -876.384091 | AO14: =('GD17 Pi''s Calc - 40 yrs'!AC81-'GD17 Pi''s Calc - 40 yrs'!AB81)*'SGN Financeability'!AO8 -> -689.6393852 | AP14: =('GD17 Pi''s Calc - 40 yrs'!AD81-'GD17 Pi''s Calc - 40 yrs'!AC81)*'SGN Financeability'!AP8 -> -422.2532666 | AQ14: =('GD17 Pi''s Calc - 40 yrs'!AE81-'GD17 Pi''s Calc - 40 yrs'!AD81)*'SGN Financeability'!AQ8 -> -130.6022835 | AR14: =('GD17 Pi''s Calc - 40 yrs'!AF81-'GD17 Pi''s Calc - 40 yrs'!AE81)*'SGN Financeability'!AR8 -> 180.9926494 | AS14: =('GD17 Pi''s Calc - 40 yrs'!AG81-'GD17 Pi''s Calc - 40 yrs'!AF81)*'SGN Financeability'!AS8 -> 533.3092919 | AT14: =('GD17 Pi''s Calc - 40 yrs'!AH81-'GD17 Pi''s Calc - 40 yrs'!AG81)*'SGN Financeability'!AT8 -> 846.2051589 | AU14: =('GD17 Pi''s Calc - 40 yrs'!AI81-'GD17 Pi''s Calc - 40 yrs'!AH81)*'SGN Financeability'!AU8 -> 1200.989702 | AV14: =('GD17 Pi''s Calc - 40 yrs'!AJ81-'GD17 Pi''s Calc - 40 yrs'!AI81)*'SGN Financeability'!AV8 -> 1682.165475 | AW14: =('GD17 Pi''s Calc - 40 yrs'!AK81-'GD17 Pi''s Calc - 40 yrs'!AJ81)*'SGN Financeability'!AW8 -> 2215.765419 | AX14: =('GD17 Pi''s Calc - 40 yrs'!AL81-'GD17 Pi''s Calc - 40 yrs'!AK81)*'SGN Financeability'!AX8 -> 2779.834894 | AY14: =('GD17 Pi''s Calc - 40 yrs'!AM81-'GD17 Pi''s Calc - 40 yrs'!AL81)*'SGN Financeability'!AY8 -> 3407.820744 | AZ14: =('GD17 Pi''s Calc - 40 yrs'!AN81-'GD17 Pi''s Calc - 40 yrs'!AM81)*'SGN Financeability'!AZ8 -> 3778.004143 | BA14: =('GD17 Pi''s Calc - 40 yrs'!AO81-'GD17 Pi''s Calc - 40 yrs'!AN81)*'SGN Financeability'!BA8 -> 4391.204294 | BB14: =('GD17 Pi''s Calc - 40 yrs'!AP81-'GD17 Pi''s Calc - 40 yrs'!AO81)*'SGN Financeability'!BB8 -> 5222.976817 | BC14: =('GD17 Pi''s Calc - 40 yrs'!AQ81-'GD17 Pi''s Calc - 40 yrs'!AP81)*'SGN Financeability'!BC8 -> 6201.88927 | BM14: SGN Debt Profile
B15: Tax (prior year) | P15: =-P44 -> 0 | Q15: =-Q44 -> 0 | R15: 0 | S15: 0 | T15: 0 | BF15: Outturn and financial assumptions | BH15: SGN | BM15: 2018 | BN15: 2019 | BO15: 2020 | BP15: 2021 | BQ15: 2022
B16: Post-maintenance FFO | P16: =SUM(P10:P15) -> 350.2163444 | Q16: =SUM(Q10:Q15) -> 862.9299677 | R16: 1512.120392 | S16: 1989.552583 | T16: 2428.054783 | U16: 2821.220056 | V16: 3138.121464 | W16: 3458.663614 | X16: 3786.70972 | Y16: 4118.092071 | Z16: 4404.214936 | AA16: 4542.2956 | AB16: 4576.752366 | AC16: 4600.663322 | AD16: 4607.472204 | AE16: 4602.162974 | AF16: 4589.792959 | AG16: 5212.208222 | AH16: 5226.884412 | AI16: 5329.936254 | AJ16: 5372.601552 | AK16: 5453.26372 | AL16: 5520.555801 | AM16: 5664.126004 | AN16: 5723.758581 | AO16: 5815.591662 | AP16: 5865.669839 | AQ16: 5914.341751 | AR16: 5960.569191 | AS16: 6000.118304 | AT16: 6017.002112 | AU16: 5977.049742 | AV16: 5921.123607 | AW16: 5867.170697 | AX16: 5810.736452 | AY16: 5758.305623 | AZ16: 5712.742825 | BA16: 5674.025309 | BB16: 5640.552696 | BC16: 5635.38581 | BF16: Initial debt as % of TRV | BH16: 0.65 | BM16: 0.0554 | BN16: 0.0554 | BO16: 0.0554 | BP16: 0.0554 | BQ16: 0.0554
BF17: Nominal interest rate | BH17: 0.0548
B18: PMICR | P18: =P16/P46 -> 1.224564759 | Q18: 1.209553526 | R18: 1.366053235 | S18: 1.423904165 | T18: 1.427308284 | U18: 1.466940494 | V18: 1.481617623 | W18: 1.485918187 | X18: 1.48696938 | Y18: 1.491051623 | Z18: 1.499588238 | AA18: 1.519131994 | AB18: 1.515694664 | AC18: 1.51787602 | AD18: 1.515779987 | AE18: 1.517856587 | AF18: 1.51441749 | AG18: 1.733249852 | AH18: 1.740188239 | AI18: 1.781364523 | AJ18: 1.792451109 | AK18: 1.779377336 | AL18: 1.762679921 | AM18: 1.792356968 | AN18: 1.784241549 | AO18: 1.798029127 | AP18: 1.80069974 | AQ18: 1.803721092 | AR18: 1.806389038 | AS18: 1.807217357 | AT18: 1.82314899 | AU18: 1.828505732 | AV18: 1.823964633 | AW18: 1.817124323 | AX18: 1.803917028 | AY18: 1.784996062 | AZ18: 1.757244408 | BA18: 1.722640643 | BB18: 1.676929454 | BC18: 1.618791296 | BF18: Year tax payments start | BH18: 2028 | BI18: note: to reflect approximate time when tax losses are fully utilised
B20: Maximum interest consistent with dividends | P20: =P16/$BH$13 -> 250.1545317 | Q20: =Q16/$BH$13 -> 616.3785483 | R20: 1080.085994 | S20: 1421.108988 | T20: 1734.324845 | U20: 2015.157183 | V20: 2241.515332 | W20: 2470.47401 | X20: 2704.792657 | Y20: 2941.494336 | Z20: 3145.867811 | AA20: 3244.496857 | AB20: 3269.108833 | AC20: 3286.188087 | AD20: 3291.051574 | AE20: 3287.259267 | AF20: 3278.423542 | AG20: 3723.005873 | AH20: 3733.488866 | AI20: 3807.097324 | AJ20: 3837.572537 | AK20: 3895.188371 | AL20: 3943.254144 | AM20: 4045.804289 | AN20: 4088.398987 | AO20: 4153.994045 | AP20: 4189.764171 | AQ20: 4224.529822 | AR20: 4257.549422 | AS20: 4285.798789 | AT20: 4297.858651 | AU20: 4269.321245 | AV20: 4229.374005 | AW20: 4190.836212 | AX20: 4150.526037 | AY20: 4113.075445 | AZ20: 4080.530589 | BA20: 4052.875221 | BB20: 4028.966211 | BC20: 4025.275579
B21: Implied maximum debt level (pre interest) | P21: =2*P20/BM16-P39 -> 6346.28276 | Q21: =2*Q20/BN16-Q39 -> 15930.35519 | R21: =2*R20/BO16-R39 -> 23113.79103 | S21: =2*S20/BP16-S39 -> 28428.07287 | T21: =2*T20/BQ16-T39 -> 34557.35609 | U21: =2*U20/Int_SGN-U39 -> 39449.65953 | V21: 43735.84635 | W21: 47965.10049 | X21: 52451.99611 | Y21: 56767.2002 | Z21: 60082.56748 | AA21: 60527.63901 | AB21: 61093.88963 | AC21: 61165.21199 | AD21: 61291.14645 | AE21: 61029.19003 | AF21: 60971.84367 | AG21: 77245.22915 | AH21: 77837.37671 | AI21: 80607.48864 | AJ21: 81924.28548 | AK21: 83883.81955 | AL21: 83969.74828 | AM21: 86571.76769 | AN21: 87675.36475 | AO21: 89048.45305 | AP21: 89982.69568 | AQ21: 90798.14379 | AR21: 91602.03661 | AS21: 92232.77749 | AT21: 92286.9066 | AU21: 91877.42262 | AV21: 91045.57711 | AW21: 90040.13588 | AX21: 88901.17148 | AY21: 87638.19952 | AZ21: 86308.74506 | BA21: 84718.69352 | BB21: 82952.28097 | BC21: 81334.03927
B23: Tax
B24: Revenues | M24: =M10 -> 0 | N24: 0 | O24: 0 | P24: =P10 -> 872.0109293 | Q24: =Q10 -> 3649.819376 | R24: 5333.009975 | S24: 6343.968427 | T24: 7047.112426 | U24: 7718.127822 | V24: 8390.067701 | W24: 9079.78902 | X24: 9793.994691 | Y24: 10517.10396 | Z24: 11083.35187 | AA24: 11507.10214 | AB24: 11972.10289 | AC24: 12450.63821 | AD24: 12924.03434 | AE24: 13410.61088 | AF24: 13930.43604 | AG24: 14464.8334 | AH24: 14993.49138 | AI24: 15532.82799 | AJ24: 16104.19188 | AK24: 16668.58047 | AL24: 17202.76266 | AM24: 17750.16633 | AN24: 18333.78282 | AO24: 18931.47292 | AP24: 19519.78217 | AQ24: 20121.88457 | AR24: 20762.71887 | AS24: 21407.74689 | AT24: 22025.24373 | AU24: 22591.7372 | AV24: 23103.37404 | AW24: 23623.32511 | AX24: 24151.56319 | AY24: 24688.04986 | AZ24: 25232.73476 | BA24: 25742.8804 | BB24: 26216.05711 | BC24: 26694.02445
B25: Opex | M25: =+M11 -> 0 | N25: 0 | O25: 0 | P25: =+P11 -> -932.0736336 | Q25: -2456.992216 | R25: -2315.458867 | S25: -2050.681802 | T25: -2514.753074 | U25: -1898.834423 | V25: -2185.829396 | W25: -2088.981309 | X25: -2229.544485 | Y25: -2305.871508 | Z25: -2645.867716 | AA25: -2554.261138 | AB25: -2732.339056 | AC25: -2839.84364 | AD25: -3247.029489 | AE25: -3169.441156 | AF25: -3398.76089 | AG25: -3551.235414 | AH25: -4045.000488 | AI25: -3995.04632 | AJ25: -4295.177389 | AK25: -4512.668115 | AL25: -5119.818401 | AM25: -5118.275049 | AN25: -5517.247925 | AO25: -5828.910976 | AP25: -6229.868684 | AQ25: -6665.080244 | AR25: -7137.766336 | AS25: -7651.460915 | AT25: -8210.042023 | AU25: -8817.765639 | AV25: -9479.302871 | AW25: -10199.78082 | AX25: -10984.82747 | AY25: -11840.62104 | AZ25: -12773.94413 | BA25: -13792.24335 | BB25: -14903.69468 | BC25: -16117.2754
B26: Interest | M26: =-M46 -> 0 | N26: 0 | O26: 0 | P26: =-P46 -> -285.9925062 | Q26: -713.4285081 | R26: -1106.926402 | S26: -1397.251748 | T26: -1701.1425 | U26: -1923.200066 | V26: -2118.03735 | W26: -2327.627217 | X26: -2546.595627 | Y26: -2761.870889 | Z26: -2936.949507 | AA26: -2990.059862 | AB26: -3019.574111 | AC26: -3030.987552 | AD26: -3039.670825 | AE26: -3032.014364 | AF26: -3030.731611 | AG26: -3007.188039 | AH26: -3003.631616 | AI26: -2992.052544 | AJ26: -2997.349008 | AK26: -3064.70337 | AL26: -3131.910527 | AM26: -3160.155095 | AN26: -3207.950507 | AO26: -3234.425725 | AP26: -3257.439155 | AQ26: -3278.966896 | AR26: -3299.715103 | AS26: -3320.086697 | AT26: -3300.334829 | AU26: -3268.816519 | AV26: -3246.292993 | AW26: -3228.821838 | AX26: -3221.177228 | AY26: -3225.948642 | AZ26: -3250.96657 | BA26: -3293.7951 | BB26: -3363.619551 | BC26: -3481.230609
B27: Capital allowances | M27: =-'Capital Allowances'!D49/1000 -> 0 | N27: =-'Capital Allowances'!E49/1000 -> -7.254131062 | O27: =-'Capital Allowances'!F49/1000 -> -785.1826606 | P27: =-'Capital Allowances'!G49/1000 -> -1183.240643 | Q27: =-'Capital Allowances'!H49/1000 -> -2320.132625 | R27: =-'Capital Allowances'!I49/1000 -> -3004.389531 | S27: =-'Capital Allowances'!J49/1000 -> -3518.570265 | T27: =-'Capital Allowances'!K49/1000 -> -4098.110948 | U27: =-'Capital Allowances'!L49/1000 -> -4379.527204 | V27: =-'Capital Allowances'!M49/1000 -> -4644.859166 | W27: =-'Capital Allowances'!N49/1000 -> -4903.355185 | X27: =-'Capital Allowances'!O49/1000 -> -5177.910371 | Y27: =-'Capital Allowances'!P49/1000 -> -5416.156846 | Z27: =-'Capital Allowances'!Q49/1000 -> -5486.626778 | AA27: =-'Capital Allowances'!R49/1000 -> -5210.92776 | AB27: =-'Capital Allowances'!S49/1000 -> -5007.132309 | AC27: =-'Capital Allowances'!T49/1000 -> -4784.40936 | AD27: =-'Capital Allowances'!U49/1000 -> -4594.780353 | AE27: =-'Capital Allowances'!V49/1000 -> -4419.961423 | AF27: =-'Capital Allowances'!W49/1000 -> -4314.770199 | AG27: =-'Capital Allowances'!X49/1000 -> -4177.548984 | AH27: =-'Capital Allowances'!Y49/1000 -> -4070.684588 | AI27: =-'Capital Allowances'!Z49/1000 -> -3999.451097 | AJ27: =-'Capital Allowances'!AA49/1000 -> -3999.090272 | AK27: =-'Capital Allowances'!AB49/1000 -> -4215.765195 | AL27: =-'Capital Allowances'!AC49/1000 -> -4328.073256 | AM27: =-'Capital Allowances'!AD49/1000 -> -4372.958713 | AN27: =-'Capital Allowances'!AE49/1000 -> -4495.787233 | AO27: =-'Capital Allowances'!AF49/1000 -> -4537.801204 | AP27: =-'Capital Allowances'!AG49/1000 -> -4597.058338 | AQ27: =-'Capital Allowances'!AH49/1000 -> -4652.976457 | AR27: =-'Capital Allowances'!AI49/1000 -> -4712.908536 | AS27: =-'Capital Allowances'!AJ49/1000 -> -4772.237013 | AT27: =-'Capital Allowances'!AK49/1000 -> -4698.510263 | AU27: =-'Capital Allowances'!AL49/1000 -> -4634.239609 | AV27: =-'Capital Allowances'!AM49/1000 -> -4598.66456 | AW27: =-'Capital Allowances'!AN49/1000 -> -4563.981359 | AX27: =-'Capital Allowances'!AO49/1000 -> -4545.633277 | AY27: =-'Capital Allowances'!AP49/1000 -> -4537.828081 | AZ27: =-'Capital Allowances'!AQ49/1000 -> -4556.924192 | BA27: =-'Capital Allowances'!AR49/1000 -> -4571.968926 | BB27: =-'Capital Allowances'!AS49/1000 -> -4605.863435 | BC27: =-'Capital Allowances'!AT49/1000 -> -4701.36416
B28: Losses | M28: =IF(M5<Tax_Year_SGN,-SUM(M24:M27),0) -> 0 | N28: 7.254131062 | O28: 785.1826606 | P28: =IF(P5<Tax_Year_SGN,-SUM(P24:P27),0) -> 1529.295853 | Q28: 1840.733974 | R28: 1093.764825 | S28: 622.5353865 | T28: 1266.894096 | U28: 483.4338719 | V28: 558.658211 | W28: 240.1746904 | X28: 160.0557914 | Y28: -33.20471305 | Z28: 0 | AA28: 0 | AB28: 0 | AC28: 0 | AD28: 0 | AE28: 0 | AF28: 0 | AG28: 0 | AH28: 0 | AI28: 0 | AJ28: 0 | AK28: 0 | AL28: 0 | AM28: 0 | AN28: 0 | AO28: 0 | AP28: 0 | AQ28: 0 | AR28: 0 | AS28: 0 | AT28: 0 | AU28: 0 | AV28: 0 | AW28: 0 | AX28: 0 | AY28: 0 | AZ28: 0 | BA28: 0 | BB28: 0 | BC28: 0
B29: Taxable profits | M29: =SUM(M24:M28) -> 0 | N29: 0 | O29: 0 | P29: =SUM(P24:P28) -> 0 | Q29: 0 | R29: 0 | S29: 0 | T29: 0 | U29: 0 | V29: 0 | W29: 0 | X29: 0 | Y29: 0 | Z29: 13.90786832 | AA29: 751.8533779 | AB29: 1213.057414 | AC29: 1795.39766 | AD29: 2042.553675 | AE29: 2789.193935 | AF29: 3186.173343 | AG29: 3728.860964 | AH29: 3874.174684 | AI29: 4546.278034 | AJ29: 4812.575214 | AK29: 4875.443787 | AL29: 4622.960477 | AM29: 5098.777475 | AN29: 5112.797156 | AO29: 5330.335018 | AP29: 5435.415991 | AQ29: 5524.860972 | AR29: 5612.328896 | AS29: 5663.962267 | AT29: 5816.356613 | AU29: 5870.915431 | AV29: 5779.113612 | AW29: 5630.741089 | AX29: 5399.925212 | AY29: 5083.652099 | AZ29: 4650.899864 | BA29: 4084.873021 | BB29: 3342.879436 | BC29: 2394.154282
B30: Tax payable | M30: =M29*M63 -> 0 | N30: =N29*N63 -> 0 | O30: 0 | P30: 0 | Q30: 0 | R30: 0 | S30: 0 | T30: 0 | U30: =U29*'SGN Financeability'!$BH$8 -> 0 | V30: =V29*'SGN Financeability'!$BH$8 -> 0 | W30: =W29*'SGN Financeability'!$BH$8 -> 0 | X30: =X29*'SGN Financeability'!$BH$8 -> 0 | Y30: =Y29*'SGN Financeability'!$BH$8 -> 0 | Z30: =Z29*'SGN Financeability'!$BH$8 -> 2.781573664 | AA30: =AA29*'SGN Financeability'!$BH$8 -> 150.3706756 | AB30: =AB29*'SGN Financeability'!$BH$8 -> 242.6114827 | AC30: =AC29*'SGN Financeability'!$BH$8 -> 359.079532 | AD30: =AD29*'SGN Financeability'!$BH$8 -> 408.510735 | AE30: =AE29*'SGN Financeability'!$BH$8 -> 557.8387871 | AF30: =AF29*'SGN Financeability'!$BH$8 -> 637.2346686 | AG30: =AG29*'SGN Financeability'!$BH$8 -> 745.7721929 | AH30: =AH29*'SGN Financeability'!$BH$8 -> 774.8349369 | AI30: =AI29*'SGN Financeability'!$BH$8 -> 909.2556067 | AJ30: =AJ29*'SGN Financeability'!$BH$8 -> 962.5150427 | AK30: =AK29*'SGN Financeability'!$BH$8 -> 975.0887573 | AL30: =AL29*'SGN Financeability'!$BH$8 -> 924.5920955 | AM30: =AM29*'SGN Financeability'!$BH$8 -> 1019.755495 | AN30: =AN29*'SGN Financeability'!$BH$8 -> 1022.559431 | AO30: =AO29*'SGN Financeability'!$BH$8 -> 1066.067004 | AP30: =AP29*'SGN Financeability'!$BH$8 -> 1087.083198 | AQ30: =AQ29*'SGN Financeability'!$BH$8 -> 1104.972194 | AR30: =AR29*'SGN Financeability'!$BH$8 -> 1122.465779 | AS30: =AS29*'SGN Financeability'!$BH$8 -> 1132.792453 | AT30: =AT29*'SGN Financeability'!$BH$8 -> 1163.271323 | AU30: =AU29*'SGN Financeability'!$BH$8 -> 1174.183086 | AV30: =AV29*'SGN Financeability'!$BH$8 -> 1155.822722 | AW30: =AW29*'SGN Financeability'!$BH$8 -> 1126.148218 | AX30: =AX29*'SGN Financeability'!$BH$8 -> 1079.985042 | AY30: =AY29*'SGN Financeability'!$BH$8 -> 1016.73042 | AZ30: =AZ29*'SGN Financeability'!$BH$8 -> 930.1799729 | BA30: =BA29*'SGN Financeability'!$BH$8 -> 816.9746042 | BB30: =BB29*'SGN Financeability'!$BH$8 -> 668.5758873 | BC30: =BC29*'SGN Financeability'!$BH$8 -> 478.8308565
B32: Dividends
B33: Maximum dividend payout (% of initial equity) | P33: 0.0598
B34: Allowed dividend in year | P34: =(+P51-P39)*P33 -> 86.44304969 | Q34: =+P34*(1+P7) -> 89.09685131 | R34: =+Q34*(1+Q7) -> 91.83212465 | S34: =+R34*(1+R7) -> 94.65137088 | T34: =+S34*(1+S7) -> 97.55716796 | U34: =+T34*(1+T7) -> 100.552173 | V34: =+U34*(1+U7) -> 103.6391247 | W34: 106.8208459 | X34: 110.1002458 | Y34: 113.4803234 | Z34: 116.9641693 | AA34: 120.5549693 | AB34: 124.2560069 | AC34: 128.0706663 | AD34: 132.0024357 | AE34: 136.0549105 | AF34: 140.2317963 | AG34: 144.5369124 | AH34: 148.9741956 | AI34: 153.5477034 | AJ34: 158.2616179 | AK34: 163.1202496 | AL34: 168.1280412 | AM34: 173.2895721 | AN34: 178.609562 | AO34: 184.0928755 | AP34: 189.7445268 | AQ34: 195.5696838 | AR34: 201.5736731 | AS34: 207.7619848 | AT34: 214.1402778 | AU34: 220.7143843 | AV34: 227.4903159 | AW34: 234.4742686 | AX34: 241.6726286 | AY34: 249.0919783 | AZ34: 256.7391021 | BA34: 264.6209925 | BB34: 272.744857 | BC34: 281.1181241
B35: Dividend available | P35: =P34+(O35-O36)*(1+$BH$7)*(1+$P$33) -> 86.44304969 | Q35: =Q34+(P35-P36)*(1+$BH$7)*(1+$P$33) -> 183.5216943 | R35: =R34+(Q35-Q36)*(1+$BH$7)*(1+$P$33) -> 292.2994525 | S35: =S34+(R35-R36)*(1+$BH$7)*(1+$P$33) -> 413.9405447 | T35: =T34+(S35-S36)*(1+$BH$7)*(1+$P$33) -> 549.7192688 | U35: =U34+(T35-T36)*(1+$BH$7) -> 667.1478234 | V35: 103.6391247 | W35: 106.8208459 | X35: 110.1002458 | Y35: 113.4803234 | Z35: 116.9641693 | AA35: 120.5549693 | AB35: 124.2560069 | AC35: 128.0706663 | AD35: 132.0024357 | AE35: 136.0549105 | AF35: 140.2317963 | AG35: 144.5369124 | AH35: 148.9741956 | AI35: 153.5477034 | AJ35: 158.2616179 | AK35: 163.1202496 | AL35: 168.1280412 | AM35: 173.2895721 | AN35: 178.609562 | AO35: 184.0928755 | AP35: 189.7445268 | AQ35: 195.5696838 | AR35: 201.5736731 | AS35: 207.7619848 | AT35: 214.1402778 | AU35: 220.7143843 | AV35: 227.4903159 | AW35: 234.4742686 | AX35: 241.6726286 | AY35: 249.0919783 | AZ35: 256.7391021 | BA35: 264.6209925 | BB35: 272.744857 | BC35: 281.1181241
B36: Dividend Paid | P36: =IF(P5<$BH$9,0,MIN(MAX(0,P21-SUM(P39:P44)),P35)) -> 0 | Q36: 0 | R36: 0 | S36: 0 | T36: 0 | U36: 667.1478234 | V36: 103.6391247 | W36: 106.8208459 | X36: 110.1002458 | Y36: 113.4803234 | Z36: 116.9641693 | AA36: 120.5549693 | AB36: 124.2560069 | AC36: 128.0706663 | AD36: 132.0024357 | AE36: 136.0549105 | AF36: 140.2317963 | AG36: 144.5369124 | AH36: 148.9741956 | AI36: 153.5477034 | AJ36: 158.2616179 | AK36: 163.1202496 | AL36: 168.1280412 | AM36: 173.2895721 | AN36: 178.609562 | AO36: 184.0928755 | AP36: 189.7445268 | AQ36: 195.5696838 | AR36: 201.5736731 | AS36: 207.7619848 | AT36: 214.1402778 | AU36: 220.7143843 | AV36: 227.4903159 | AW36: 234.4742686 | AX36: 241.6726286 | AY36: 249.0919783 | AZ36: 256.7391021 | BA36: 264.6209925 | BB36: 272.744857 | BC36: 281.1181241
B38: Debt
B39: Debt at the start of the year | P39: ='GD17 Pi''s Calc - 40 yrs'!C83*SGN_Debt*P8 -> 2684.566761 | Q39: ='GD17 Pi''s Calc - 40 yrs'!D83*SGN_Debt*Q8 -> 6321.577967 | R39: ='GD17 Pi''s Calc - 40 yrs'!E83*SGN_Debt*R8 -> 15878.48314 | S39: ='GD17 Pi''s Calc - 40 yrs'!F83*SGN_Debt*S8 -> 22875.5007 | T39: ='GD17 Pi''s Calc - 40 yrs'!G83*SGN_Debt*T8 -> 28053.64914 | U39: ='GD17 Pi''s Calc - 40 yrs'!H83*SGN_Debt*U8 -> 34096.22305 | V39: ='GD17 Pi''s Calc - 40 yrs'!I83*SGN_Debt*V8 -> 38071.28253 | W39: ='GD17 Pi''s Calc - 40 yrs'!J83*SGN_Debt*W8 -> 42198.18456 | X39: ='GD17 Pi''s Calc - 40 yrs'!K83*SGN_Debt*X8 -> 46263.06437 | Y39: ='GD17 Pi''s Calc - 40 yrs'!L83*SGN_Debt*Y8 -> 50586.6077 | Z39: ='GD17 Pi''s Calc - 40 yrs'!M83*SGN_Debt*Z8 -> 54730.12636 | AA39: ='GD17 Pi''s Calc - 40 yrs'!N83*SGN_Debt*AA8 -> 57884.65504 | AB39: ='GD17 Pi''s Calc - 40 yrs'!O83*SGN_Debt*AB8 -> 58216.65172 | AC39: ='GD17 Pi''s Calc - 40 yrs'!P83*SGN_Debt*AC8 -> 58768.65979 | AD39: ='GD17 Pi''s Calc - 40 yrs'!Q83*SGN_Debt*AD8 -> 58820.22486 | AE39: ='GD17 Pi''s Calc - 40 yrs'!R83*SGN_Debt*AE8 -> 58943.77592 | AF39: ='GD17 Pi''s Calc - 40 yrs'!S83*SGN_Debt*AF8 -> 58678.65056 | AG39: ='GD17 Pi''s Calc - 40 yrs'!T83*SGN_Debt*AG8 -> 58630.8976 | AH39: ='GD17 Pi''s Calc - 40 yrs'!U83*SGN_Debt*AH8 -> 58421.34103 | AI39: ='GD17 Pi''s Calc - 40 yrs'!V83*SGN_Debt*AI8 -> 58337.66918 | AJ39: ='GD17 Pi''s Calc - 40 yrs'!W83*SGN_Debt*AJ8 -> 58133.10639 | AK39: ='GD17 Pi''s Calc - 40 yrs'!X83*SGN_Debt*AK8 -> 58276.33999 | AL39: ='GD17 Pi''s Calc - 40 yrs'!Y83*SGN_Debt*AL8 -> 59944.63652 | AM39: ='GD17 Pi''s Calc - 40 yrs'!Z83*SGN_Debt*AM8 -> 61085.32313 | AN39: ='GD17 Pi''s Calc - 40 yrs'!AA83*SGN_Debt*AN8 -> 61536.2771 | AO39: ='GD17 Pi''s Calc - 40 yrs'!AB83*SGN_Debt*AO8 -> 62557.16902 | AP39: ='GD17 Pi''s Calc - 40 yrs'!AC83*SGN_Debt*AP8 -> 62928.40545 | AQ39: ='GD17 Pi''s Calc - 40 yrs'!AD83*SGN_Debt*AQ8 -> 63381.77671 | AR39: ='GD17 Pi''s Calc - 40 yrs'!AE83*SGN_Debt*AR8 -> 63782.97879 | AS39: ='GD17 Pi''s Calc - 40 yrs'!AF83*SGN_Debt*AS8 -> 64183.2367 | AT39: ='GD17 Pi''s Calc - 40 yrs'!AG83*SGN_Debt*AT8 -> 64569.24856 | AU39: ='GD17 Pi''s Calc - 40 yrs'!AH83*SGN_Debt*AU8 -> 63937.22134 | AV39: ='GD17 Pi''s Calc - 40 yrs'!AI83*SGN_Debt*AV8 -> 63311.13841 | AW39: ='GD17 Pi''s Calc - 40 yrs'!AJ83*SGN_Debt*AW8 -> 62910.09085 | AX39: ='GD17 Pi''s Calc - 40 yrs'!AK83*SGN_Debt*AX8 -> 62577.88097 | AY39: ='GD17 Pi''s Calc - 40 yrs'!AL83*SGN_Debt*AY8 -> 62474.043 | AZ39: ='GD17 Pi''s Calc - 40 yrs'!AM83*SGN_Debt*AZ8 -> 62615.729 | BA39: ='GD17 Pi''s Calc - 40 yrs'!AN83*SGN_Debt*BA8 -> 63196.46052 | BB39: ='GD17 Pi''s Calc - 40 yrs'!AO83*SGN_Debt*BB8 -> 64090.28149 | BC39: ='GD17 Pi''s Calc - 40 yrs'!AP83*SGN_Debt*BC8 -> 65573.82857
B40: Revenues | P40: =-P10 -> -872.0109293 | Q40: =-Q10 -> -3649.819376 | R40: -5333.009975 | S40: -6343.968427 | T40: -7047.112426 | U40: -7718.127822 | V40: -8390.067701 | W40: -9079.78902 | X40: -9793.994691 | Y40: -10517.10396 | Z40: -11083.35187 | AA40: -11507.10214 | AB40: -11972.10289 | AC40: -12450.63821 | AD40: -12924.03434 | AE40: -13410.61088 | AF40: -13930.43604 | AG40: -14464.8334 | AH40: -14993.49138 | AI40: -15532.82799 | AJ40: -16104.19188 | AK40: -16668.58047 | AL40: -17202.76266 | AM40: -17750.16633 | AN40: -18333.78282 | AO40: -18931.47292 | AP40: -19519.78217 | AQ40: -20121.88457 | AR40: -20762.71887 | AS40: -21407.74689 | AT40: -22025.24373 | AU40: -22591.7372 | AV40: -23103.37404 | AW40: -23623.32511 | AX40: -24151.56319 | AY40: -24688.04986 | AZ40: -25232.73476 | BA40: -25742.8804 | BB40: -26216.05711 | BC40: -26694.02445
B41: Opex | P41: =-P25 -> 932.0736336 | Q41: 2456.992216 | R41: 2315.458867 | S41: 2050.681802 | T41: 2514.753074 | U41: 1898.834423 | V41: 2185.829396 | W41: 2088.981309 | X41: 2229.544485 | Y41: 2305.871508 | Z41: 2645.867716 | AA41: 2554.261138 | AB41: 2732.339056 | AC41: 2839.84364 | AD41: 3247.029489 | AE41: 3169.441156 | AF41: 3398.76089 | AG41: 3551.235414 | AH41: 4045.000488 | AI41: 3995.04632 | AJ41: 4295.177389 | AK41: 4512.668115 | AL41: 5119.818401 | AM41: 5118.275049 | AN41: 5517.247925 | AO41: 5828.910976 | AP41: 6229.868684 | AQ41: 6665.080244 | AR41: 7137.766336 | AS41: 7651.460915 | AT41: 8210.042023 | AU41: 8817.765639 | AV41: 9479.302871 | AW41: 10199.78082 | AX41: 10984.82747 | AY41: 11840.62104 | AZ41: 12773.94413 | BA41: 13792.24335 | BB41: 14903.69468 | BC41: 16117.2754
B42: Movements in working capital | P42: =+P12 -> 0 | Q42: =+Q12 -> 0 | R42: 0 | S42: 0 | T42: 0 | U42: 0 | V42: 0 | W42: 0 | X42: 0 | Y42: 0 | Z42: 0 | AA42: 0 | AB42: 0 | AC42: 0 | AD42: 0 | AE42: 0 | AF42: 0 | AG42: 0 | AH42: 0 | AI42: 0 | AJ42: 0 | AK42: 0 | AL42: 0 | AM42: 0 | AN42: 0 | AO42: 0 | AP42: 0 | AQ42: 0 | AR42: 0 | AS42: 0 | AT42: 0 | AU42: 0 | AV42: 0 | AW42: 0 | AX42: 0 | AY42: 0 | AZ42: 0 | BA42: 0 | BB42: 0 | BC42: 0
B43: Investment | P43: =DAV!E13*P8/1000 -> 4895.442988 | Q43: =DAV!F13*Q8/1000 -> 14305.21304 | R43: =DAV!G13*R8/1000 -> 11221.82679 | S43: =DAV!H13*S8/1000 -> 8984.586585 | T43: =DAV!I13*T8/1000 -> 9838.147716 | U43: =DAV!J13*T8/1000 -> 7149.482912 | V43: =DAV!K13*U8/1000 -> 7258.667315 | W43: =DAV!L13*V8/1000 -> 7437.516176 | X43: =DAV!M13*W8/1000 -> 7869.667462 | Y43: =DAV!N13*X8/1000 -> 7722.744361 | Z43: =DAV!O13*Y8/1000 -> 6048.205475 | AA43: =DAV!P13*Z8/1000 -> 2186.466702 | AB43: =DAV!Q13*AA8/1000 -> 2735.268423 | AC43: =DAV!R13*AB8/1000 -> 2322.77648 | AD43: =DAV!S13*AC8/1000 -> 2482.364596 | AE43: =DAV!T13*AD8/1000 -> 2466.510785 | AF43: =DAV!U13*AE8/1000 -> 3086.946167 | AG43: =DAV!V13*AF8/1000 -> 2621.41949 | AH43: =DAV!W13*AG8/1000 -> 2832.654287 | AI43: =DAV!X13*AH8/1000 -> 3133.058621 | AJ43: =DAV!Y13*AI8/1000 -> 3867.584051 | AK43: =DAV!Z13*AJ8/1000 -> 6328.085042 | AL43: =DAV!AA13*AK8/1000 -> 5353.758343 | AM43: =DAV!AB13*AL8/1000 -> 4697.490924 | AN43: =DAV!AC13*AM8/1000 -> 5624.101319 | AO43: =DAV!AD13*AN8/1000 -> 4826.306091 | AP43: =DAV!AE13*AO8/1000 -> 5061.931751 | AQ43: =DAV!AF13*AP8/1000 -> 5080.922706 | AR43: =DAV!AG13*AQ8/1000 -> 5180.007576 | AS43: =DAV!AH13*AR8/1000 -> 5230.632148 | AT43: =DAV!AI13*AS8/1000 -> 3779.948106 | AU43: =DAV!AJ13*AT8/1000 -> 3815.416118 | AV43: =DAV!AK13*AU8/1000 -> 4077.967397 | AW43: =DAV!AL13*AV8/1000 -> 4053.278659 | AX43: =DAV!AM13*AW8/1000 -> 4204.365645 | AY43: =DAV!AN13*AX8/1000 -> 4305.61771 | AZ43: =DAV!AO13*AY8/1000 -> 4602.278051 | BA43: =DAV!AP13*AZ8/1000 -> 4574.415044 | BB43: =DAV!AQ13*BA8/1000 -> 4801.91761 | BC43: =DAV!AR13*BB8/1000 -> 5531.609892
B44: Tax (prior year) | P44: =O30 -> 0 | Q44: =P30 -> 0 | R44: 0 | S44: 0 | T44: 0 | U44: =T30 -> 0 | V44: =U30 -> 0 | W44: 0 | X44: 0 | Y44: 0 | Z44: 0 | AA44: 2.781573664 | AB44: 150.3706756 | AC44: 242.6114827 | AD44: 359.079532 | AE44: 408.510735 | AF44: 557.8387871 | AG44: 637.2346686 | AH44: 745.7721929 | AI44: 774.8349369 | AJ44: 909.2556067 | AK44: 962.5150427 | AL44: 975.0887573 | AM44: 924.5920955 | AN44: 1019.755495 | AO44: 1022.559431 | AP44: 1066.067004 | AQ44: 1087.083198 | AR44: 1104.972194 | AS44: 1122.465779 | AT44: 1132.792453 | AU44: 1163.271323 | AV44: 1174.183086 | AW44: 1155.822722 | AX44: 1126.148218 | AY44: 1079.985042 | AZ44: 1016.73042 | BA44: 930.1799729 | BB44: 816.9746042 | BC44: 668.5758873
B45: Dividends | P45: =P36 -> 0 | Q45: 0 | R45: 0 | S45: 0 | T45: 0 | U45: 667.1478234 | V45: 103.6391247 | W45: 106.8208459 | X45: 110.1002458 | Y45: 113.4803234 | Z45: 116.9641693 | AA45: 120.5549693 | AB45: 124.2560069 | AC45: 128.0706663 | AD45: 132.0024357 | AE45: 136.0549105 | AF45: 140.2317963 | AG45: 144.5369124 | AH45: 148.9741956 | AI45: 153.5477034 | AJ45: 158.2616179 | AK45: 163.1202496 | AL45: 168.1280412 | AM45: 173.2895721 | AN45: 178.609562 | AO45: 184.0928755 | AP45: 189.7445268 | AQ45: 195.5696838 | AR45: 201.5736731 | AS45: 207.7619848 | AT45: 214.1402778 | AU45: 220.7143843 | AV45: 227.4903159 | AW45: 234.4742686 | AX45: 241.6726286 | AY45: 249.0919783 | AZ45: 256.7391021 | BA45: 264.6209925 | BB45: 272.744857 | BC45: 281.1181241
B46: Interest | P46: =(P39+SUM(P40:P45)/2)*BM16 -> 285.9925062 | Q46: =(Q39+SUM(Q40:Q45)/2)*BN16 -> 713.4285081 | R46: =(R39+SUM(R40:R45)/2)*BO16 -> 1106.926402 | S46: =(S39+SUM(S40:S45)/2)*BP16 -> 1397.251748 | T46: =(T39+SUM(T40:T45)/2)*BQ16 -> 1701.1425 | U46: =(U39+SUM(U40:U45)/2)*Int_SGN -> 1923.200066 | V46: 2118.03735 | W46: 2327.627217 | X46: 2546.595627 | Y46: 2761.870889 | Z46: 2936.949507 | AA46: 2990.059862 | AB46: 3019.574111 | AC46: 3030.987552 | AD46: 3039.670825 | AE46: 3032.014364 | AF46: 3030.731611 | AG46: 3007.188039 | AH46: 3003.631616 | AI46: 2992.052544 | AJ46: 2997.349008 | AK46: 3064.70337 | AL46: 3131.910527 | AM46: 3160.155095 | AN46: 3207.950507 | AO46: 3234.425725 | AP46: 3257.439155 | AQ46: 3278.966896 | AR46: 3299.715103 | AS46: 3320.086697 | AT46: 3300.334829 | AU46: 3268.816519 | AV46: 3246.292993 | AW46: 3228.821838 | AX46: 3221.177228 | AY46: 3225.948642 | AZ46: 3250.96657 | BA46: 3293.7951 | BB46: 3363.619551 | BC46: 3481.230609
B47: Debt at the end of the year | P47: =SUM(P39:P46) -> 7926.064959 | Q47: 20147.39235 | R47: 25189.68522 | S47: 28964.05241 | T47: 35060.58 | U47: 38016.76045 | V47: 41347.38802 | W47: 45079.34109 | X47: 49224.9775 | Y47: 52973.47083 | Z47: 55394.76136 | AA47: 54231.67715 | AB47: 55006.3571 | AC47: 54882.3114 | AD47: 55156.3374 | AE47: 54745.69699 | AF47: 54962.72377 | AG47: 54127.67872 | AH47: 54203.88243 | AI47: 53853.38132 | AJ47: 54256.54218 | AK47: 56638.85135 | AL47: 57490.57793 | AM47: 57408.95953 | AN47: 58750.15908 | AO47: 58721.99119 | AP47: 59213.6744 | AQ47: 59567.51487 | AR47: 59944.29481 | AS47: 60307.89733 | AT47: 59181.26252 | AU47: 58631.46813 | AV47: 58413.00104 | AW47: 58158.94405 | AX47: 58204.50897 | AY47: 58487.25755 | AZ47: 59283.65252 | BA47: 60308.83458 | BB47: 62033.17569 | BC47: 64959.61403
B49: Average debt | P49: =AVERAGE(P47,P39) -> 5305.31586 | Q49: 13234.48516 | R49: 20534.08418 | S49: 25919.77655 | T49: 31557.11457 | U49: 36056.49175 | V49: 39709.33528 | W49: 43638.76282 | X49: 47744.02094 | Y49: 51780.03927 | Z49: 55062.44386 | AA49: 56058.16609 | AB49: 56611.50441 | AC49: 56825.4856 | AD49: 56988.28113 | AE49: 56844.73646 | AF49: 56820.68717 | AG49: 56379.28816 | AH49: 56312.61173 | AI49: 56095.52525 | AJ49: 56194.82429 | AK49: 57457.59567 | AL49: 58717.60722 | AM49: 59247.14133 | AN49: 60143.21809 | AO49: 60639.5801 | AP49: 61071.03992 | AQ49: 61474.64579 | AR49: 61863.6368 | AS49: 62245.56701 | AT49: 61875.25554 | AU49: 61284.34473 | AV49: 60862.06972 | AW49: 60534.51745 | AX49: 60391.19497 | AY49: 60480.65027 | AZ49: 60949.69076 | BA49: 61752.64755 | BB49: 63061.72859 | BC49: 65266.7213
B51: TRV at start of year (mid-year RPI) | P51: ='GD17 Pi''s Calc - 40 yrs'!C83*'SGN Financeability'!P8 -> 4130.102709 | Q51: ='GD17 Pi''s Calc - 40 yrs'!D83*'SGN Financeability'!Q8 -> 9725.504565 | R51: ='GD17 Pi''s Calc - 40 yrs'!E83*'SGN Financeability'!R8 -> 24428.43559 | S51: ='GD17 Pi''s Calc - 40 yrs'!F83*'SGN Financeability'!S8 -> 35193.078 | T51: ='GD17 Pi''s Calc - 40 yrs'!G83*'SGN Financeability'!T8 -> 43159.46021 | U51: ='GD17 Pi''s Calc - 40 yrs'!H83*'SGN Financeability'!U8 -> 52455.72777 | V51: ='GD17 Pi''s Calc - 40 yrs'!I83*'SGN Financeability'!V8 -> 58571.2039 | W51: ='GD17 Pi''s Calc - 40 yrs'!J83*'SGN Financeability'!W8 -> 64920.28394 | X51: ='GD17 Pi''s Calc - 40 yrs'!K83*'SGN Financeability'!X8 -> 71173.94519 | Y51: ='GD17 Pi''s Calc - 40 yrs'!L83*'SGN Financeability'!Y8 -> 77825.55031 | Z51: ='GD17 Pi''s Calc - 40 yrs'!M83*'SGN Financeability'!Z8 -> 84200.1944 | AA51: ='GD17 Pi''s Calc - 40 yrs'!N83*'SGN Financeability'!AA8 -> 89053.31545 | AB51: ='GD17 Pi''s Calc - 40 yrs'!O83*'SGN Financeability'!AB8 -> 89564.07957 | AC51: ='GD17 Pi''s Calc - 40 yrs'!P83*'SGN Financeability'!AC8 -> 90413.32276 | AD51: ='GD17 Pi''s Calc - 40 yrs'!Q83*'SGN Financeability'!AD8 -> 90492.65364 | AE51: ='GD17 Pi''s Calc - 40 yrs'!R83*'SGN Financeability'!AE8 -> 90682.73219 | AF51: ='GD17 Pi''s Calc - 40 yrs'!S83*'SGN Financeability'!AF8 -> 90274.84702 | AG51: ='GD17 Pi''s Calc - 40 yrs'!T83*'SGN Financeability'!AG8 -> 90201.38092 | AH51: ='GD17 Pi''s Calc - 40 yrs'!U83*'SGN Financeability'!AH8 -> 89878.98619 | AI51: ='GD17 Pi''s Calc - 40 yrs'!V83*'SGN Financeability'!AI8 -> 89750.26028 | AJ51: ='GD17 Pi''s Calc - 40 yrs'!W83*'SGN Financeability'!AJ8 -> 89435.5483 | AK51: ='GD17 Pi''s Calc - 40 yrs'!X83*'SGN Financeability'!AK8 -> 89655.90768 | AL51: ='GD17 Pi''s Calc - 40 yrs'!Y83*'SGN Financeability'!AL8 -> 92222.51772 | AM51: ='GD17 Pi''s Calc - 40 yrs'!Z83*'SGN Financeability'!AM8 -> 93977.4202 | AN51: ='GD17 Pi''s Calc - 40 yrs'!AA83*'SGN Financeability'!AN8 -> 94671.19553 | AO51: ='GD17 Pi''s Calc - 40 yrs'!AB83*'SGN Financeability'!AO8 -> 96241.79849 | AP51: ='GD17 Pi''s Calc - 40 yrs'!AC83*'SGN Financeability'!AP8 -> 96812.93146 | AQ51: ='GD17 Pi''s Calc - 40 yrs'!AD83*'SGN Financeability'!AQ8 -> 97510.42571 | AR51: ='GD17 Pi''s Calc - 40 yrs'!AE83*'SGN Financeability'!AR8 -> 98127.65968 | AS51: ='GD17 Pi''s Calc - 40 yrs'!AF83*'SGN Financeability'!AS8 -> 98743.44107 | AT51: ='GD17 Pi''s Calc - 40 yrs'!AG83*'SGN Financeability'!AT8 -> 99337.30547 | AU51: ='GD17 Pi''s Calc - 40 yrs'!AH83*'SGN Financeability'!AU8 -> 98364.95591 | AV51: ='GD17 Pi''s Calc - 40 yrs'!AI83*'SGN Financeability'!AV8 -> 97401.7514 | AW51: ='GD17 Pi''s Calc - 40 yrs'!AJ83*'SGN Financeability'!AW8 -> 96784.75516 | AX51: ='GD17 Pi''s Calc - 40 yrs'!AK83*'SGN Financeability'!AX8 -> 96273.66303 | AY51: ='GD17 Pi''s Calc - 40 yrs'!AL83*'SGN Financeability'!AY8 -> 96113.91231 | AZ51: ='GD17 Pi''s Calc - 40 yrs'!AM83*'SGN Financeability'!AZ8 -> 96331.89077 | BA51: ='GD17 Pi''s Calc - 40 yrs'!AN83*'SGN Financeability'!BA8 -> 97225.32387 | BB51: ='GD17 Pi''s Calc - 40 yrs'!AO83*'SGN Financeability'!BB8 -> 98600.43307 | BC51: ='GD17 Pi''s Calc - 40 yrs'!AP83*'SGN Financeability'!BC8 -> 100882.8132
B52: TRV at end of year (mid-year RPI) | P52: ='GD17 Pi''s Calc - 40 yrs'!D83*'SGN Financeability'!P8 -> 9435.824746 | Q52: ='GD17 Pi''s Calc - 40 yrs'!E83*'SGN Financeability'!Q8 -> 23700.82041 | R52: ='GD17 Pi''s Calc - 40 yrs'!F83*'SGN Financeability'!R8 -> 34144.83167 | S52: ='GD17 Pi''s Calc - 40 yrs'!G83*'SGN Financeability'!S8 -> 41873.93054 | T52: ='GD17 Pi''s Calc - 40 yrs'!H83*'SGN Financeability'!T8 -> 50893.30336 | U52: ='GD17 Pi''s Calc - 40 yrs'!I83*'SGN Financeability'!U8 -> 56826.62647 | V52: ='GD17 Pi''s Calc - 40 yrs'!J83*'SGN Financeability'!V8 -> 62986.59546 | W52: ='GD17 Pi''s Calc - 40 yrs'!K83*'SGN Financeability'!W8 -> 69053.98776 | X52: ='GD17 Pi''s Calc - 40 yrs'!L83*'SGN Financeability'!X8 -> 75507.47096 | Y52: ='GD17 Pi''s Calc - 40 yrs'!M83*'SGN Financeability'!Y8 -> 81692.24255 | Z52: ='GD17 Pi''s Calc - 40 yrs'!N83*'SGN Financeability'!Z8 -> 86400.81056 | AA52: ='GD17 Pi''s Calc - 40 yrs'!O83*'SGN Financeability'!AA8 -> 86896.36128 | AB52: ='GD17 Pi''s Calc - 40 yrs'!P83*'SGN Financeability'!AB8 -> 87720.30926 | AC52: ='GD17 Pi''s Calc - 40 yrs'!Q83*'SGN Financeability'!AC8 -> 87797.27723 | AD52: ='GD17 Pi''s Calc - 40 yrs'!R83*'SGN Financeability'!AD8 -> 87981.69418 | AE52: ='GD17 Pi''s Calc - 40 yrs'!S83*'SGN Financeability'!AE8 -> 87585.9581 | AF52: ='GD17 Pi''s Calc - 40 yrs'!T83*'SGN Financeability'!AF8 -> 87514.68024 | AG52: ='GD17 Pi''s Calc - 40 yrs'!U83*'SGN Financeability'!AG8 -> 87201.88823 | AH52: ='GD17 Pi''s Calc - 40 yrs'!V83*'SGN Financeability'!AH8 -> 87076.99649 | AI52: ='GD17 Pi''s Calc - 40 yrs'!W83*'SGN Financeability'!AI8 -> 86771.65838 | AJ52: ='GD17 Pi''s Calc - 40 yrs'!X83*'SGN Financeability'!AJ8 -> 86985.45424 | AK52: ='GD17 Pi''s Calc - 40 yrs'!Y83*'SGN Financeability'!AK8 -> 89475.6163 | AL52: ='GD17 Pi''s Calc - 40 yrs'!Z83*'SGN Financeability'!AL8 -> 91178.24799 | AM52: ='GD17 Pi''s Calc - 40 yrs'!AA83*'SGN Financeability'!AM8 -> 91851.35882 | AN52: ='GD17 Pi''s Calc - 40 yrs'!AB83*'SGN Financeability'!AN8 -> 93375.18045 | AO52: ='GD17 Pi''s Calc - 40 yrs'!AC83*'SGN Financeability'!AO8 -> 93929.30189 | AP52: ='GD17 Pi''s Calc - 40 yrs'!AD83*'SGN Financeability'!AP8 -> 94606.02087 | AQ52: ='GD17 Pi''s Calc - 40 yrs'!AE83*'SGN Financeability'!AQ8 -> 95204.87017 | AR52: ='GD17 Pi''s Calc - 40 yrs'!AF83*'SGN Financeability'!AR8 -> 95802.31015 | AS52: ='GD17 Pi''s Calc - 40 yrs'!AG83*'SGN Financeability'!AS8 -> 96378.48595 | AT52: ='GD17 Pi''s Calc - 40 yrs'!AH83*'SGN Financeability'!AT8 -> 95435.09839 | AU52: ='GD17 Pi''s Calc - 40 yrs'!AI83*'SGN Financeability'!AU8 -> 94500.58349 | AV52: ='GD17 Pi''s Calc - 40 yrs'!AJ83*'SGN Financeability'!AV8 -> 93901.96484 | AW52: ='GD17 Pi''s Calc - 40 yrs'!AK83*'SGN Financeability'!AW8 -> 93406.09588 | AX52: ='GD17 Pi''s Calc - 40 yrs'!AL83*'SGN Financeability'!AX8 -> 93251.10343 | AY52: ='GD17 Pi''s Calc - 40 yrs'!AM83*'SGN Financeability'!AY8 -> 93462.58928 | AZ52: ='GD17 Pi''s Calc - 40 yrs'!AN83*'SGN Financeability'!AZ8 -> 94329.41096 | BA52: ='GD17 Pi''s Calc - 40 yrs'!AO83*'SGN Financeability'!BA8 -> 95663.56172 | BB52: ='GD17 Pi''s Calc - 40 yrs'!AP83*'SGN Financeability'!BB8 -> 97877.95982 | BC52: ='GD17 Pi''s Calc - 40 yrs'!AQ83*'SGN Financeability'!BC8 -> 101642.8803
B53: Average TRV | P53: =AVERAGE(P51:P52) -> 6782.963727 | Q53: 16713.16249 | R53: 29286.63363 | S53: 38533.50427 | T53: 47026.38178 | U53: 54641.17712 | V53: 60778.89968 | W53: 66987.13585 | X53: 73340.70807 | Y53: 79758.89643 | Z53: 85300.50248 | AA53: 87974.83836 | AB53: 88642.19441 | AC53: 89105.29999 | AD53: 89237.17391 | AE53: 89134.34515 | AF53: 88894.76363 | AG53: 88701.63457 | AH53: 88477.99134 | AI53: 88260.95933 | AJ53: 88210.50127 | AK53: 89565.76199 | AL53: 91700.38286 | AM53: 92914.38951 | AN53: 94023.18799 | AO53: 95085.55019 | AP53: 95709.47616 | AQ53: 96357.64794 | AR53: 96964.98492 | AS53: 97560.96351 | AT53: 97386.20193 | AU53: 96432.7697 | AV53: 95651.85812 | AW53: 95095.42552 | AX53: 94762.38323 | AY53: 94788.25079 | AZ53: 95330.65086 | BA53: 96444.4428 | BB53: 98239.19644 | BC53: 101262.8467
B54: PM-FFO as % TRV | P54: =P16/P53 -> 0.0516317584 | Q54: 0.0516317584 | R54: 0.0516317584 | S54: 0.0516317584 | T54: 0.0516317584 | U54: 0.0516317584 | V54: 0.0516317584 | W54: 0.0516317584 | X54: 0.0516317584 | Y54: 0.0516317584 | Z54: 0.0516317584 | AA54: 0.0516317584 | AB54: 0.0516317584 | AC54: 0.0516317584 | AD54: 0.0516317584 | AE54: 0.0516317584 | AF54: 0.0516317584 | AG54: 0.05876112934 | AH54: 0.05907553204 | AI54: 0.0603883789 | AJ54: 0.06090659814 | AK54: 0.06088558394 | AL54: 0.06020210199 | AM54: 0.06096069763 | AN54: 0.06087603179 | AO54: 0.06116167652 | AP54: 0.06128619729 | AQ54: 0.06137905892 | AR54: 0.06147135686 | AS54: 0.06150122025 | AT54: 0.06178495508 | AU54: 0.06198152102 | AV54: 0.06190286027 | AW54: 0.06169771748 | AX54: 0.06131901978 | AY54: 0.06074914955 | AZ54: 0.05992556196 | BA54: 0.05883206066 | BB54: 0.05741651907 | BC54: 0.05565107038
B55: Gearing ratio | P55: =P49/P53 -> 0.7821530637 | Q55: 0.7918600187 | R55: 0.7011418395 | S55: 0.6726555771 | T55: 0.6710512987 | U55: 0.6598776537 | V55: 0.6533408055 | W55: 0.6514498981 | X55: 0.6509893645 | Y55: 0.6492070676 | Z55: 0.6455113658 | AA55: 0.6372068098 | AB55: 0.6386518834 | AC55: 0.6377340697 | AD55: 0.6386159337 | AE55: 0.6377422347 | AF55: 0.639190486 | AG55: 0.6356059664 | AH55: 0.6364589755 | AI55: 0.635564418 | AJ55: 0.6370536782 | AK55: 0.6415129441 | AL55: 0.6403201971 | AM55: 0.6376530228 | AN55: 0.6396636763 | AO55: 0.6377370692 | AP55: 0.6380877043 | AQ55: 0.6379840844 | AR55: 0.6379997569 | AS55: 0.638017141 | AT55: 0.6353595716 | AU55: 0.635513684 | AV55: 0.6362873751 | AW55: 0.6365660296 | AX55: 0.6372907995 | AY55: 0.6380606222 | AZ55: 0.6393504105 | BA55: 0.6402924394 | BB55: 0.6419202404 | BC55: 0.6445278146
B57: Other relevant metrics
B58: FFO/Net Debt | P58: =SUM(P10+P11+P15-P46)/P49 -> -0.06522801274 | Q58: =SUM(Q10+Q11+Q15-Q46)/Q49 -> 0.03622344548 | R58: 0.09304650206 | S58: 0.1117307039 | T58: 0.08971722829
B59: FFO/Interest Cover | P59: =SUM((P10+P11+P15-P46)+P46)/P46 -> -0.2100149583 | Q59: =SUM((Q10+Q11+Q15-Q46)+Q46)/Q46 -> 1.671964529 | R59: 2.726062999 | S59: 3.07266506 | T59: 2.664303168
B60: RCF/Capex | P60: =SUM((P10+P11+P15-P46)-P36)/P43 -> -0.07068925352 | Q60: =SUM((Q10+Q11+Q15-Q46)-Q36)/Q43 -> 0.03351216444 | R60: 0.170259686 | S60: 0.3223336823 | T60: 0.2877794615 | U60: 0.4516334326 | V60: 0.5486629512 | W60: 0.6126184523 | X60: 0.6236291885 | Y60: 0.6909307089 | Z60: 0.8901103806 | AA60: 2.671994119 | AB60: 2.228641864 | AC60: 2.777596729 | AD60: 2.620618906 | AE60: 2.867654377 | AF60: 2.384463916 | AG60: 2.960942751 | AH60: 2.75214844 | AI60: 2.678590618 | AJ60: 2.237418438 | AK60: 1.410867375 | AL60: 1.640512165 | AM60: 1.979449618 | AN60: 1.676707849 | AO60: 2.006512468 | AP60: 1.944461183 | AQ60: 1.964656485 | AR60: 1.954372385 | AS60: 1.955487789 | AT60: 2.725097358 | AU60: 2.695496465 | AV60: 2.489055667 | AW60: 2.457331217 | AX60: 2.308049937 | AY60: 2.17678132 | AZ60: 1.944924851 | BA60: 1.834599807 | BB60: 1.598527638 | BC60: 1.231901824
B63: Calander year corporation tax rate | M63: 0.2 | N63: 0.2 | O63: 0.1925 | P63: 0.19 | Q63: 0.19 | R63: 0.175 | S63: 0.17 | T63: 0.17

Sheet Building block
A2: Building Block Method
A4: Year: | C4: 2018 | D4: =C4+1 -> 2019 | E4: =D4+1 -> 2020 | F4: =E4+1 -> 2021 | G4: =F4+1 -> 2022 | H4: =G4+1 -> 2023 | I4: =H4+1 -> 2024 | J4: 2025 | K4: 2026 | L4: 2027 | M4: 2028 | N4: 2029 | O4: 2030 | P4: 2031 | Q4: 2032 | R4: 2033 | S4: 2034 | T4: 2035 | U4: 2036 | V4: 2037 | W4: 2038 | X4: 2039 | Y4: 2040 | Z4: 2041 | AA4: 2042 | AB4: 2043 | AC4: 2044 | AD4: 2045 | AE4: 2046 | AF4: 2047 | AG4: 2048 | AH4: 2049 | AI4: =AH4+1 -> 2050 | AJ4: 2051 | AK4: 2052 | AL4: 2053 | AM4: 2054 | AN4: 2055 | AO4: 2056 | AP4: 2057
A5: Opening: | C5: 0 | D5: =+C9 -> -4600.759407 | E5: =+D9 -> -16655.71712 | F5: =+E9 -> -24708.43844 | G5: =+F9 -> -29995.73965 | H5: =+G9 -> -35950.29389 | I5: =+H9 -> -39092.52307 | J5: -42153.50499 | K5: -44894.80106 | L5: -47672.81386 | M5: -50021.67942 | N5: -51160.83013 | O5: -49412.58191 | P5: -47884.53871 | Q5: -45900.10083 | R5: -44004.93824 | S5: -41795.81653 | T5: -39804.59948 | U5: -37705.78761 | V5: -35733.70882 | W5: -33688.91995 | X5: -31922.40195 | Y5: -31250.36989 | Z5: -30148.10585 | AA5: -28539.55114 | AB5: -27288.48976 | AC5: -25586.39379 | AD5: -23918.89673 | AE5: -22198.8675 | AF5: -20456.30233 | AG5: -18681.14301 | AH5: -16324.32204 | AI5: -13973.93658 | AJ5: -11737.60265 | AK5: -9522.705692 | AL5: -7398.884888 | AM5: -5359.972057 | AN5: -3479.477014 | AO5: -1680.009889 | AP5: -63.95499902
A6: Cshflow: | C6: ='GD17 Pi''s Calc - 40 yrs'!D41 -> -4481.986758 | D6: ='GD17 Pi''s Calc - 40 yrs'!E41 -> -11506.20308 | E6: ='GD17 Pi''s Calc - 40 yrs'!F41 -> -6984.86928 | F6: ='GD17 Pi''s Calc - 40 yrs'!G41 -> -3875.064753 | G6: ='GD17 Pi''s Calc - 40 yrs'!H41 -> -4252.099402 | H6: ='GD17 Pi''s Calc - 40 yrs'!I41 -> -1204.932882 | I6: ='GD17 Pi''s Calc - 40 yrs'!J41 -> -963.5442811 | J6: ='GD17 Pi''s Calc - 40 yrs'!K41 -> -494.0675165 | K6: ='GD17 Pi''s Calc - 40 yrs'!L41 -> -388.2984282 | L6: ='GD17 Pi''s Calc - 40 yrs'!M41 -> 173.2036719 | M6: ='GD17 Pi''s Calc - 40 yrs'!N41 -> 1472.96474 | N6: ='GD17 Pi''s Calc - 40 yrs'!O41 -> 4344.639269 | O6: ='GD17 Pi''s Calc - 40 yrs'!P41 -> 4039.853916 | P6: ='GD17 Pi''s Calc - 40 yrs'!Q41 -> 4405.570809 | Q6: ='GD17 Pi''s Calc - 40 yrs'!R41 -> 4216.140212 | R6: ='GD17 Pi''s Calc - 40 yrs'!S41 -> 4424.143632 | S6: ='GD17 Pi''s Calc - 40 yrs'!T41 -> 4097.803538 | T6: ='GD17 Pi''s Calc - 40 yrs'!U41 -> 4099.810659 | U6: ='GD17 Pi''s Calc - 40 yrs'!V41 -> 3867.983955 | V6: ='GD17 Pi''s Calc - 40 yrs'!W41 -> 3836.995071 | W6: ='GD17 Pi''s Calc - 40 yrs'!X41 -> 3460.331962 | X6: ='GD17 Pi''s Calc - 40 yrs'!Y41 -> 2302.892709 | Y6: ='GD17 Pi''s Calc - 40 yrs'!Z41 -> 2687.319667 | Z6: ='GD17 Pi''s Calc - 40 yrs'!AA41 -> 3123.628176 | AA6: ='GD17 Pi''s Calc - 40 yrs'!AB41 -> 2692.311337 | AB6: ='GD17 Pi''s Calc - 40 yrs'!AC41 -> 3067.107573 | AC6: ='GD17 Pi''s Calc - 40 yrs'!AD41 -> 2945.519668 | AD6: ='GD17 Pi''s Calc - 40 yrs'!AE41 -> 2910.599857 | AE6: ='GD17 Pi''s Calc - 40 yrs'!AF41 -> 2843.745885 | AF6: ='GD17 Pi''s Calc - 40 yrs'!AG41 -> 2785.526879 | AG6: ='GD17 Pi''s Calc - 40 yrs'!AH41 -> 3260.517822 | AH6: ='GD17 Pi''s Calc - 40 yrs'!AI41 -> 3132.561648 | AI6: ='GD17 Pi''s Calc - 40 yrs'!AJ41 -> 2900.099926 | AJ6: ='GD17 Pi''s Calc - 40 yrs'!AK41 -> 2763.750507 | AK6: ='GD17 Pi''s Calc - 40 yrs'!AL41 -> 2560.666542 | AL6: ='GD17 Pi''s Calc - 40 yrs'!AM41 -> 2368.293941 | AM6: ='GD17 Pi''s Calc - 40 yrs'!AN41 -> 2108.693192 | AN6: ='GD17 Pi''s Calc - 40 yrs'!AO41 -> 1932.663815 | AO6: ='GD17 Pi''s Calc - 40 yrs'!AP41 -> 1661.076877 | AP6: ='GD17 Pi''s Calc - 40 yrs'!AQ41 -> 1242.70284
A7: Return on in year cashflow: | C7: =C6*'GD17 Pi''s Calc - 40 yrs'!D6*'GD17 Pi''s Calc - 40 yrs'!$B7 -> -118.7726491 | D7: =D6*'GD17 Pi''s Calc - 40 yrs'!E6*'GD17 Pi''s Calc - 40 yrs'!$B7 -> -304.9143817 | E7: =E6*'GD17 Pi''s Calc - 40 yrs'!F6*'GD17 Pi''s Calc - 40 yrs'!$B7 -> -185.0990359 | F7: =F6*'GD17 Pi''s Calc - 40 yrs'!G6*'GD17 Pi''s Calc - 40 yrs'!$B7 -> -102.689216 | G7: =G6*'GD17 Pi''s Calc - 40 yrs'!H6*'GD17 Pi''s Calc - 40 yrs'!$B7 -> -112.6806341 | H7: =H6*'GD17 Pi''s Calc - 40 yrs'!I6*'GD17 Pi''s Calc - 40 yrs'!$B7 -> -31.93072138 | I7: =I6*'GD17 Pi''s Calc - 40 yrs'!J6*'GD17 Pi''s Calc - 40 yrs'!$B7 -> -25.53392345 | J7: =J6*'GD17 Pi''s Calc - 40 yrs'!K6*'GD17 Pi''s Calc - 40 yrs'!$B7 -> -13.09278919 | K7: =K6*'GD17 Pi''s Calc - 40 yrs'!L6*'GD17 Pi''s Calc - 40 yrs'!$B7 -> -10.28990835 | L7: =L6*'GD17 Pi''s Calc - 40 yrs'!M6*'GD17 Pi''s Calc - 40 yrs'!$B7 -> 4.589897305 | M7: =M6*'GD17 Pi''s Calc - 40 yrs'!N6*'GD17 Pi''s Calc - 40 yrs'!$B7 -> 39.0335656 | N7: =N6*'GD17 Pi''s Calc - 40 yrs'!O6*'GD17 Pi''s Calc - 40 yrs'!$B7 -> 115.1329406 | O7: =O6*'GD17 Pi''s Calc - 40 yrs'!P6*'GD17 Pi''s Calc - 40 yrs'!$B7 -> 107.0561288 | P7: =P6*'GD17 Pi''s Calc - 40 yrs'!Q6*'GD17 Pi''s Calc - 40 yrs'!$B7 -> 116.7476264 | Q7: =Q6*'GD17 Pi''s Calc - 40 yrs'!R6*'GD17 Pi''s Calc - 40 yrs'!$B7 -> 111.7277156 | R7: =R6*'GD17 Pi''s Calc - 40 yrs'!S6*'GD17 Pi''s Calc - 40 yrs'!$B7 -> 117.2398062 | S7: =S6*'GD17 Pi''s Calc - 40 yrs'!T6*'GD17 Pi''s Calc - 40 yrs'!$B7 -> 108.5917938 | T7: =T6*'GD17 Pi''s Calc - 40 yrs'!U6*'GD17 Pi''s Calc - 40 yrs'!$B7 -> 108.6449825 | U7: =U6*'GD17 Pi''s Calc - 40 yrs'!V6*'GD17 Pi''s Calc - 40 yrs'!$B7 -> 102.5015748 | V7: =V6*'GD17 Pi''s Calc - 40 yrs'!W6*'GD17 Pi''s Calc - 40 yrs'!$B7 -> 101.6803694 | W7: =W6*'GD17 Pi''s Calc - 40 yrs'!X6*'GD17 Pi''s Calc - 40 yrs'!$B7 -> 91.698797 | X7: =X6*'GD17 Pi''s Calc - 40 yrs'!Y6*'GD17 Pi''s Calc - 40 yrs'!$B7 -> 61.0266568 | Y7: =Y6*'GD17 Pi''s Calc - 40 yrs'!Z6*'GD17 Pi''s Calc - 40 yrs'!$B7 -> 71.21397118 | Z7: =Z6*'GD17 Pi''s Calc - 40 yrs'!AA6*'GD17 Pi''s Calc - 40 yrs'!$B7 -> 82.77614667 | AA7: =AA6*'GD17 Pi''s Calc - 40 yrs'!AB6*'GD17 Pi''s Calc - 40 yrs'!$B7 -> 71.34625043 | AB7: =AB6*'GD17 Pi''s Calc - 40 yrs'!AC6*'GD17 Pi''s Calc - 40 yrs'!$B7 -> 81.2783507 | AC7: =AC6*'GD17 Pi''s Calc - 40 yrs'!AD6*'GD17 Pi''s Calc - 40 yrs'!$B7 -> 78.05627119 | AD7: =AD6*'GD17 Pi''s Calc - 40 yrs'!AE6*'GD17 Pi''s Calc - 40 yrs'!$B7 -> 77.13089621 | AE7: =AE6*'GD17 Pi''s Calc - 40 yrs'!AF6*'GD17 Pi''s Calc - 40 yrs'!$B7 -> 75.35926596 | AF7: =AF6*'GD17 Pi''s Calc - 40 yrs'!AG6*'GD17 Pi''s Calc - 40 yrs'!$B7 -> 73.81646228 | AG7: =AG6*'GD17 Pi''s Calc - 40 yrs'!AH6*'GD17 Pi''s Calc - 40 yrs'!$B7 -> 86.40372228 | AH7: =AH6*'GD17 Pi''s Calc - 40 yrs'!AI6*'GD17 Pi''s Calc - 40 yrs'!$B7 -> 83.01288366 | AI7: =AI6*'GD17 Pi''s Calc - 40 yrs'!AJ6*'GD17 Pi''s Calc - 40 yrs'!$B7 -> 76.85264803 | AJ7: =AJ6*'GD17 Pi''s Calc - 40 yrs'!AK6*'GD17 Pi''s Calc - 40 yrs'!$B7 -> 73.23938843 | AK7: =AK6*'GD17 Pi''s Calc - 40 yrs'!AL6*'GD17 Pi''s Calc - 40 yrs'!$B7 -> 67.85766335 | AL7: =AL6*'GD17 Pi''s Calc - 40 yrs'!AM6*'GD17 Pi''s Calc - 40 yrs'!$B7 -> 62.75978945 | AM7: =AM6*'GD17 Pi''s Calc - 40 yrs'!AN6*'GD17 Pi''s Calc - 40 yrs'!$B7 -> 55.88036959 | AN7: =AN6*'GD17 Pi''s Calc - 40 yrs'!AO6*'GD17 Pi''s Calc - 40 yrs'!$B7 -> 51.21559111 | AO7: =AO6*'GD17 Pi''s Calc - 40 yrs'!AP6*'GD17 Pi''s Calc - 40 yrs'!$B7 -> 44.01853723 | AP7: =AP6*'GD17 Pi''s Calc - 40 yrs'!AQ6*'GD17 Pi''s Calc - 40 yrs'!$B7 -> 32.93162527
A8: Return on in year opening: | C8: =+C5*'GD17 Pi''s Calc - 40 yrs'!D6 -> 0 | D8: =+D5*'GD17 Pi''s Calc - 40 yrs'!E6 -> -243.8402486 | E8: =+E5*'GD17 Pi''s Calc - 40 yrs'!F6 -> -882.7530074 | F8: =+F5*'GD17 Pi''s Calc - 40 yrs'!G6 -> -1309.547238 | G8: =+G5*'GD17 Pi''s Calc - 40 yrs'!H6 -> -1589.774201 | H8: =+H5*'GD17 Pi''s Calc - 40 yrs'!I6 -> -1905.365576 | I8: =+I5*'GD17 Pi''s Calc - 40 yrs'!J6 -> -2071.903723 | J8: =+J5*'GD17 Pi''s Calc - 40 yrs'!K6 -> -2234.135765 | K8: =+K5*'GD17 Pi''s Calc - 40 yrs'!L6 -> -2379.424456 | L8: =+L5*'GD17 Pi''s Calc - 40 yrs'!M6 -> -2526.659134 | M8: =+M5*'GD17 Pi''s Calc - 40 yrs'!N6 -> -2651.149009 | N8: =+N5*'GD17 Pi''s Calc - 40 yrs'!O6 -> -2711.523997 | O8: =+O5*'GD17 Pi''s Calc - 40 yrs'!P6 -> -2618.866841 | P8: =+P5*'GD17 Pi''s Calc - 40 yrs'!Q6 -> -2537.880552 | Q8: =+Q5*'GD17 Pi''s Calc - 40 yrs'!R6 -> -2432.705344 | R8: =+R5*'GD17 Pi''s Calc - 40 yrs'!S6 -> -2332.261727 | S8: =+S5*'GD17 Pi''s Calc - 40 yrs'!T6 -> -2215.178276 | T8: =+T5*'GD17 Pi''s Calc - 40 yrs'!U6 -> -2109.643772 | U8: =+U5*'GD17 Pi''s Calc - 40 yrs'!V6 -> -1998.406743 | V8: =+V5*'GD17 Pi''s Calc - 40 yrs'!W6 -> -1893.886568 | W8: =+W5*'GD17 Pi''s Calc - 40 yrs'!X6 -> -1785.512757 | X8: =+X5*'GD17 Pi''s Calc - 40 yrs'!Y6 -> -1691.887303 | Y8: =+Y5*'GD17 Pi''s Calc - 40 yrs'!Z6 -> -1656.269604 | Z8: =+Z5*'GD17 Pi''s Calc - 40 yrs'!AA6 -> -1597.84961 | AA8: =+AA5*'GD17 Pi''s Calc - 40 yrs'!AB6 -> -1512.59621 | AB8: =+AB5*'GD17 Pi''s Calc - 40 yrs'!AC6 -> -1446.289957 | AC8: =+AC5*'GD17 Pi''s Calc - 40 yrs'!AD6 -> -1356.078871 | AD8: =+AD5*'GD17 Pi''s Calc - 40 yrs'!AE6 -> -1267.701527 | AE8: =+AE5*'GD17 Pi''s Calc - 40 yrs'!AF6 -> -1176.539978 | AF8: =+AF5*'GD17 Pi''s Calc - 40 yrs'!AG6 -> -1084.184023 | AG8: =+AG5*'GD17 Pi''s Calc - 40 yrs'!AH6 -> -990.1005795 | AH8: =+AH5*'GD17 Pi''s Calc - 40 yrs'!AI6 -> -865.1890684 | AI8: =+AI5*'GD17 Pi''s Calc - 40 yrs'!AJ6 -> -740.6186388 | AJ8: =+AJ5*'GD17 Pi''s Calc - 40 yrs'!AK6 -> -622.0929403 | AK8: =+AK5*'GD17 Pi''s Calc - 40 yrs'!AL6 -> -504.7034017 | AL8: =+AL5*'GD17 Pi''s Calc - 40 yrs'!AM6 -> -392.1408991 | AM8: =+AM5*'GD17 Pi''s Calc - 40 yrs'!AN6 -> -284.078519 | AN8: =+AN5*'GD17 Pi''s Calc - 40 yrs'!AO6 -> -184.4122817 | AO8: =+AO5*'GD17 Pi''s Calc - 40 yrs'!AP6 -> -89.04052411 | AP8: =+AP5*'GD17 Pi''s Calc - 40 yrs'!AQ6 -> -3.389614948
A9: Closing: | C9: =SUM(C5:C8) -> -4600.759407 | D9: -16655.71712 | E9: -24708.43844 | F9: -29995.73965 | G9: -35950.29389 | H9: -39092.52307 | I9: -42153.50499 | J9: -44894.80106 | K9: -47672.81386 | L9: -50021.67942 | M9: -51160.83013 | N9: -49412.58191 | O9: -47884.53871 | P9: -45900.10083 | Q9: -44004.93824 | R9: -41795.81653 | S9: -39804.59948 | T9: -37705.78761 | U9: -35733.70882 | V9: -33688.91995 | W9: -31922.40195 | X9: -31250.36989 | Y9: -30148.10585 | Z9: -28539.55114 | AA9: -27288.48976 | AB9: -25586.39379 | AC9: -23918.89673 | AD9: -22198.8675 | AE9: -20456.30233 | AF9: -18681.14301 | AG9: -16324.32204 | AH9: -13973.93658 | AI9: -11737.60265 | AJ9: -9522.705692 | AK9: -7398.884888 | AL9: -5359.972057 | AM9: -3479.477014 | AN9: -1680.009889 | AO9: -63.95499902 | AP9: 1208.289852

Sheet UR Tax Calculation
A1: Assumptions:
A3: Taxable losses for 2014-17 as per worksheet 1.3 of business plan template: | B3: £
A4: 2014 | B4: =0 -> 0
A5: 2015 | B5: -656393
A6: 2016 | B6: -1753310
A7: 2017 | B7: -1629065
A9: Taxable losses as per business plan template: | B9: =SUM(B4:B8) -> -4038768
A11: Financial Year: | G11: 14/15 | H11: 15/16 | I11: 16/17 | J11: 17/18 | K11: 18/19 | L11: 19/20 | M11: 20/21 | N11: 21/22 | O11: 22/23 | P11: 23/24 | Q11: 24/25 | R11: 25/26 | S11: 26/27 | T11: 27/28 | U11: 28/29 | V11: 29/30 | W11: 30/31 | X11: 31/32 | Y11: 32/33 | Z11: 33/34 | AA11: 34/35 | AB11: 35/36 | AC11: 36/37 | AD11: 37/38 | AE11: 38/39 | AF11: 39/40 | AG11: 40/41 | AH11: 41/42 | AI11: 42/43 | AJ11: 43/44 | AK11: 44/45 | AL11: 45/46 | AM11: 46/47 | AN11: 47/48 | AO11: 48/49 | AP11: 49/50 | AQ11: 50/51 | AR11: 51/52 | AS11: 52/53 | AT11: 53/54 | AU11: 54/55 | AV11: 55/56 | AW11: 56/57 | AX11: 57/58
A12: Financial Year Corporation Tax Rate: | F12: % | G12: 0.2 | H12: 0.2 | I12: 0.2 | J12: 0.19 | K12: =+J12 -> 0.19 | L12: 0.19 | M12: 0.17 | N12: 0.17 | O12: 0.17 | P12: 0.17 | Q12: 0.17 | R12: 0.17 | S12: 0.17 | T12: 0.17 | U12: 0.17 | V12: 0.17 | W12: 0.17 | X12: 0.17 | Y12: 0.17 | Z12: 0.17 | AA12: 0.17 | AB12: 0.17 | AC12: 0.17 | AD12: 0.17 | AE12: 0.17 | AF12: 0.17 | AG12: 0.17 | AH12: 0.17 | AI12: 0.17 | AJ12: 0.17 | AK12: 0.17 | AL12: 0.17 | AM12: 0.17 | AN12: 0.17 | AO12: 0.17 | AP12: 0.17 | AQ12: 0.17 | AR12: 0.17 | AS12: 0.17 | AT12: 0.17 | AU12: 0.17 | AV12: 0.17 | AW12: 0.17 | AX12: 0.17
G14: Pre GD17 Period | K14: GD17 Price Control Period | P14: Post GD17 Period
A15: Tax
A16: £000's
A18: Regulatory Tax
A20: Calendar Year Corporation Tax Rate: | F20: % | G20: 0.2 | H20: =+G12*0.25+H12*9/12 -> 0.2 | I20: 0.2 | J20: =+I12*0.25+J12*9/12 -> 0.1925 | K20: 0.19 | L20: 0.19 | M20: 0.175 | N20: 0.17 | O20: 0.17 | P20: 0.17 | Q20: 0.17 | R20: 0.17 | S20: 0.17 | T20: 0.17 | U20: 0.17 | V20: 0.17 | W20: 0.17 | X20: 0.17 | Y20: 0.17 | Z20: 0.17 | AA20: 0.17 | AB20: 0.17 | AC20: 0.17 | AD20: 0.17 | AE20: 0.17 | AF20: 0.17 | AG20: 0.17 | AH20: 0.17 | AI20: 0.17 | AJ20: 0.17 | AK20: 0.17 | AL20: 0.17 | AM20: 0.17 | AN20: 0.17 | AO20: 0.17 | AP20: 0.17 | AQ20: 0.17 | AR20: 0.17 | AS20: 0.17 | AT20: 0.17 | AU20: 0.17 | AV20: 0.17 | AW20: 0.17 | AX20: 0.17
A21: General pool capital allowance rate: | F21: % | G21: 0.18 | H21: 0.18 | I21: 0.18 | J21: 0.18 | K21: 0.18 | L21: 0.18 | M21: 0.18 | N21: 0.18 | O21: 0.18 | P21: 0.18 | Q21: 0.18 | R21: 0.18 | S21: 0.18 | T21: 0.18 | U21: 0.18 | V21: 0.18 | W21: 0.18 | X21: 0.18 | Y21: 0.18 | Z21: 0.18 | AA21: 0.18 | AB21: 0.18 | AC21: 0.18 | AD21: 0.18 | AE21: 0.18 | AF21: 0.18 | AG21: 0.18 | AH21: 0.18 | AI21: 0.18 | AJ21: 0.18 | AK21: 0.18 | AL21: 0.18 | AM21: 0.18 | AN21: 0.18 | AO21: 0.18 | AP21: 0.18 | AQ21: 0.18 | AR21: 0.18 | AS21: 0.18 | AT21: 0.18 | AU21: 0.18 | AV21: 0.18 | AW21: 0.18 | AX21: 0.18
A22: Special rates capital allowance rate: | F22: % | G22: 0.08 | H22: 0.08 | I22: 0.08 | J22: 0.08 | K22: 0.08 | L22: 0.08 | M22: 0.08 | N22: 0.08 | O22: 0.08 | P22: 0.08 | Q22: 0.08 | R22: 0.08 | S22: 0.08 | T22: 0.08 | U22: 0.08 | V22: 0.08 | W22: 0.08 | X22: 0.08 | Y22: 0.08 | Z22: 0.08 | AA22: 0.08 | AB22: 0.08 | AC22: 0.08 | AD22: 0.08 | AE22: 0.08 | AF22: 0.08 | AG22: 0.08 | AH22: 0.08 | AI22: 0.08 | AJ22: 0.08 | AK22: 0.08 | AL22: 0.08 | AM22: 0.08 | AN22: 0.08 | AO22: 0.08 | AP22: 0.08 | AQ22: 0.08 | AR22: 0.08 | AS22: 0.08 | AT22: 0.08 | AU22: 0.08 | AV22: 0.08 | AW22: 0.08 | AX22: 0.08
A24: Year: | G24: 2014 | H24: =G24+1 -> 2015 | I24: =H24+1 -> 2016 | J24: 2017 | K24: 2018 | L24: 2019 | M24: 2020 | N24: 2021 | O24: 2022 | P24: 2023 | Q24: 2024 | R24: 2025 | S24: 2026 | T24: 2027 | U24: 2028 | V24: 2029 | W24: 2030 | X24: 2031 | Y24: 2032 | Z24: 2033 | AA24: 2034 | AB24: 2035 | AC24: 2036 | AD24: 2037 | AE24: 2038 | AF24: 2039 | AG24: 2040 | AH24: 2041 | AI24: 2042 | AJ24: 2043 | AK24: 2044 | AL24: 2045 | AM24: 2046 | AN24: 2047 | AO24: 2048 | AP24: 2049 | AQ24: 2050 | AR24: 2051 | AS24: 2052 | AT24: 2053 | AU24: 2054 | AV24: 2055 | AW24: 2056 | AX24: 2057
A26: RPI Factor | G26: ='SGN Financeability'!L8 -> 1 | H26: ='SGN Financeability'!M8 -> 1.009765625 | I26: ='SGN Financeability'!N8 -> 1.04076543 | J26: ='SGN Financeability'!O8 -> 1.072716928 | K26: ='SGN Financeability'!P8 -> 1.105649338 | L26: ='SGN Financeability'!Q8 -> 1.139592773 | M26: ='SGN Financeability'!R8 -> 1.174578271 | N26: ='SGN Financeability'!S8 -> 1.210637824 | O26: ='SGN Financeability'!T8 -> 1.247804405 | P26: ='SGN Financeability'!U8 -> 1.286112 | Q26: ='SGN Financeability'!V8 -> 1.325595639 | R26: ='SGN Financeability'!W8 -> 1.366291425 | S26: ='SGN Financeability'!X8 -> 1.408236571 | T26: ='SGN Financeability'!Y8 -> 1.451469434 | U26: ='SGN Financeability'!Z8 -> 1.496029546 | V26: ='SGN Financeability'!AA8 -> 1.541957653 | W26: ='SGN Financeability'!AB8 -> 1.589295753 | X26: ='SGN Financeability'!AC8 -> 1.638087132 | Y26: ='SGN Financeability'!AD8 -> 1.688376407 | Z26: ='SGN Financeability'!AE8 -> 1.740209563 | AA26: ='SGN Financeability'!AF8 -> 1.793633997 | AB26: ='SGN Financeability'!AG8 -> 1.84869856 | AC26: ='SGN Financeability'!AH8 -> 1.905453606 | AD26: ='SGN Financeability'!AI8 -> 1.963951032 | AE26: ='SGN Financeability'!AJ8 -> 2.024244329 | AF26: ='SGN Financeability'!AK8 -> 2.08638863 | AG26: ='SGN Financeability'!AL8 -> 2.15044076 | AH26: ='SGN Financeability'!AM8 -> 2.216459292 | AI26: ='SGN Financeability'!AN8 -> 2.284504592 | AJ26: ='SGN Financeability'!AO8 -> 2.354638883 | AK26: ='SGN Financeability'!AP8 -> 2.426926297 | AL26: ='SGN Financeability'!AQ8 -> 2.501432934 | AM26: ='SGN Financeability'!AR8 -> 2.578226925 | AN26: ='SGN Financeability'!AS8 -> 2.657378492 | AO26: ='SGN Financeability'!AT8 -> 2.738960011 | AP26: ='SGN Financeability'!AU8 -> 2.823046084 | AQ26: ='SGN Financeability'!AV8 -> 2.909713599 | AR26: ='SGN Financeability'!AW8 -> 2.999041806 | AS26: ='SGN Financeability'!AX8 -> 3.091112389 | AT26: ='SGN Financeability'!AY8 -> 3.18600954 | AU26: ='SGN Financeability'!AZ8 -> 3.283820033 | AV26: ='SGN Financeability'!BA8 -> 3.384633308 | AW26: ='SGN Financeability'!BB8 -> 3.48854155 | AX26: ='SGN Financeability'!BC8 -> 3.595639776
A28: Tax Base
A30: Revenue: | F30: £ nominal | G30: ='SGN Financeability'!L24*1000 -> 0 | H30: ='SGN Financeability'!M24*1000 -> 0 | I30: ='SGN Financeability'!N24*1000 -> 0 | J30: ='SGN Financeability'!O24*1000 -> 0 | K30: ='SGN Financeability'!P24*1000 -> 872010.9293 | L30: ='SGN Financeability'!Q24*1000 -> 3649819.376 | M30: ='SGN Financeability'!R10*1000 -> 5333009.975 | N30: ='SGN Financeability'!S10*1000 -> 6343968.427 | O30: ='SGN Financeability'!T10*1000 -> 7047112.426 | P30: ='SGN Financeability'!U10*1000 -> 7718127.822 | Q30: ='SGN Financeability'!V10*1000 -> 8390067.701 | R30: ='SGN Financeability'!W10*1000 -> 9079789.02 | S30: ='SGN Financeability'!X10*1000 -> 9793994.691 | T30: ='SGN Financeability'!Y10*1000 -> 10517103.96 | U30: ='SGN Financeability'!Z10*1000 -> 11083351.87 | V30: ='SGN Financeability'!AA10*1000 -> 11507102.14 | W30: ='SGN Financeability'!AB10*1000 -> 11972102.89 | X30: ='SGN Financeability'!AC10*1000 -> 12450638.21 | Y30: ='SGN Financeability'!AD10*1000 -> 12924034.34 | Z30: ='SGN Financeability'!AE10*1000 -> 13410610.88 | AA30: ='SGN Financeability'!AF10*1000 -> 13930436.04 | AB30: ='SGN Financeability'!AG10*1000 -> 14464833.4 | AC30: ='SGN Financeability'!AH10*1000 -> 14993491.38 | AD30: ='SGN Financeability'!AI10*1000 -> 15532827.99 | AE30: ='SGN Financeability'!AJ10*1000 -> 16104191.88 | AF30: ='SGN Financeability'!AK10*1000 -> 16668580.47 | AG30: ='SGN Financeability'!AL10*1000 -> 17202762.66 | AH30: ='SGN Financeability'!AM10*1000 -> 17750166.33 | AI30: ='SGN Financeability'!AN10*1000 -> 18333782.82 | AJ30: ='SGN Financeability'!AO10*1000 -> 18931472.92 | AK30: ='SGN Financeability'!AP10*1000 -> 19519782.17 | AL30: ='SGN Financeability'!AQ10*1000 -> 20121884.57 | AM30: ='SGN Financeability'!AR10*1000 -> 20762718.87 | AN30: ='SGN Financeability'!AS10*1000 -> 21407746.89 | AO30: ='SGN Financeability'!AT10*1000 -> 22025243.73 | AP30: ='SGN Financeability'!AU10*1000 -> 22591737.2 | AQ30: ='SGN Financeability'!AV10*1000 -> 23103374.04 | AR30: ='SGN Financeability'!AW10*1000 -> 23623325.11 | AS30: ='SGN Financeability'!AX10*1000 -> 24151563.19 | AT30: ='SGN Financeability'!AY10*1000 -> 24688049.86 | AU30: ='SGN Financeability'!AZ10*1000 -> 25232734.76 | AV30: ='SGN Financeability'!BA10*1000 -> 25742880.4 | AW30: ='SGN Financeability'!BB10*1000 -> 26216057.11 | AX30: ='SGN Financeability'!BC10*1000 -> 26694024.45
A31: Less opex: | F31: £ nominal | G31: ='SGN Financeability'!L25*1000 -> 0 | H31: ='SGN Financeability'!M25*1000 -> 0 | I31: ='SGN Financeability'!N25*1000 -> 0 | J31: ='SGN Financeability'!O25*1000 -> 0 | K31: ='SGN Financeability'!P25*1000 -> -932073.6336 | L31: ='SGN Financeability'!Q25*1000 -> -2456992.216 | M31: ='SGN Financeability'!R25*1000 -> -2315458.867 | N31: ='SGN Financeability'!S25*1000 -> -2050681.802 | O31: ='SGN Financeability'!T25*1000 -> -2514753.074 | P31: ='SGN Financeability'!U25*1000 -> -1898834.423 | Q31: ='SGN Financeability'!V25*1000 -> -2185829.396 | R31: ='SGN Financeability'!W25*1000 -> -2088981.309 | S31: ='SGN Financeability'!X25*1000 -> -2229544.485 | T31: ='SGN Financeability'!Y25*1000 -> -2305871.508 | U31: ='SGN Financeability'!Z25*1000 -> -2645867.716 | V31: ='SGN Financeability'!AA25*1000 -> -2554261.138 | W31: ='SGN Financeability'!AB25*1000 -> -2732339.056 | X31: ='SGN Financeability'!AC25*1000 -> -2839843.64 | Y31: ='SGN Financeability'!AD25*1000 -> -3247029.489 | Z31: ='SGN Financeability'!AE25*1000 -> -3169441.156 | AA31: ='SGN Financeability'!AF25*1000 -> -3398760.89 | AB31: ='SGN Financeability'!AG25*1000 -> -3551235.414 | AC31: ='SGN Financeability'!AH25*1000 -> -4045000.488 | AD31: ='SGN Financeability'!AI25*1000 -> -3995046.32 | AE31: ='SGN Financeability'!AJ25*1000 -> -4295177.389 | AF31: ='SGN Financeability'!AK25*1000 -> -4512668.115 | AG31: ='SGN Financeability'!AL25*1000 -> -5119818.401 | AH31: ='SGN Financeability'!AM25*1000 -> -5118275.049 | AI31: ='SGN Financeability'!AN25*1000 -> -5517247.925 | AJ31: ='SGN Financeability'!AO25*1000 -> -5828910.976 | AK31: ='SGN Financeability'!AP25*1000 -> -6229868.684 | AL31: ='SGN Financeability'!AQ25*1000 -> -6665080.244 | AM31: ='SGN Financeability'!AR25*1000 -> -7137766.336 | AN31: ='SGN Financeability'!AS25*1000 -> -7651460.915 | AO31: ='SGN Financeability'!AT25*1000 -> -8210042.023 | AP31: ='SGN Financeability'!AU25*1000 -> -8817765.639 | AQ31: ='SGN Financeability'!AV25*1000 -> -9479302.871 | AR31: ='SGN Financeability'!AW25*1000 -> -10199780.82 | AS31: ='SGN Financeability'!AX25*1000 -> -10984827.47 | AT31: ='SGN Financeability'!AY25*1000 -> -11840621.04 | AU31: ='SGN Financeability'!AZ25*1000 -> -12773944.13 | AV31: ='SGN Financeability'!BA25*1000 -> -13792243.35 | AW31: ='SGN Financeability'!BB25*1000 -> -14903694.68 | AX31: ='SGN Financeability'!BC25*1000 -> -16117275.4
A32: Less interest: | F32: £ nominal | G32: ='SGN Financeability'!L26 -> 0 | H32: ='SGN Financeability'!M26 -> 0 | I32: ='SGN Financeability'!N26 -> 0 | J32: ='SGN Financeability'!O26 -> 0 | K32: ='SGN Financeability'!P26*1000 -> -285992.5062 | L32: ='SGN Financeability'!Q26*1000 -> -713428.5081 | M32: ='SGN Financeability'!R26*1000 -> -1106926.402 | N32: ='SGN Financeability'!S26*1000 -> -1397251.748 | O32: ='SGN Financeability'!T26*1000 -> -1701142.5 | P32: ='SGN Financeability'!U26*1000 -> -1923200.066 | Q32: ='SGN Financeability'!V26*1000 -> -2118037.35 | R32: ='SGN Financeability'!W26*1000 -> -2327627.217 | S32: ='SGN Financeability'!X26*1000 -> -2546595.627 | T32: ='SGN Financeability'!Y26*1000 -> -2761870.889 | U32: ='SGN Financeability'!Z26*1000 -> -2936949.507 | V32: ='SGN Financeability'!AA26*1000 -> -2990059.862 | W32: ='SGN Financeability'!AB26*1000 -> -3019574.111 | X32: ='SGN Financeability'!AC26*1000 -> -3030987.552 | Y32: ='SGN Financeability'!AD26*1000 -> -3039670.825 | Z32: ='SGN Financeability'!AE26*1000 -> -3032014.364 | AA32: ='SGN Financeability'!AF26*1000 -> -3030731.611 | AB32: ='SGN Financeability'!AG26*1000 -> -3007188.039 | AC32: ='SGN Financeability'!AH26*1000 -> -3003631.616 | AD32: ='SGN Financeability'!AI26*1000 -> -2992052.544 | AE32: ='SGN Financeability'!AJ26*1000 -> -2997349.008 | AF32: ='SGN Financeability'!AK26*1000 -> -3064703.37 | AG32: ='SGN Financeability'!AL26*1000 -> -3131910.527 | AH32: ='SGN Financeability'!AM26*1000 -> -3160155.095 | AI32: ='SGN Financeability'!AN26*1000 -> -3207950.507 | AJ32: ='SGN Financeability'!AO26*1000 -> -3234425.725 | AK32: ='SGN Financeability'!AP26*1000 -> -3257439.155 | AL32: ='SGN Financeability'!AQ26*1000 -> -3278966.896 | AM32: ='SGN Financeability'!AR26*1000 -> -3299715.103 | AN32: ='SGN Financeability'!AS26*1000 -> -3320086.697 | AO32: ='SGN Financeability'!AT26*1000 -> -3300334.829 | AP32: ='SGN Financeability'!AU26*1000 -> -3268816.519 | AQ32: ='SGN Financeability'!AV26*1000 -> -3246292.993 | AR32: ='SGN Financeability'!AW26*1000 -> -3228821.838 | AS32: ='SGN Financeability'!AX26*1000 -> -3221177.228 | AT32: ='SGN Financeability'!AY26*1000 -> -3225948.642 | AU32: ='SGN Financeability'!AZ26*1000 -> -3250966.57 | AV32: ='SGN Financeability'!BA26*1000 -> -3293795.1 | AW32: ='SGN Financeability'!BB26*1000 -> -3363619.551 | AX32: ='SGN Financeability'!BC26*1000 -> -3481230.609
A33: Less capital allowances: | F33: £ nominal | G33: ='SGN Financeability'!L27*1000 -> 0 | H33: ='SGN Financeability'!M27*1000 -> 0 | I33: ='SGN Financeability'!N27*1000 -> -7254.131062 | J33: ='SGN Financeability'!O27*1000 -> -785182.6606 | K33: ='SGN Financeability'!P27*1000 -> -1183240.643 | L33: ='SGN Financeability'!Q27*1000 -> -2320132.625 | M33: ='SGN Financeability'!R27*1000 -> -3004389.531 | N33: ='SGN Financeability'!S27*1000 -> -3518570.265 | O33: ='SGN Financeability'!T27*1000 -> -4098110.948 | P33: ='SGN Financeability'!U27*1000 -> -4379527.204 | Q33: ='SGN Financeability'!V27*1000 -> -4644859.166 | R33: ='SGN Financeability'!W27*1000 -> -4903355.185 | S33: ='SGN Financeability'!X27*1000 -> -5177910.371 | T33: ='SGN Financeability'!Y27*1000 -> -5416156.846 | U33: ='SGN Financeability'!Z27*1000 -> -5486626.778 | V33: ='SGN Financeability'!AA27*1000 -> -5210927.76 | W33: ='SGN Financeability'!AB27*1000 -> -5007132.309 | X33: ='SGN Financeability'!AC27*1000 -> -4784409.36 | Y33: ='SGN Financeability'!AD27*1000 -> -4594780.353 | Z33: ='SGN Financeability'!AE27*1000 -> -4419961.423 | AA33: ='SGN Financeability'!AF27*1000 -> -4314770.199 | AB33: ='SGN Financeability'!AG27*1000 -> -4177548.984 | AC33: ='SGN Financeability'!AH27*1000 -> -4070684.588 | AD33: ='SGN Financeability'!AI27*1000 -> -3999451.097 | AE33: ='SGN Financeability'!AJ27*1000 -> -3999090.272 | AF33: ='SGN Financeability'!AK27*1000 -> -4215765.195 | AG33: ='SGN Financeability'!AL27*1000 -> -4328073.256 | AH33: ='SGN Financeability'!AM27*1000 -> -4372958.713 | AI33: ='SGN Financeability'!AN27*1000 -> -4495787.233 | AJ33: ='SGN Financeability'!AO27*1000 -> -4537801.204 | AK33: ='SGN Financeability'!AP27*1000 -> -4597058.338 | AL33: ='SGN Financeability'!AQ27*1000 -> -4652976.457 | AM33: ='SGN Financeability'!AR27*1000 -> -4712908.536 | AN33: ='SGN Financeability'!AS27*1000 -> -4772237.013 | AO33: ='SGN Financeability'!AT27*1000 -> -4698510.263 | AP33: ='SGN Financeability'!AU27*1000 -> -4634239.609 | AQ33: ='SGN Financeability'!AV27*1000 -> -4598664.56 | AR33: ='SGN Financeability'!AW27*1000 -> -4563981.359 | AS33: ='SGN Financeability'!AX27*1000 -> -4545633.277 | AT33: ='SGN Financeability'!AY27*1000 -> -4537828.081 | AU33: ='SGN Financeability'!AZ27*1000 -> -4556924.192 | AV33: ='SGN Financeability'!BA27*1000 -> -4571968.926 | AW33: ='SGN Financeability'!BB27*1000 -> -4605863.435 | AX33: ='SGN Financeability'!BC27*1000 -> -4701364.16
A36: Profits attributable to corporation tax: | G36: =SUM(G30:G35) -> 0 | H36: =SUM(H30:H33) -> 0 | I36: =SUM(I30:I33) -> -7254.131062 | J36: =SUM(J30:J33) -> -785182.6606 | K36: =SUM(K30:K33) -> -1529295.853 | L36: =SUM(L30:L33) -> -1840733.974 | M36: =SUM(M30:M33) -> -1093764.825 | N36: -622535.3865 | O36: -1266894.096 | P36: -483433.8719 | Q36: -558658.211 | R36: -240174.6904 | S36: -160055.7914 | T36: 33204.71305 | U36: 13907.86832 | V36: 751853.3779 | W36: 1213057.414 | X36: 1795397.66 | Y36: =SUM(Y30:Y33) -> 2042553.675 | Z36: 2789193.935 | AA36: 3186173.343 | AB36: 3728860.964 | AC36: 3874174.684 | AD36: 4546278.034 | AE36: 4812575.214 | AF36: 4875443.787 | AG36: 4622960.477 | AH36: 5098777.475 | AI36: 5112797.156 | AJ36: 5330335.018 | AK36: 5435415.991 | AL36: 5524860.972 | AM36: 5612328.896 | AN36: 5663962.267 | AO36: 5816356.613 | AP36: 5870915.431 | AQ36: 5779113.612 | AR36: 5630741.089 | AS36: 5399925.212 | AT36: 5083652.099 | AU36: 4650899.864 | AV36: 4084873.021 | AW36: 3342879.436 | AX36: 2394154.282
A39: Regulatory tax losses:
A41: Taxable losses brought forward: | F41: £ nominal | G41: 0 | H41: 0 | I41: =H44 -> -656393 | J41: =I44 -> -2409703 | K41: -4038768 | L41: -5568063.853 | M41: -7408797.827 | N41: -8502562.652 | O41: -9125098.038 | P41: -10391992.13 | Q41: -10875426.01 | R41: -11434084.22 | S41: -11674258.91 | T41: -11834314.7 | U41: -11801109.99 | V41: -11787202.12 | W41: -11035348.74 | X41: -9822291.326 | Y41: -8026893.666 | Z41: -5984339.991 | AA41: -3195146.055 | AB41: -8972.712575 | AC41: 0 | AD41: 0 | AE41: 0 | AF41: 0 | AG41: 0 | AH41: 0 | AI41: 0 | AJ41: 0 | AK41: 0 | AL41: 0 | AM41: 0 | AN41: 0 | AO41: 0 | AP41: 0 | AQ41: 0 | AR41: 0 | AS41: 0 | AT41: 0 | AU41: 0 | AV41: 0 | AW41: 0 | AX41: 0
A42: In year taxable loss: | F42: £ nominal | G42: =B4 -> 0 | H42: =B5 -> -656393 | I42: =B6 -> -1753310 | J42: =B7 -> -1629065 | K42: =IF(K36<=0,K36,0) -> -1529295.853 | L42: =IF(L36<=0,L36,0) -> -1840733.974 | M42: -1093764.825 | N42: -622535.3865 | O42: -1266894.096 | P42: -483433.8719 | Q42: -558658.211 | R42: -240174.6904 | S42: -160055.7914 | T42: 0 | U42: 0 | V42: 0 | W42: 0 | X42: 0 | Y42: 0 | Z42: 0 | AA42: 0 | AB42: 0 | AC42: 0 | AD42: 0 | AE42: 0 | AF42: 0 | AG42: 0 | AH42: 0 | AI42: 0 | AJ42: 0 | AK42: 0 | AL42: 0 | AM42: 0 | AN42: 0 | AO42: 0 | AP42: 0 | AQ42: 0 | AR42: 0 | AS42: 0 | AT42: 0 | AU42: 0 | AV42: 0 | AW42: 0 | AX42: 0
A43: Profits attributable to corporation tax: | F43: £ nominal | H43: 0 | I43: 0 | J43: 0 | K43: =IF(K36 >=0, MIN(K36,-K41-K42), 0) -> 0 | L43: =IF(L36 >=0, MIN(L36,-L41-L42), 0) -> 0 | M43: 0 | N43: 0 | O43: 0 | P43: 0 | Q43: 0 | R43: 0 | S43: =IF(S36 >=0, MIN(S36,-S41-S42), 0) -> 0 | T43: 33204.71305 | U43: 13907.86832 | V43: 751853.3779 | W43: 1213057.414 | X43: 1795397.66 | Y43: 2042553.675 | Z43: 2789193.935 | AA43: 3186173.343 | AB43: 8972.712575 | AC43: 0 | AD43: 0 | AE43: 0 | AF43: 0 | AG43: 0 | AH43: 0 | AI43: 0 | AJ43: 0 | AK43: 0 | AL43: 0 | AM43: 0 | AN43: 0 | AO43: 0 | AP43: 0 | AQ43: 0 | AR43: 0 | AS43: 0 | AT43: 0 | AU43: 0 | AV43: 0 | AW43: 0 | AX43: 0
A44: Losses balance carried forward: | F44: £ nominal | G44: =SUM(G41:G43) -> 0 | H44: -656393 | I44: -2409703 | J44: -4038768 | K44: -5568063.853 | L44: -7408797.827 | M44: -8502562.652 | N44: -9125098.038 | O44: -10391992.13 | P44: -10875426.01 | Q44: -11434084.22 | R44: -11674258.91 | S44: -11834314.7 | T44: -11801109.99 | U44: -11787202.12 | V44: -11035348.74 | W44: -9822291.326 | X44: -8026893.666 | Y44: -5984339.991 | Z44: -3195146.055 | AA44: -8972.712575 | AB44: 0 | AC44: 0 | AD44: 0 | AE44: 0 | AF44: 0 | AG44: 0 | AH44: 0 | AI44: 0 | AJ44: 0 | AK44: 0 | AL44: 0 | AM44: 0 | AN44: 0 | AO44: 0 | AP44: 0 | AQ44: 0 | AR44: 0 | AS44: 0 | AT44: 0 | AU44: 0 | AV44: 0 | AW44: 0 | AX44: 0
A47: Tax Payable:
A49: Profits attributable to corporation tax (after taxable losses): | F49: £ nominal | G49: =MAX(G36-G43,0) -> 0 | H49: 0 | I49: 0 | J49: 0 | K49: 0 | L49: 0 | M49: 0 | N49: 0 | O49: 0 | P49: 0 | Q49: 0 | R49: 0 | S49: 0 | T49: 0 | U49: 0 | V49: 0 | W49: 0 | X49: 0 | Y49: 0 | Z49: =MAX(Z36-Z43,0) -> 0 | AA49: 0 | AB49: 3719888.252 | AC49: 3874174.684 | AD49: 4546278.034 | AE49: 4812575.214 | AF49: 4875443.787 | AG49: 4622960.477 | AH49: 5098777.475 | AI49: 5112797.156 | AJ49: 5330335.018 | AK49: 5435415.991 | AL49: 5524860.972 | AM49: 5612328.896 | AN49: 5663962.267 | AO49: 5816356.613 | AP49: 5870915.431 | AQ49: 5779113.612 | AR49: 5630741.089 | AS49: 5399925.212 | AT49: 5083652.099 | AU49: 4650899.864 | AV49: 4084873.021 | AW49: 3342879.436 | AX49: 2394154.282
A50: Corporation tax rate: | F50: % | G50: =G20 -> 0.2 | H50: 0.2 | I50: 0.2 | J50: 0.1925 | K50: 0.19 | L50: 0.19 | M50: 0.175 | N50: 0.17 | O50: 0.17 | P50: 0.17 | Q50: 0.17 | R50: 0.17 | S50: 0.17 | T50: 0.17 | U50: 0.17 | V50: 0.17 | W50: 0.17 | X50: 0.17 | Y50: 0.17 | Z50: 0.17 | AA50: 0.17 | AB50: 0.17 | AC50: 0.17 | AD50: 0.17 | AE50: 0.17 | AF50: 0.17 | AG50: 0.17 | AH50: 0.17 | AI50: 0.17 | AJ50: 0.17 | AK50: 0.17 | AL50: 0.17 | AM50: 0.17 | AN50: 0.17 | AO50: 0.17 | AP50: 0.17 | AQ50: 0.17 | AR50: 0.17 | AS50: 0.17 | AT50: 0.17 | AU50: 0.17 | AV50: 0.17 | AW50: 0.17 | AX50: 0.17
A51: Corporation tax charge (after losses): | F51: £ nominal | G51: =G49*G50 -> 0 | H51: =H49*H50 -> 0 | I51: =I49*I50 -> 0 | J51: 0 | K51: 0 | L51: 0 | M51: 0 | N51: 0 | O51: 0 | P51: 0 | Q51: 0 | R51: 0 | S51: 0 | T51: 0 | U51: 0 | V51: 0 | W51: 0 | X51: 0 | Y51: 0 | Z51: =Z49*Z50 -> 0 | AA51: 0 | AB51: 632381.0028 | AC51: 658609.6963 | AD51: 772867.2657 | AE51: 818137.7863 | AF51: 828825.4437 | AG51: 785903.2811 | AH51: 866792.1708 | AI51: 869175.5166 | AJ51: 906156.953 | AK51: 924020.7184 | AL51: 939226.3652 | AM51: 954095.9123 | AN51: 962873.5853 | AO51: 988780.6242 | AP51: 998055.6233 | AQ51: 982449.3141 | AR51: 957225.9851 | AS51: 917987.286 | AT51: 864220.8568 | AU51: 790652.977 | AV51: 694428.4136 | AW51: 568289.5042 | AX51: 407006.228
A54: Tax payable converted to 2014 average price (£) basis: | F54: £ GD14 Average | G54: =-G51/G26/1000 -> 0 | H54: =-H51/H26/1000 -> 0 | I54: 0 | J54: 0 | K54: 0 | L54: 0 | M54: 0 | N54: 0 | O54: 0 | P54: 0 | Q54: 0 | R54: 0 | S54: 0 | T54: 0 | U54: 0 | V54: 0 | W54: 0 | X54: 0 | Y54: 0 | Z54: =-Z51/Z26/1000 -> 0 | AA54: 0 | AB54: -342.0682075 | AC54: -345.6445721 | AD54: -393.5267495 | AE54: -404.1694843 | AF54: -397.2536238 | AG54: -365.4614885 | AH54: -391.0706477 | AI54: -380.4656465 | AJ54: -384.8390339 | AK54: -380.7370334 | AL54: -375.4753335 | AM54: -370.0589358 | AN54: -362.3396473 | AO54: -361.0058636 | AP54: -353.5385515 | AQ54: -337.6446791 | AR54: -319.177273 | AS54: -296.9763536 | AT54: -271.2549495 | AU54: -240.7723228 | AV54: -205.1709448 | AW54: -162.9017445 | AX54: -113.1943836
A56: Backsolve to 0 by running Macro Ctrl + w

Sheet Capital Allowances
A1: SGN Capital Allowance Calculation
G3: GD 17 | L3: Assumed Average of GD17 period for post 2022
A4: Assumptions: | D4: POOL SPLIT: | E4: =E20 -> 2016 | F4: =F20 -> 2017 | G4: 2018 | H4: 2019 | I4: 2020 | J4: 2021 | K4: 2022 | L4: 2023 | M4: 2024 | N4: 2025 | O4: 2026 | P4: 2027 | Q4: 2028 | R4: 2029 | S4: 2030 | T4: 2031 | U4: 2032 | V4: 2033 | W4: 2034 | X4: 2035 | Y4: 2036 | Z4: 2037 | AA4: 2038 | AB4: 2039 | AC4: 2040 | AD4: 2041 | AE4: 2042 | AF4: 2043 | AG4: 2044 | AH4: 2045 | AI4: 2046 | AJ4: 2047 | AK4: 2048 | AL4: 2049 | AM4: 2050 | AN4: 2051 | AO4: 2052 | AP4: 2053 | AQ4: 2054 | AR4: 2055 | AS4: 2056 | AT4: 2057
A5: Price control inflation rate: | B5: 0.0308 | D5: Main: | E5: 0.5789301861 | F5: 0.02011474161 | G5: 0.06457897009 | H5: 0.06529271791 | I5: 0.04108489053 | J5: 0.04366375875 | K5: 0.05320258273 | L5: 0.053564584 | M5: 0.053564584 | N5: 0.053564584 | O5: 0.053564584 | P5: 0.053564584 | Q5: 0.053564584 | R5: 0.053564584 | S5: 0.053564584 | T5: 0.053564584 | U5: 0.053564584 | V5: 0.053564584 | W5: 0.053564584 | X5: 0.053564584 | Y5: 0.053564584 | Z5: 0.053564584 | AA5: 0.053564584 | AB5: 0.053564584 | AC5: 0.053564584 | AD5: 0.053564584 | AE5: 0.053564584 | AF5: 0.053564584 | AG5: 0.053564584 | AH5: 0.053564584 | AI5: 0.053564584 | AJ5: 0.053564584 | AK5: 0.053564584 | AL5: 0.053564584 | AM5: 0.053564584 | AN5: 0.053564584 | AO5: 0.053564584 | AP5: 0.053564584 | AQ5: 0.053564584 | AR5: 0.053564584 | AS5: 0.053564584 | AT5: 0.053564584
A6: Forward inflation rate thereafter: | B6: 0.02 | D6: Special: | E6: 0.4210698139 | F6: 0.9798852584 | G6: 0.9354210299 | H6: 0.9347072821 | I6: 0.9589151095 | J6: 0.9563362413 | K6: 0.9467974173 | L6: 0.946435416 | M6: 0.946435416 | N6: 0.946435416 | O6: 0.946435416 | P6: 0.946435416 | Q6: 0.946435416 | R6: 0.946435416 | S6: 0.946435416 | T6: 0.946435416 | U6: 0.946435416 | V6: 0.946435416 | W6: 0.946435416 | X6: 0.946435416 | Y6: 0.946435416 | Z6: 0.946435416 | AA6: 0.946435416 | AB6: 0.946435416 | AC6: 0.946435416 | AD6: 0.946435416 | AE6: 0.946435416 | AF6: 0.946435416 | AG6: 0.946435416 | AH6: 0.946435416 | AI6: 0.946435416 | AJ6: 0.946435416 | AK6: 0.946435416 | AL6: 0.946435416 | AM6: 0.946435416 | AN6: 0.946435416 | AO6: 0.946435416 | AP6: 0.946435416 | AQ6: 0.946435416 | AR6: 0.946435416 | AS6: 0.946435416 | AT6: 0.946435416
A8: CA Rates
A9: General Pool: | B9: 0.18
A10: Special Pool: | B10: 0.08
A14: Capex - Subtotals in Av £2014 - UR Draft Det
A17: Inflation Assumption: | G17: =B5 -> 0.0308 | H17: =G17 -> 0.0308 | I17: =H17 -> 0.0308 | J17: =I17 -> 0.0308 | K17: 0.0308 | L17: 0.02 | M17: 0.02 | N17: 0.02 | O17: 0.02 | P17: 0.02 | Q17: 0.02 | R17: 0.02 | S17: 0.02 | T17: 0.02 | U17: 0.02 | V17: 0.02 | W17: 0.02 | X17: 0.02 | Y17: 0.02 | Z17: 0.02 | AA17: 0.02 | AB17: 0.02 | AC17: 0.02 | AD17: 0.02 | AE17: 0.02 | AF17: 0.02 | AG17: 0.02 | AH17: 0.02 | AI17: 0.02 | AJ17: 0.02 | AK17: 0.02 | AL17: 0.02 | AM17: 0.02 | AN17: 0.02 | AO17: 0.02 | AP17: 0.02 | AQ17: 0.02 | AR17: 0.02 | AS17: 0.02 | AT17: 0.02
A18: RPI Factor: | B18: 1.04 | C18: 1 | D18: 1.009765625 | E18: 1.040866406 | F18: 1.072925092 | G18: 1.105971184 | H18: 1.140035097 | I18: 1.175148178 | J18: 1.211342742 | K18: 1.248652098 | L18: 1.287110583 | M18: 1.326753589 | N18: 1.367617599 | O18: 1.409740221 | P18: 1.45316022 | Q18: 1.497917555 | R18: 1.544053416 | S18: 1.591610261 | T18: 1.640631857 | U18: 1.691163318 | V18: 1.743251148 | W18: 1.796943284 | X18: 1.852289137 | Y18: 1.909339642 | Z18: 1.968147303 | AA18: 2.02876624 | AB18: 2.09125224 | AC18: 2.155662809 | AD18: 2.222057224 | AE18: 2.290496586 | AF18: 2.361043881 | AG18: 2.433764033 | AH18: 2.508723965 | AI18: 2.585992663 | AJ18: 2.665641237 | AK18: 2.747742987 | AL18: 2.832373471 | AM18: 2.919610574 | AN18: 3.00953458 | AO18: 3.102228245 | AP18: 3.197776875 | AQ18: 3.296268402 | AR18: 3.397793469 | AS18: 3.502445508 | AT18: 3.61032083
A20: YEAR: | C20: 2014 | D20: 2015 | E20: =D20+1 -> 2016 | F20: =E20+1 -> 2017 | G20: =F20+1 -> 2018 | H20: 2019 | I20: 2020 | J20: 2021 | K20: 2022 | L20: 2023 | M20: 2024 | N20: 2025 | O20: 2026 | P20: 2027 | Q20: 2028 | R20: 2029 | S20: 2030 | T20: 2031 | U20: 2032 | V20: 2033 | W20: 2034 | X20: 2035 | Y20: 2036 | Z20: 2037 | AA20: 2038 | AB20: 2039 | AC20: 2040 | AD20: 2041 | AE20: 2042 | AF20: 2043 | AG20: 2044 | AH20: 2045 | AI20: 2046 | AJ20: 2047 | AK20: 2048 | AL20: 2049 | AM20: 2050 | AN20: 2051 | AO20: 2052 | AP20: 2053 | AQ20: 2054 | AR20: 2055 | AS20: 2056 | AT20: 2057
A22: Split for GD17 period:
A24: TOTAL OPENING CAPEX: | D24: =C52 -> 0 | E24: =D52 -> 0 | F24: =E52 -> 45352.81841 | G24: =F52 -> 8788875.953 | H24: 12502503.33 | I24: 24493136.19 | J24: 32716018.3 | K24: 38187266.07 | L24: 43933986.36 | M24: 46929152.73 | N24: 49772337.3 | O24: 52542270.8 | P24: 55484287.52 | Q24: 58037235.52 | R24: 58792361.38 | S24: 55838087.83 | T24: 53654302.37 | U24: 51267697.88 | V24: 49235714.01 | W24: 47362428.64 | X24: 46235244.18 | Y24: 44764839.94 | Z24: 43619726.47 | AA24: 42856418.65 | AB24: 42852552.2 | AC24: 45174348.62 | AD24: 46377794.08 | AE24: 46858767.56 | AF24: 48174945.8 | AG24: 48625149.66 | AH24: 49260123.93 | AI24: 49859318.74 | AJ24: 50501525.43 | AK24: 51137264.19 | AL24: 50347239.65 | AM24: 49658542.64 | AN24: 49277335.52 | AO24: 48905685.08 | AP24: 48709074.83 | AQ24: 48625437.67 | AR24: 48830063.48 | AS24: 48991276.46 | AT24: 49354475.61
A26: ADDITIONS: (In Average 14 prices)
A28: 7 Bar Mains | B28: Special pool | E28: 19153.50317 | F28: 7561778.596 | G28: =Inputs!E8*G$18 -> 0 | H28: =Inputs!F8*H$18 -> 0 | I28: =Inputs!G8*I$18 -> 0 | J28: =Inputs!H8*J$18 -> 0 | K28: =Inputs!I8*K$18 -> 0 | L28: =Inputs!J8*L$18 -> 0 | M28: =Inputs!K8*M$18 -> 0 | N28: =Inputs!L8*N$18 -> 0 | O28: =Inputs!M8*O$18 -> 0 | P28: =Inputs!N8*P$18 -> 0 | Q28: =Inputs!O8*Q$18 -> 0 | R28: =Inputs!P8*R$18 -> 0 | S28: =Inputs!Q8*S$18 -> 0 | T28: =Inputs!R8*T$18 -> 0 | U28: =Inputs!S8*U$18 -> 0 | V28: =Inputs!T8*V$18 -> 0 | W28: =Inputs!U8*W$18 -> 0 | X28: =Inputs!V8*X$18 -> 0 | Y28: =Inputs!W8*Y$18 -> 0 | Z28: =Inputs!X8*Z$18 -> 0 | AA28: =Inputs!Y8*AA$18 -> 0 | AB28: =Inputs!Z8*AB$18 -> 0 | AC28: =Inputs!AA8*AC$18 -> 0 | AD28: =Inputs!AB8*AD$18 -> 0 | AE28: =Inputs!AC8*AE$18 -> 0 | AF28: =Inputs!AD8*AF$18 -> 0 | AG28: =Inputs!AE8*AG$18 -> 0 | AH28: =Inputs!AF8*AH$18 -> 0 | AI28: =Inputs!AG8*AI$18 -> 0 | AJ28: =Inputs!AH8*AJ$18 -> 0 | AK28: =Inputs!AI8*AK$18 -> 0 | AL28: =Inputs!AJ8*AL$18 -> 0 | AM28: =Inputs!AK8*AM$18 -> 0 | AN28: =Inputs!AL8*AN$18 -> 0 | AO28: =Inputs!AM8*AO$18 -> 0 | AP28: =Inputs!AN8*AP$18 -> 0 | AQ28: =Inputs!AO8*AQ$18 -> 0 | AR28: =Inputs!AP8*AR$18 -> 0 | AS28: =Inputs!AQ8*AS$18 -> 0 | AT28: =Inputs!AR8*AT$18 -> 0
A29: LP, 2Bar or 4Bar Mains | B29: Special pool | G29: =Inputs!E9*G$18 -> 3539558.366 | H29: =Inputs!F9*H$18 -> 6993914.862 | I29: =Inputs!G9*I$18 -> 6172082.405 | J29: =Inputs!H9*J$18 -> 4735856.287 | K29: =Inputs!I9*K$18 -> 5135008.365 | L29: =Inputs!J9*L$18 -> 3400978.9 | M29: =Inputs!K9*M$18 -> 3519600.199 | N29: =Inputs!L9*N$18 -> 3636281.894 | O29: =Inputs!M9*O$18 -> 3748279.377 | P29: =Inputs!N9*P$18 -> 3863726.381 | Q29: =Inputs!O9*Q$18 -> 3982729.154 | R29: =Inputs!P9*R$18 -> 228126.1931 | S29: =Inputs!Q9*S$18 -> 235152.4798 | T29: =Inputs!R9*T$18 -> 242395.1762 | U29: =Inputs!S9*U$18 -> 249860.9476 | V29: =Inputs!T9*V$18 -> 257077.0434 | W29: =Inputs!U9*W$18 -> 265489.4101 | X29: =Inputs!V9*X$18 -> 273666.4839 | Y29: =Inputs!W9*Y$18 -> 282095.4116 | Z29: =Inputs!X9*Z$18 -> 290783.9503 | AA29: =Inputs!Y9*AA$18 -> 299740.0959 | AB29: =Inputs!Z9*AB$18 -> 308972.0909 | AC29: =Inputs!AA9*AC$18 -> 318488.4313 | AD29: =Inputs!AB9*AD$18 -> 328297.875 | AE29: =Inputs!AC9*AE$18 -> 337779.2643 | AF29: =Inputs!AD9*AF$18 -> 348832.4606 | AG29: =Inputs!AE9*AG$18 -> 359576.5004 | AH29: =Inputs!AF9*AH$18 -> 370651.4566 | AI29: =Inputs!AG9*AI$18 -> 382067.5214 | AJ29: =Inputs!AH9*AJ$18 -> 393835.2011 | AK29: =Inputs!AI9*AK$18 -> 405965.3253 | AL29: =Inputs!AJ9*AL$18 -> 418469.0573 | AM29: =Inputs!AK9*AM$18 -> 431357.9043 | AN29: =Inputs!AL9*AN$18 -> 444643.7277 | AO29: =Inputs!AM9*AO$18 -> 458338.7545 | AP29: =Inputs!AN9*AP$18 -> 472455.5882 | AQ29: =Inputs!AO9*AQ$18 -> 487007.2203 | AR29: =Inputs!AP9*AR$18 -> 502007.0427 | AS29: =Inputs!AQ9*AS$18 -> 517468.8596 | AT29: =Inputs!AR9*AT$18 -> 533406.9005
A30: Pressure Reduction | B30: Special pool | G30: =Inputs!E10*G$18 -> 65871.73202 | H30: =Inputs!F10*H$18 -> 171202.2086 | I30: =Inputs!G10*I$18 -> 164041.2199 | J30: =Inputs!H10*J$18 -> 139245.3348 | K30: =Inputs!I10*K$18 -> 140032.9653 | L30: =Inputs!J10*L$18 -> 67308.40325 | M30: =Inputs!K10*M$18 -> 69381.50207 | N30: =Inputs!L10*N$18 -> 71518.45233 | O30: =Inputs!M10*O$18 -> 73721.22067 | P30: =Inputs!N10*P$18 -> 75991.83426 | Q30: =Inputs!O10*Q$18 -> 78332.38276 | R30: =Inputs!P10*R$18 -> 9043.718896 | S30: =Inputs!Q10*S$18 -> 9322.265438 | T30: =Inputs!R10*T$18 -> 9609.391213 | U30: =Inputs!S10*U$18 -> 9905.360462 | V30: =Inputs!T10*V$18 -> 10210.44556 | W30: =Inputs!U10*W$18 -> 10524.92729 | X30: =Inputs!V10*X$18 -> 10849.09505 | Y30: =Inputs!W10*Y$18 -> 11183.24718 | Z30: =Inputs!X10*Z$18 -> 66306.43204 | AA30: =Inputs!Y10*AA$18 -> 134580.9014 | AB30: =Inputs!Z10*AB$18 -> 333845.8699 | AC30: =Inputs!AA10*AC$18 -> 322798.6621 | AD30: =Inputs!AB10*AD$18 -> 278035.0359 | AE30: =Inputs!AC10*AE$18 -> 281688.3032 | AF30: =Inputs!AD10*AF$18 -> 137297.8103 | AG30: =Inputs!AE10*AG$18 -> 141526.5828 | AH30: =Inputs!AF10*AH$18 -> 145885.6016 | AI30: =Inputs!AG10*AI$18 -> 150378.8781 | AJ30: =Inputs!AH10*AJ$18 -> 155010.5476 | AK30: =Inputs!AI10*AK$18 -> 159784.8724 | AL30: =Inputs!AJ10*AL$18 -> 33179.1494 | AM30: =Inputs!AK10*AM$18 -> 34201.0672 | AN30: =Inputs!AL10*AN$18 -> 35254.46007 | AO30: =Inputs!AM10*AO$18 -> 36340.29744 | AP30: =Inputs!AN10*AP$18 -> 37459.5786 | AQ30: =Inputs!AO10*AQ$18 -> 38613.33362 | AR30: =Inputs!AP10*AR$18 -> 39802.6243 | AS30: =Inputs!AQ10*AS$18 -> 41028.54513 | AT30: =Inputs!AR10*AT$18 -> 42292.22432
A31: Domestic Services | B31: Special pool | G31: =Inputs!E11*G$18 -> 170519.5314 | H31: =Inputs!F11*H$18 -> 2167885.072 | I31: =Inputs!G11*I$18 -> 1312659.281 | J31: =Inputs!H11*J$18 -> 1039495.32 | K31: =Inputs!I11*K$18 -> 1315109.394 | L31: =Inputs!J11*L$18 -> 1107635.733 | M31: =Inputs!K11*M$18 -> 1048071.622 | N31: =Inputs!L11*N$18 -> 1030511.519 | O31: =Inputs!M11*O$18 -> 1395569.872 | P31: =Inputs!N11*P$18 -> 1124778.108 | Q31: =Inputs!O11*Q$18 -> 1220521.741 | R31: =Inputs!P11*R$18 -> 1378729.162 | S31: =Inputs!Q11*S$18 -> 1797513.923 | T31: =Inputs!R11*T$18 -> 1464966.796 | U31: =Inputs!S11*U$18 -> 1579070.789 | V31: =Inputs!T11*V$18 -> 1556254.041 | W31: =Inputs!U11*W$18 -> 2029410.497 | X31: =Inputs!V11*X$18 -> 1653961.595 | Y31: =Inputs!W11*Y$18 -> 1782786.1 | Z31: =Inputs!X11*Z$18 -> 1690125.118 | AA31: =Inputs!Y11*AA$18 -> 2221861.915 | AB31: =Inputs!Z11*AB$18 -> 1381401.622 | AC31: =Inputs!AA11*AC$18 -> 1511878.869 | AD31: =Inputs!AB11*AD$18 -> 1467806.415 | AE31: =Inputs!AC11*AE$18 -> 2054126.687 | AF31: =Inputs!AD11*AF$18 -> 1559615.71 | AG31: =Inputs!AE11*AG$18 -> 1706925.776 | AH31: =Inputs!AF11*AH$18 -> 1657167.551 | AI31: =Inputs!AG11*AI$18 -> 1708208.312 | AJ31: =Inputs!AH11*AJ$18 -> 1760821.128 | AK31: =Inputs!AI11*AK$18 -> 1815054.419 | AL31: =Inputs!AJ11*AL$18 -> 1870958.095 | AM31: =Inputs!AK11*AM$18 -> 1928583.604 | AN31: =Inputs!AL11*AN$18 -> 1987983.979 | AO31: =Inputs!AM11*AO$18 -> 2049213.886 | AP31: =Inputs!AN11*AP$18 -> 2112329.673 | AQ31: =Inputs!AO11*AQ$18 -> 2177389.427 | AR31: =Inputs!AP11*AR$18 -> 2244453.022 | AS31: =Inputs!AQ11*AS$18 -> 2313582.175 | AT31: =Inputs!AR11*AT$18 -> 2384840.506
A32: Domestic Meters | B32: Special pool | G32: =Inputs!E12*G$18 -> 37149.57807 | H32: =Inputs!F12*H$18 -> 509510.9871 | I32: =Inputs!G12*I$18 -> 321739.6016 | J32: =Inputs!H12*J$18 -> 269882.5965 | K32: =Inputs!I12*K$18 -> 328257.715 | L32: =Inputs!J12*L$18 -> 289227.1672 | M32: =Inputs!K12*M$18 -> 281047.6456 | N32: =Inputs!L12*N$18 -> 280847.8275 | O32: =Inputs!M12*O$18 -> 363222.5541 | P32: =Inputs!N12*P$18 -> 305007.8491 | Q32: =Inputs!O12*Q$18 -> 327916.5134 | R32: =Inputs!P12*R$18 -> 364694.4817 | S32: =Inputs!Q12*S$18 -> 459162.869 | T32: =Inputs!R12*T$18 -> 387505.6256 | U32: =Inputs!S12*U$18 -> 414698.7118 | V32: =Inputs!T12*V$18 -> 411541.7875 | W32: =Inputs!U12*W$18 -> 518399.2928 | X32: =Inputs!V12*X$18 -> 437497.5761 | Y32: =Inputs!W12*Y$18 -> 468198.8319 | Z32: =Inputs!X12*Z$18 -> 578578.8745 | AA32: =Inputs!Y12*AA$18 -> 639133.9256 | AB32: =Inputs!Z12*AB$18 -> 1343555.587 | AC32: =Inputs!AA12*AC$18 -> 1026161.435 | AD32: =Inputs!AB12*AD$18 -> 924287.0033 | AE32: =Inputs!AC12*AE$18 -> 1171667.605 | AF32: =Inputs!AD12*AF$18 -> 958895.9985 | AG32: =Inputs!AE12*AG$18 -> 979513.3172 | AH32: =Inputs!AF12*AH$18 -> 971046.911 | AI32: =Inputs!AG12*AI$18 -> 1134162.295 | AJ32: =Inputs!AH12*AJ$18 -> 1043697.614 | AK32: =Inputs!AI12*AK$18 -> 1100261.635 | AL32: =Inputs!AJ12*AL$18 -> 1182352.302 | AM32: =Inputs!AK12*AM$18 -> 1369160.893 | AN32: =Inputs!AL12*AN$18 -> 1256306.83 | AO32: =Inputs!AM12*AO$18 -> 1322569.39 | AP32: =Inputs!AN12*AP$18 -> 1334522.52 | AQ32: =Inputs!AO12*AQ$18 -> 1545795.809 | AR32: =Inputs!AP12*AR$18 -> 1418382.488 | AS32: =Inputs!AQ12*AS$18 -> 1493193.554 | AT32: =Inputs!AR12*AT$18 -> 1716109.085
A33: I&C Services | B33: Special pool | G33: =Inputs!E13*G$18 -> 114465.5631 | H33: =Inputs!F13*H$18 -> 1454982.976 | I33: =Inputs!G13*I$18 -> 907644.0404 | J33: =Inputs!H13*J$18 -> 887157.3564 | K33: =Inputs!I13*K$18 -> 908505.0445 | L33: =Inputs!J13*L$18 -> 983181.8635 | M33: =Inputs!K13*M$18 -> 1010260.652 | N33: =Inputs!L13*N$18 -> 1044678.552 | O33: =Inputs!M13*O$18 -> 962863.9302 | P33: =Inputs!N13*P$18 -> 998317.9173 | Q33: =Inputs!O13*Q$18 -> 0 | R33: =Inputs!P13*R$18 -> 0 | S33: =Inputs!Q13*S$18 -> 0 | T33: =Inputs!R13*T$18 -> 0 | U33: =Inputs!S13*U$18 -> 0 | V33: =Inputs!T13*V$18 -> 0 | W33: =Inputs!U13*W$18 -> 0 | X33: =Inputs!V13*X$18 -> 0 | Y33: =Inputs!W13*Y$18 -> 0 | Z33: =Inputs!X13*Z$18 -> 0 | AA33: =Inputs!Y13*AA$18 -> 0 | AB33: =Inputs!Z13*AB$18 -> 0 | AC33: =Inputs!AA13*AC$18 -> 0 | AD33: =Inputs!AB13*AD$18 -> 0 | AE33: =Inputs!AC13*AE$18 -> 0 | AF33: =Inputs!AD13*AF$18 -> 0 | AG33: =Inputs!AE13*AG$18 -> 0 | AH33: =Inputs!AF13*AH$18 -> 0 | AI33: =Inputs!AG13*AI$18 -> 0 | AJ33: =Inputs!AH13*AJ$18 -> 0 | AK33: =Inputs!AI13*AK$18 -> 0 | AL33: =Inputs!AJ13*AL$18 -> 0 | AM33: =Inputs!AK13*AM$18 -> 0 | AN33: =Inputs!AL13*AN$18 -> 0 | AO33: =Inputs!AM13*AO$18 -> 0 | AP33: =Inputs!AN13*AP$18 -> 0 | AQ33: =Inputs!AO13*AQ$18 -> 0 | AR33: =Inputs!AP13*AR$18 -> 0 | AS33: =Inputs!AQ13*AS$18 -> 0 | AT33: =Inputs!AR13*AT$18 -> 0
A34: I&C Meters | B34: Special pool | G34: =Inputs!E14*G$18 -> 158992.6103 | H34: =Inputs!F14*H$18 -> 1514261.896 | I34: =Inputs!G14*I$18 -> 1062013.851 | J34: =Inputs!H14*J$18 -> 793300.8972 | K34: =Inputs!I14*K$18 -> 812390.1151 | L34: =Inputs!J14*L$18 -> 881006.0696 | M34: =Inputs!K14*M$18 -> 902750.8755 | N34: =Inputs!L14*N$18 -> 936111.8011 | O34: =Inputs!M14*O$18 -> 860259.876 | P34: =Inputs!N14*P$18 -> 894017.1428 | Q34: =Inputs!O14*Q$18 -> 0 | R34: =Inputs!P14*R$18 -> 0 | S34: =Inputs!Q14*S$18 -> 0 | T34: =Inputs!R14*T$18 -> 0 | U34: =Inputs!S14*U$18 -> 0 | V34: =Inputs!T14*V$18 -> 0 | W34: =Inputs!U14*W$18 -> 0 | X34: =Inputs!V14*X$18 -> 0 | Y34: =Inputs!W14*Y$18 -> 32149.25487 | Z34: =Inputs!X14*Z$18 -> 265193.6288 | AA34: =Inputs!Y14*AA$18 -> 296152.8369 | AB34: =Inputs!Z14*AB$18 -> 2844486.031 | AC34: =Inputs!AA14*AC$18 -> 2008078.643 | AD34: =Inputs!AB14*AD$18 -> 1509858.355 | AE34: =Inputs!AC14*AE$18 -> 1556361.992 | AF34: =Inputs!AD14*AF$18 -> 1616095.787 | AG34: =Inputs!AE14*AG$18 -> 1655983.922 | AH34: =Inputs!AF14*AH$18 -> 1717180.38 | AI34: =Inputs!AG14*AI$18 -> 1578039.481 | AJ34: =Inputs!AH14*AJ$18 -> 1639962.978 | AK34: =Inputs!AI14*AK$18 -> 0 | AL34: =Inputs!AJ14*AL$18 -> 0 | AM34: =Inputs!AK14*AM$18 -> 0 | AN34: =Inputs!AL14*AN$18 -> 0 | AO34: =Inputs!AM14*AO$18 -> 0 | AP34: =Inputs!AN14*AP$18 -> 0 | AQ34: =Inputs!AO14*AQ$18 -> 0 | AR34: =Inputs!AP14*AR$18 -> 0 | AS34: =Inputs!AQ14*AS$18 -> 58973.79953 | AT34: =Inputs!AR14*AT$18 -> 486464.6464
A35: Other Capex | B35: Special pool | E35: 33453.4463 | F35: 1966927.2 | G35: =Inputs!E15*G$18 -> 427856.2882 | H35: =Inputs!F15*H$18 -> 437329.2 | I35: =Inputs!G15*I$18 -> 447852.6627 | J35: =Inputs!H15*J$18 -> 458629.3517 | K35: =Inputs!I15*K$18 -> 469665.3605 | L35: =Inputs!J15*L$18 -> 96175.77989 | M35: =Inputs!K15*M$18 -> 99137.99391 | N35: =Inputs!L15*N$18 -> 102191.4441 | O35: =Inputs!M15*O$18 -> 105338.9406 | P35: =Inputs!N15*P$18 -> 108583.38 | Q35: =Inputs!O15*Q$18 -> 111927.7481 | R35: =Inputs!P15*R$18 -> 115375.1227 | S35: =Inputs!Q15*S$18 -> 118928.6765 | T35: =Inputs!R15*T$18 -> 122591.6797 | U35: =Inputs!S15*U$18 -> 126367.5035 | V35: =Inputs!T15*V$18 -> 130259.6226 | W35: =Inputs!U15*W$18 -> 134271.619 | X35: =Inputs!V15*X$18 -> 138407.1848 | Y35: =Inputs!W15*Y$18 -> 142670.1261 | Z35: =Inputs!X15*Z$18 -> 147064.366 | AA35: =Inputs!Y15*AA$18 -> 151593.9485 | AB35: =Inputs!Z15*AB$18 -> 156263.0421 | AC35: =Inputs!AA15*AC$18 -> 161075.9438 | AD35: =Inputs!AB15*AD$18 -> 166037.0828 | AE35: =Inputs!AC15*AE$18 -> 171151.025 | AF35: =Inputs!AD15*AF$18 -> 176422.4766 | AG35: =Inputs!AE15*AG$18 -> 181856.2888 | AH35: =Inputs!AF15*AH$18 -> 187457.4625 | AI35: =Inputs!AG15*AI$18 -> 193231.1524 | AJ35: =Inputs!AH15*AJ$18 -> 199182.6719 | AK35: =Inputs!AI15*AK$18 -> 205317.4982 | AL35: =Inputs!AJ15*AL$18 -> 211641.2771 | AM35: =Inputs!AK15*AM$18 -> 218159.8284 | AN35: =Inputs!AL15*AN$18 -> 224879.1512 | AO35: =Inputs!AM15*AO$18 -> 231805.429 | AP35: =Inputs!AN15*AP$18 -> 238945.0362 | AQ35: =Inputs!AO15*AQ$18 -> 246304.5434 | AR35: =Inputs!AP15*AR$18 -> 253890.7233 | AS35: =Inputs!AQ15*AS$18 -> 261710.5576 | AT35: =Inputs!AR15*AT$18 -> 269771.2427
A36: TMA | B36: Special pool | G36: =Inputs!E16*G$18 -> 382454.3461 | H36: =Inputs!F16*H$18 -> 1061678.291 | I36: =Inputs!G16*I$18 -> 839238.5726 | J36: =Inputs!H16*J$18 -> 666250.8963 | K36: =Inputs!I16*K$18 -> 735862.2803 | L36: =Inputs!J16*L$18 -> 549179.6497 | M36: =Inputs!K16*M$18 -> 557793.2474 | N36: =Inputs!L16*N$18 -> 571147.1965 | O36: =Inputs!M16*O$18 -> 610671.3179 | P36: =Inputs!N16*P$18 -> 598682.2406 | Q36: =Inputs!O16*Q$18 -> 520325.0895 | R36: =Inputs!P16*R$18 -> 160685.5355 | S36: =Inputs!Q16*S$18 -> 203266.6402 | T36: =Inputs!R16*T$18 -> 170736.1972 | U36: =Inputs!S16*U$18 -> 182893.1737 | V36: =Inputs!T16*V$18 -> 181333.1084 | W36: =Inputs!U16*W$18 -> 229489.9907 | X36: =Inputs!V16*X$18 -> 192762.8079 | Y36: =Inputs!W16*Y$18 -> 206488.1511 | Z36: =Inputs!X16*Z$18 -> 198090.9068 | AA36: =Inputs!Y16*AA$18 -> 252160.2011 | AB36: =Inputs!Z16*AB$18 -> 169037.3713 | AC36: =Inputs!AA16*AC$18 -> 183036.7301 | AD36: =Inputs!AB16*AD$18 -> 179610.429 | AE36: =Inputs!AC16*AE$18 -> 239190.5951 | AF36: =Inputs!AD16*AF$18 -> 190844.817 | AG36: =Inputs!AE16*AG$18 -> 206650.2277 | AH36: =Inputs!AF16*AH$18 -> 202781.9008 | AI36: =Inputs!AG16*AI$18 -> 209027.5833 | AJ36: =Inputs!AH16*AJ$18 -> 215465.6329 | AK36: =Inputs!AI16*AK$18 -> 222101.9744 | AL36: =Inputs!AJ16*AL$18 -> 228942.7152 | AM36: =Inputs!AK16*AM$18 -> 235994.1508 | AN36: =Inputs!AL16*AN$18 -> 243262.7707 | AO36: =Inputs!AM16*AO$18 -> 250755.264 | AP36: =Inputs!AN16*AP$18 -> 258478.5262 | AQ36: =Inputs!AO16*AQ$18 -> 266439.6648 | AR36: =Inputs!AP16*AR$18 -> 274646.0064 | AS36: =Inputs!AQ16*AS$18 -> 283105.1034 | AT36: =Inputs!AR16*AT$18 -> 291824.7406
A38: TOTAL ADDITIONS | E38: =SUM(E28:E37) -> 52606.94947 | F38: =SUM(F28:F37) -> 9528705.795 | G38: =SUM(G28:G37) -> 4896868.015 | H38: =SUM(H28:H37) -> 14310765.49 | I38: 11227271.63 | J38: 8989818.039 | K38: 9844831.24 | L38: 7374693.567 | M38: 7488043.738 | N38: 7673288.686 | O38: 8119927.088 | P38: 7969104.853 | Q38: 6241752.629 | R38: 2256654.214 | S38: 2823346.854 | T38: 2397804.866 | U38: 2562796.486 | V38: 2546676.048 | W38: 3187585.737 | X38: 2707144.743 | Y38: 2925571.122 | Z38: 3236143.276 | AA38: 3995223.825 | AB38: 6537561.614 | AC38: 5531518.714 | AD38: 4853932.195 | AE38: 5811965.471 | AF38: 4988005.06 | AG38: 5232032.615 | AH38: 5252171.264 | AI38: 5355115.223 | AJ38: 5407975.774 | AK38: 3908485.724 | AL38: 3945542.596 | AM38: 4217457.448 | AN38: 4192330.919 | AO38: 4349023.021 | AP38: 4454190.922 | AQ38: 4761549.998 | AR38: 4733181.906 | AS38: 4969062.594 | AT38: 5724709.346
A41: TOTAL OPENING PLUS ADDITIONS: | E41: =E24+E38 -> 52606.94947 | F41: 9574058.614 | G41: =G24+G38 -> 13685743.97 | H41: 26813268.82 | I41: 35720407.83 | J41: 41705836.34 | K41: 48032097.31 | L41: 51308679.93 | M41: 54417196.46 | N41: 57445625.98 | O41: 60662197.89 | P41: 63453392.37 | Q41: 64278988.15 | R41: 61049015.59 | S41: 58661434.68 | T41: 56052107.24 | U41: 53830494.37 | V41: 51782390.06 | W41: 50550014.38 | X41: 48942388.92 | Y41: 47690411.06 | Z41: 46855869.75 | AA41: 46851642.47 | AB41: 49390113.82 | AC41: 50705867.34 | AD41: 51231726.28 | AE41: 52670733.03 | AF41: 53162950.86 | AG41: 53857182.27 | AH41: 54512295.2 | AI41: 55214433.96 | AJ41: 55909501.2 | AK41: 55045749.91 | AL41: 54292782.25 | AM41: 53876000.08 | AN41: 53469666.44 | AO41: 53254708.1 | AP41: 53163265.75 | AQ41: 53386987.67 | AR41: 53563245.38 | AS41: 53960339.05 | AT41: 55079184.96
A43: CAPITAL ALLOWANCE CALC
A45: General pool (based on GDN info sent): | E45: =E41*E5*General_Pool -> 5482.035188 | F45: 34664.34873 | G45: 159086.0251 | H45: 315128.0155 | I45: 264162.4281 | J45: 327786.0437 | K45: 459977.6936 | L45: 494699.0573 | M45: 524670.2084 | N45: 553869.1905 | O45: 584882.171 | P45: 611793.8218 | Q45: 619753.9069 | R45: 588611.7223 | S45: 565591.5622 | T45: 540433.4052 | U45: 519013.4467 | V45: 499266.3928 | W45: 487384.2884 | X45: 471884.1664 | Y45: 459813.0652 | Z45: 451766.7308 | AA45: 451725.973 | AB45: 476200.9621 | AC45: 488886.9642 | AD45: 493957.099 | AE45: 507831.4627 | AF45: 512577.2425 | AG45: 519270.7615 | AH45: 525587.1147 | AI45: 532356.8735 | AJ45: 539058.4512 | AK45: 530730.4851 | AL45: 523470.6531 | AM45: 519452.1958 | AN45: 515534.4792 | AO45: 513461.9314 | AP45: 512580.2785 | AQ45: 514737.3214 | AR45: 516436.7322 | AS45: 520265.3605 | AT45: 531052.8533
A46: Special pool (based on GDN info sent): | E46: =E41*Special_Pool*E6 -> 1772.095874 | F46: 750518.3119 | G46: 1024154.617 | H46: 2005004.61 | I46: 2740227.103 | J46: 3190784.221 | K46: 3638133.254 | L46: 3884828.147 | M46: 4120188.958 | N46: 4349485.994 | O46: 4593028.2 | P46: 4804363.024 | Q46: 4866872.871 | R46: 4622316.037 | S46: 4441540.747 | T46: 4243975.955 | U46: 4075766.906 | V46: 3920695.03 | W46: 3827385.911 | X46: 3705664.817 | Y46: 3610871.522 | Z46: 3547684.366 | AA46: 3547364.299 | AB46: 3739564.233 | AC46: 3839186.292 | AD46: 3879001.614 | AE46: 3987955.77 | AF46: 4025223.961 | AG46: 4077787.577 | AH46: 4127389.343 | AI46: 4180551.662 | AJ46: 4233178.562 | AK46: 4167779.777 | AL46: 4110768.956 | AM46: 4079212.364 | AN46: 4048446.88 | AO46: 4032171.346 | AP46: 4025247.803 | AQ46: 4042186.871 | AR46: 4055532.194 | AS46: 4085598.075 | AT46: 4170311.306
A49: TOTAL CAPITAL ALLOWANCES | E49: =SUM(E45:E48) -> 7254.131062 | F49: 785182.6606 | G49: =SUM(G45:G48) -> 1183240.643 | H49: 2320132.625 | I49: 3004389.531 | J49: 3518570.265 | K49: 4098110.948 | L49: 4379527.204 | M49: 4644859.166 | N49: 4903355.185 | O49: 5177910.371 | P49: 5416156.846 | Q49: 5486626.778 | R49: 5210927.76 | S49: 5007132.309 | T49: 4784409.36 | U49: 4594780.353 | V49: 4419961.423 | W49: 4314770.199 | X49: 4177548.984 | Y49: 4070684.588 | Z49: 3999451.097 | AA49: 3999090.272 | AB49: 4215765.195 | AC49: 4328073.256 | AD49: 4372958.713 | AE49: 4495787.233 | AF49: 4537801.204 | AG49: 4597058.338 | AH49: 4652976.457 | AI49: 4712908.536 | AJ49: 4772237.013 | AK49: 4698510.263 | AL49: 4634239.609 | AM49: 4598664.56 | AN49: 4563981.359 | AO49: 4545633.277 | AP49: 4537828.081 | AQ49: 4556924.192 | AR49: 4571968.926 | AS49: 4605863.435 | AT49: 4701364.16
A52: CLOSING CAPEX BALANCE (WDV) | E52: =E41-E49 -> 45352.81841 | F52: 8788875.953 | G52: =G41-G49 -> 12502503.33 | H52: 24493136.19 | I52: 32716018.3 | J52: 38187266.07 | K52: 43933986.36 | L52: 46929152.73 | M52: 49772337.3 | N52: 52542270.8 | O52: 55484287.52 | P52: 58037235.52 | Q52: 58792361.38 | R52: 55838087.83 | S52: 53654302.37 | T52: 51267697.88 | U52: 49235714.01 | V52: 47362428.64 | W52: 46235244.18 | X52: 44764839.94 | Y52: 43619726.47 | Z52: 42856418.65 | AA52: 42852552.2 | AB52: 45174348.62 | AC52: 46377794.08 | AD52: 46858767.56 | AE52: 48174945.8 | AF52: 48625149.66 | AG52: 49260123.93 | AH52: 49859318.74 | AI52: 50501525.43 | AJ52: 51137264.19 | AK52: 50347239.65 | AL52: 49658542.64 | AM52: 49277335.52 | AN52: 48905685.08 | AO52: 48709074.83 | AP52: 48625437.67 | AQ52: 48830063.48 | AR52: 48991276.46 | AS52: 49354475.61 | AT52: 50377820.8
